Workbook

Sheet Cergy+Pau
A1: Barre d'outils : | E1: Ordre alphabétique | H1: Ordre alphabétique + campus | K1: (Cliquer sur une matière pour classer selon la colonne)
A2: Place | B2: Nom | C2: Prénom | D2: Campus | E2: Module RH | M2: Moyenne | N2: Module Info | S2: Moyenne | T2: Module Maths + Spécialisation | X2: Spé. Info | AC2: Spé Maths | AG2: Moyenne | AH2: Moyennes arrondies | AK2: Moyenne générale | AL2: (Sans arrondis)
E3: LV1 (6) | F3: LV2 (5) | G3: Comm. Inter. (4) | H3: Trv. Eqp. (4) | I3: Ouv. Clt. (4) | J3: Act. Ext. (6) | K3: GL2 (4) | L3: Pj. Parc. (3) | N3: Algo 2 (5) | O3: UML (4) | P3: XML (2) | Q3: Prg. Java (6) | R3: Sys. Expl. (3) | T3: Opti. Lin. (3) | U3: Ana. Nu. (8) | V3: Proba 2 (4) | W3: Th. Grph (3) | X3: Prolog (4) | Y3: IHM (3) | Z3: St. Desc. (3) | AA3: Th. Info (3) | AB3: Th. Lng. (4) | AC3: Mes. Intg. (4) | AD3: Proba+ (8) | AE3: EDP (3) | AF3: Topo (4) | AH3: Moyenne RH | AI3: Moyenne Info | AJ3: Moyenne Maths+Spé
A4: 1 | B4: Abadia | C4: Antoine | D4: Cergy | E4: 18 | F4: 14.7 | G4: 13.5 | H4: 14.5 | I4: 14.5 | J4: 12.1 | K4: 17 | L4: 16 | M4: =(6*E4+5*F4+4*G4+4*H4+4*I4+6*J4+4*K4+3*L4)/(6+5+4+4+4+6+4+3) -> 15.00277778 | N4: 3 | O4: 6 | P4: 4 | Q4: 5.25 | R4: 0 | S4: =(5*N4+4*O4+2*P4+6*Q4+3*R4)/(5+4+2+6+3) -> 3.925 | T4: 11.5 | U4: 5.5 | V4: 10.5 | W4: 12 | AC4: 10 | AD4: 2.5 | AE4: 8.5 | AF4: 12.5 | AG4: =IF(AC4,(3*T4+8*U4+4*V4+3*W4+4*AC4+8*AD4+3*AE4+4*AF4)/(3+8+4+3+4+8+3+4),(3*T4+8*U4+4*V4+3*W4+4*X4+3*Y4+3*Z4+3*AA4+4*AB4)/(3+8+4+3+4+3+3+3+4)) -> 7.891891892 | AH4: =CEILING(M4,0.5) -> 15.5 | AI4: =CEILING(S4,0.5) -> 4 | AJ4: =CEILING(AG4,0.5) -> 8 | AK4: =(10*AH4+8*AI4+12*AJ4)/30 -> 9.433333333 | AL4: =(10*M4+8*S4+12*AG4)/30 -> 9.204349349
A5: 2 | B5: Abdelkafi | C5: Medhi | D5: Cergy | E5: 14 | F5: 13.3 | G5: 16 | H5: 12 | I5: 15.5 | J5: 17.1 | L5: 16 | M5: =(6*E5+5*F5+4*G5+4*H5+4*I5+6*J5+4*K5+3*L5)/(6+5+4+4+4+6+4+3) -> 13.19722222 | N5: 7.5 | O5: 3 | P5: 6 | Q5: 7.5 | R5: 1.5 | S5: =(5*N5+4*O5+2*P5+6*Q5+3*R5)/(5+4+2+6+3) -> 5.55 | T5: 9 | U5: 5.5 | V5: 8 | W5: 14 | AC5: 9.5 | AD5: 4 | AE5: 5 | AF5: 5.5 | AG5: =IF(AC5,(3*T5+8*U5+4*V5+3*W5+4*AC5+8*AD5+3*AE5+4*AF5)/(3+8+4+3+4+8+3+4),(3*T5+8*U5+4*V5+3*W5+4*X5+3*Y5+3*Z5+3*AA5+4*AB5)/(3+8+4+3+4+3+3+3+4)) -> 6.810810811 | AH5: =CEILING(M5,0.5) -> 13.5 | AI5: =CEILING(S5,0.5) -> 6 | AJ5: =CEILING(AG5,0.5) -> 7 | AK5: =(10*AH5+8*AI5+12*AJ5)/30 -> 8.9 | AL5: =(10*M5+8*S5+12*AG5)/30 -> 8.603398398
A6: 3 | B6: Abidal | C6: Roland | D6: Cergy | E6: 15 | F6: 13 | G6: 6.5 | H6: 16 | I6: 10 | J6: 0 | K6: 12 | L6: 15 | M6: =(6*E6+5*F6+4*G6+4*H6+4*I6+6*J6+4*K6+3*L6)/(6+5+4+4+4+6+4+3) -> 10.5 | N6: 1 | P6: 0 | R6: 1.5 | S6: =(5*N6+4*O6+2*P6+6*Q6+3*R6)/(5+4+2+6+3) -> 0.475 | T6: 5 | U6: 3.5 | Z6: 11.4 | AA6: 6 | AB6: 0 | AG6: =IF(AC6,(3*T6+8*U6+4*V6+3*W6+4*AC6+8*AD6+3*AE6+4*AF6)/(3+8+4+3+4+8+3+4),(3*T6+8*U6+4*V6+3*W6+4*X6+3*Y6+3*Z6+3*AA6+4*AB6)/(3+8+4+3+4+3+3+3+4)) -> 2.72 | AH6: =CEILING(M6,0.5) -> 10.5 | AI6: =CEILING(S6,0.5) -> 0.5 | AJ6: =CEILING(AG6,0.5) -> 3 | AK6: =(10*AH6+8*AI6+12*AJ6)/30 -> 4.833333333 | AL6: =(10*M6+8*S6+12*AG6)/30 -> 4.714666667
A7: 4 | B7: Alami | C7: Nasma | D7: Cergy | E7: 0 | F7: 5 | G7: 0 | H7: 13 | I7: 0 | J7: 11.2 | K7: 3 | L7: 14 | M7: =(6*E7+5*F7+4*G7+4*H7+4*I7+6*J7+4*K7+3*L7)/(6+5+4+4+4+6+4+3) -> 5.505555556 | O7: 0 | R7: 2.5 | S7: =(5*N7+4*O7+2*P7+6*Q7+3*R7)/(5+4+2+6+3) -> 0.375 | T7: 5 | U7: 3 | V7: 3 | W7: 4 | AC7: 8 | AF7: 0 | AG7: =IF(AC7,(3*T7+8*U7+4*V7+3*W7+4*AC7+8*AD7+3*AE7+4*AF7)/(3+8+4+3+4+8+3+4),(3*T7+8*U7+4*V7+3*W7+4*X7+3*Y7+3*Z7+3*AA7+4*AB7)/(3+8+4+3+4+3+3+3+4)) -> 2.567567568 | AH7: =CEILING(M7,0.5) -> 6 | AI7: =CEILING(S7,0.5) -> 0.5 | AJ7: =CEILING(AG7,0.5) -> 3 | AK7: =(10*AH7+8*AI7+12*AJ7)/30 -> 3.333333333 | AL7: =(10*M7+8*S7+12*AG7)/30 -> 2.962212212
A8: 5 | B8: Alves Duarté | C8: Vincent | D8: Cergy | E8: 16 | F8: 17.8 | G8: 11 | H8: 15 | I8: 14.5 | J8: 14.4 | K8: 13 | L8: 15.5 | M8: =(6*E8+5*F8+4*G8+4*H8+4*I8+6*J8+4*K8+3*L8)/(6+5+4+4+4+6+4+3) -> 14.775 | N8: 10 | O8: 9.5 | P8: 10.5 | Q8: 10.25 | R8: 9 | S8: =(5*N8+4*O8+2*P8+6*Q8+3*R8)/(5+4+2+6+3) -> 9.875 | T8: 7 | U8: 10 | V8: 7 | W8: 15 | X8: 1 | Y8: 12 | Z8: 12.2 | AA8: 11.5 | AB8: 2.5 | AG8: =IF(AC8,(3*T8+8*U8+4*V8+3*W8+4*AC8+8*AD8+3*AE8+4*AF8)/(3+8+4+3+4+8+3+4),(3*T8+8*U8+4*V8+3*W8+4*X8+3*Y8+3*Z8+3*AA8+4*AB8)/(3+8+4+3+4+3+3+3+4)) -> 8.431428571 | AH8: =CEILING(M8,0.5) -> 15 | AI8: =CEILING(S8,0.5) -> 10 | AJ8: =CEILING(AG8,0.5) -> 8.5 | AK8: =(10*AH8+8*AI8+12*AJ8)/30 -> 11.06666667 | AL8: =(10*M8+8*S8+12*AG8)/30 -> 10.93090476
A9: 6 | B9: Arkat | C9: Yani | D9: Cergy | E9: 14 | F9: 4 | G9: 11.5 | H9: 12 | I9: 14 | J9: 15 | L9: 14 | M9: =(6*E9+5*F9+4*G9+4*H9+4*I9+6*J9+4*K9+3*L9)/(6+5+4+4+4+6+4+3) -> 10.72222222 | N9: 1.5 | O9: 5.5 | P9: 1 | Q9: 2.25 | S9: =(5*N9+4*O9+2*P9+6*Q9+3*R9)/(5+4+2+6+3) -> 2.25 | T9: 2.5 | U9: 1.5 | V9: 1.5 | W9: 8 | Y9: 0 | Z9: 10.9 | AA9: 12.5 | AB9: 0 | AG9: =IF(AC9,(3*T9+8*U9+4*V9+3*W9+4*AC9+8*AD9+3*AE9+4*AF9)/(3+8+4+3+4+8+3+4),(3*T9+8*U9+4*V9+3*W9+4*X9+3*Y9+3*Z9+3*AA9+4*AB9)/(3+8+4+3+4+3+3+3+4)) -> 3.42 | AH9: =CEILING(M9,0.5) -> 11 | AI9: =CEILING(S9,0.5) -> 2.5 | AJ9: =CEILING(AG9,0.5) -> 3.5 | AK9: =(10*AH9+8*AI9+12*AJ9)/30 -> 5.733333333 | AL9: =(10*M9+8*S9+12*AG9)/30 -> 5.542074074
A10: 7 | B10: Balafrej | C10: Anis | D10: Cergy | E10: 13.5 | F10: 15 | G10: 5 | H10: 16 | I10: 9.5 | J10: 13.5 | K10: 12 | L10: 13 | M10: =(6*E10+5*F10+4*G10+4*H10+4*I10+6*J10+4*K10+3*L10)/(6+5+4+4+4+6+4+3) -> 12.38888889 | N10: 1 | O10: 7.5 | P10: 0 | Q10: 11.25 | R10: 2.5 | S10: =(5*N10+4*O10+2*P10+6*Q10+3*R10)/(5+4+2+6+3) -> 5.5 | U10: 12.5 | V10: 7.5 | W10: 9 | AC10: 5 | AE10: 7.5 | AF10: 4.5 | AG10: =IF(AC10,(3*T10+8*U10+4*V10+3*W10+4*AC10+8*AD10+3*AE10+4*AF10)/(3+8+4+3+4+8+3+4),(3*T10+8*U10+4*V10+3*W10+4*X10+3*Y10+3*Z10+3*AA10+4*AB10)/(3+8+4+3+4+3+3+3+4)) -> 5.878378378 | AH10: =CEILING(M10,0.5) -> 12.5 | AI10: =CEILING(S10,0.5) -> 5.5 | AJ10: =CEILING(AG10,0.5) -> 6 | AK10: =(10*AH10+8*AI10+12*AJ10)/30 -> 8.033333333 | AL10: =(10*M10+8*S10+12*AG10)/30 -> 7.947647648
A11: 8 | B11: Balsollier | C11: Solène | D11: Cergy | E11: 16.5 | F11: 12.9 | G11: 14 | H11: 16 | I11: 15.5 | J11: 14.4 | K11: 15 | L11: 15 | M11: =(6*E11+5*F11+4*G11+4*H11+4*I11+6*J11+4*K11+3*L11)/(6+5+4+4+4+6+4+3) -> 14.91388889 | N11: 6.5 | O11: 9 | P11: 10.5 | Q11: 6.5 | R11: 8 | S11: =(5*N11+4*O11+2*P11+6*Q11+3*R11)/(5+4+2+6+3) -> 7.625 | T11: 18 | U11: 10 | V11: 8.5 | W11: 17 | AC11: 12 | AD11: 3.5 | AE11: 9 | AF11: 10 | AG11: =IF(AC11,(3*T11+8*U11+4*V11+3*W11+4*AC11+8*AD11+3*AE11+4*AF11)/(3+8+4+3+4+8+3+4),(3*T11+8*U11+4*V11+3*W11+4*X11+3*Y11+3*Z11+3*AA11+4*AB11)/(3+8+4+3+4+3+3+3+4)) -> 9.783783784 | AH11: =CEILING(M11,0.5) -> 15 | AI11: =CEILING(S11,0.5) -> 8 | AJ11: =CEILING(AG11,0.5) -> 10 | AK11: =(10*AH11+8*AI11+12*AJ11)/30 -> 11.13333333 | AL11: =(10*M11+8*S11+12*AG11)/30 -> 10.91814314
A12: 9 | B12: Bargain | C12: Antoine | D12: Cergy | E12: 11.45 | F12: 12.9 | G12: 13 | H12: 13.5 | I12: 14 | J12: 18 | K12: 11.5 | L12: 17 | M12: =(6*E12+5*F12+4*G12+4*H12+4*I12+6*J12+4*K12+3*L12)/(6+5+4+4+4+6+4+3) -> 13.89444444 | N12: 0 | O12: 4.5 | P12: 1 | Q12: 5.25 | R12: 1 | S12: =(5*N12+4*O12+2*P12+6*Q12+3*R12)/(5+4+2+6+3) -> 2.725 | T12: 6.5 | U12: 2.5 | V12: 1.5 | W12: 8 | X12: 0 | Y12: 1.5 | Z12: 14.1 | AA12: 9.5 | AB12: 5.5 | AG12: =IF(AC12,(3*T12+8*U12+4*V12+3*W12+4*AC12+8*AD12+3*AE12+4*AF12)/(3+8+4+3+4+8+3+4),(3*T12+8*U12+4*V12+3*W12+4*X12+3*Y12+3*Z12+3*AA12+4*AB12)/(3+8+4+3+4+3+3+3+4)) -> 4.765714286 | AH12: =CEILING(M12,0.5) -> 14 | AI12: =CEILING(S12,0.5) -> 3 | AJ12: =CEILING(AG12,0.5) -> 5 | AK12: =(10*AH12+8*AI12+12*AJ12)/30 -> 7.466666667 | AL12: =(10*M12+8*S12+12*AG12)/30 -> 7.264433862
A13: 10 | B13: Bchini | C13: Manel | D13: Cergy | E13: 17.14 | F13: 12 | G13: 14 | H13: 10.5 | I13: 15.5 | J13: 13 | K13: 14 | L13: 19 | M13: =(6*E13+5*F13+4*G13+4*H13+4*I13+6*J13+4*K13+3*L13)/(6+5+4+4+4+6+4+3) -> 14.27333333 | N13: 4.5 | O13: 11.5 | P13: 12 | Q13: 15.5 | R13: 4.5 | S13: =(5*N13+4*O13+2*P13+6*Q13+3*R13)/(5+4+2+6+3) -> 9.95 | T13: 3.5 | U13: 10.5 | V13: 7.5 | W13: 17 | X13: 3.5 | Y13: 10 | Z13: 13.8 | AA13: 15.5 | AB13: 5 | AG13: =IF(AC13,(3*T13+8*U13+4*V13+3*W13+4*AC13+8*AD13+3*AE13+4*AF13)/(3+8+4+3+4+8+3+4),(3*T13+8*U13+4*V13+3*W13+4*X13+3*Y13+3*Z13+3*AA13+4*AB13)/(3+8+4+3+4+3+3+3+4)) -> 9.354285714 | AH13: =CEILING(M13,0.5) -> 14.5 | AI13: =CEILING(S13,0.5) -> 10 | AJ13: =CEILING(AG13,0.5) -> 9.5 | AK13: =(10*AH13+8*AI13+12*AJ13)/30 -> 11.3 | AL13: =(10*M13+8*S13+12*AG13)/30 -> 11.1528254
A14: 11 | B14: Bechu | C14: Amaury | D14: Cergy | E14: 14.5 | F14: 11.6 | G14: 5 | H14: 16 | I14: 4.5 | J14: 11.2 | K14: 17 | L14: 15 | M14: =(6*E14+5*F14+4*G14+4*H14+4*I14+6*J14+4*K14+3*L14)/(6+5+4+4+4+6+4+3) -> 11.86666667 | N14: 10 | O14: 9.5 | P14: 7 | Q14: 17.25 | R14: 10 | S14: =(5*N14+4*O14+2*P14+6*Q14+3*R14)/(5+4+2+6+3) -> 11.775 | T14: 9.5 | U14: 7.5 | V14: 10.5 | W14: 19 | X14: 6.5 | Y14: 19 | Z14: 14 | AA14: 14 | AB14: 6 | AG14: =IF(AC14,(3*T14+8*U14+4*V14+3*W14+4*AC14+8*AD14+3*AE14+4*AF14)/(3+8+4+3+4+8+3+4),(3*T14+8*U14+4*V14+3*W14+4*X14+3*Y14+3*Z14+3*AA14+4*AB14)/(3+8+4+3+4+3+3+3+4)) -> 10.81428571 | AH14: =CEILING(M14,0.5) -> 12 | AI14: =CEILING(S14,0.5) -> 12 | AJ14: =CEILING(AG14,0.5) -> 11 | AK14: =(10*AH14+8*AI14+12*AJ14)/30 -> 11.6 | AL14: =(10*M14+8*S14+12*AG14)/30 -> 11.42126984
A15: 12 | B15: Ben-Azzouz | C15: Yassir | D15: Cergy | E15: 0 | F15: 0 | G15: 0 | I15: 0
A16: 13 | B16: Benghanem Gharbi | C16: Jinane | D16: Cergy | E16: 12.4 | F16: 11 | G16: 12 | H16: 14.5 | I16: 15 | J16: 17.1 | K16: 10 | L16: 14 | M16: =(6*E16+5*F16+4*G16+4*H16+4*I16+6*J16+4*K16+3*L16)/(6+5+4+4+4+6+4+3) -> 13.33333333 | N16: 11 | O16: 7 | P16: 6.5 | Q16: 7.5 | R16: 4 | S16: =(5*N16+4*O16+2*P16+6*Q16+3*R16)/(5+4+2+6+3) -> 7.65 | T16: 18.5 | U16: 12 | V16: 12.5 | W16: 12 | AC16: 15 | AD16: 9.5 | AE16: 8 | AF16: 2.5 | AG16: =IF(AC16,(3*T16+8*U16+4*V16+3*W16+4*AC16+8*AD16+3*AE16+4*AF16)/(3+8+4+3+4+8+3+4),(3*T16+8*U16+4*V16+3*W16+4*X16+3*Y16+3*Z16+3*AA16+4*AB16)/(3+8+4+3+4+3+3+3+4)) -> 11.01351351 | AH16: =CEILING(M16,0.5) -> 13.5 | AI16: =CEILING(S16,0.5) -> 8 | AJ16: =CEILING(AG16,0.5) -> 11.5 | AK16: =(10*AH16+8*AI16+12*AJ16)/30 -> 11.23333333 | AL16: =(10*M16+8*S16+12*AG16)/30 -> 10.88984985
A17: 14 | B17: Benomar | C17: Abdellah | D17: Cergy | E17: 13 | F17: 13.4 | G17: 10 | H17: 15.5 | I17: 14 | J17: 16.5 | K17: 15 | L17: 3 | M17: =(6*E17+5*F17+4*G17+4*H17+4*I17+6*J17+4*K17+3*L17)/(6+5+4+4+4+6+4+3) -> 13.08333333 | N17: 1.5 | O17: 3 | P17: 0 | Q17: 7.5 | R17: 3 | S17: =(5*N17+4*O17+2*P17+6*Q17+3*R17)/(5+4+2+6+3) -> 3.675 | T17: 7.5 | U17: 10.5 | V17: 3 | W17: 8 | X17: 0 | Y17: 2.5 | Z17: 11.2 | AA17: 12 | AB17: 0.5 | AG17: =IF(AC17,(3*T17+8*U17+4*V17+3*W17+4*AC17+8*AD17+3*AE17+4*AF17)/(3+8+4+3+4+8+3+4),(3*T17+8*U17+4*V17+3*W17+4*X17+3*Y17+3*Z17+3*AA17+4*AB17)/(3+8+4+3+4+3+3+3+4)) -> 6.331428571 | AH17: =CEILING(M17,0.5) -> 13.5 | AI17: =CEILING(S17,0.5) -> 4 | AJ17: =CEILING(AG17,0.5) -> 6.5 | AK17: =(10*AH17+8*AI17+12*AJ17)/30 -> 8.166666667 | AL17: =(10*M17+8*S17+12*AG17)/30 -> 7.87368254
A18: 15 | B18: Bernard | C18: Ghislain | D18: Cergy | E18: 0 | F18: 20 | G18: 0 | H18: 4 | I18: 0 | J18: 13 | L18: 18 | M18: =(6*E18+5*F18+4*G18+4*H18+4*I18+6*J18+4*K18+3*L18)/(6+5+4+4+4+6+4+3) -> 6.888888889 | N18: 9 | P18: 0 | Q18: 11.5 | R18: 5.5 | S18: =(5*N18+4*O18+2*P18+6*Q18+3*R18)/(5+4+2+6+3) -> 6.525 | T18: 4.5 | U18: 3.5 | X18: 1.5 | Y18: 8 | Z18: 10.5 | AA18: 11.5 | AB18: 0 | AG18: =IF(AC18,(3*T18+8*U18+4*V18+3*W18+4*AC18+8*AD18+3*AE18+4*AF18)/(3+8+4+3+4+8+3+4),(3*T18+8*U18+4*V18+3*W18+4*X18+3*Y18+3*Z18+3*AA18+4*AB18)/(3+8+4+3+4+3+3+3+4)) -> 3.928571429 | AH18: =CEILING(M18,0.5) -> 7 | AI18: =CEILING(S18,0.5) -> 7 | AJ18: =CEILING(AG18,0.5) -> 4 | AK18: =(10*AH18+8*AI18+12*AJ18)/30 -> 5.8 | AL18: =(10*M18+8*S18+12*AG18)/30 -> 5.607724868
A19: 16 | B19: Berriche | C19: Wajdi | D19: Cergy | E19: 0 | F19: 0 | G19: 1 | H19: 12 | I19: 0 | J19: 0 | L19: 0 | M19: =(6*E19+5*F19+4*G19+4*H19+4*I19+6*J19+4*K19+3*L19)/(6+5+4+4+4+6+4+3) -> 1.444444444 | P19: 0 | S19: =(5*N19+4*O19+2*P19+6*Q19+3*R19)/(5+4+2+6+3) -> 0 | U19: 0 | V19: 10.5 | Z19: 0 | AA19: 0 | AB19: 0 | AG19: =IF(AC19,(3*T19+8*U19+4*V19+3*W19+4*AC19+8*AD19+3*AE19+4*AF19)/(3+8+4+3+4+8+3+4),(3*T19+8*U19+4*V19+3*W19+4*X19+3*Y19+3*Z19+3*AA19+4*AB19)/(3+8+4+3+4+3+3+3+4)) -> 1.2 | AH19: =CEILING(M19,0.5) -> 1.5 | AI19: =CEILING(S19,0.5) -> 0 | AJ19: =CEILING(AG19,0.5) -> 1.5 | AK19: =(10*AH19+8*AI19+12*AJ19)/30 -> 1.1 | AL19: =(10*M19+8*S19+12*AG19)/30 -> 0.9614814815
A20: 17 | B20: Bianchi | C20: Alexandre | D20: Cergy | E20: 16.5 | F20: 15 | G20: 12 | H20: 16 | I20: 16.5 | J20: 14 | K20: 15 | L20: 17 | M20: =(6*E20+5*F20+4*G20+4*H20+4*I20+6*J20+4*K20+3*L20)/(6+5+4+4+4+6+4+3) -> 15.19444444 | N20: 14 | O20: 8.5 | P20: 5.5 | Q20: 8.5 | R20: 8.5 | S20: =(5*N20+4*O20+2*P20+6*Q20+3*R20)/(5+4+2+6+3) -> 9.575 | T20: 2 | U20: 5.5 | V20: 1.5 | W20: 12 | X20: 2.5 | Y20: 3 | Z20: 12.6 | AA20: 11 | AB20: 1.5 | AG20: =IF(AC20,(3*T20+8*U20+4*V20+3*W20+4*AC20+8*AD20+3*AE20+4*AF20)/(3+8+4+3+4+8+3+4),(3*T20+8*U20+4*V20+3*W20+4*X20+3*Y20+3*Z20+3*AA20+4*AB20)/(3+8+4+3+4+3+3+3+4)) -> 5.365714286 | AH20: =CEILING(M20,0.5) -> 15.5 | AI20: =CEILING(S20,0.5) -> 10 | AJ20: =CEILING(AG20,0.5) -> 5.5 | AK20: =(10*AH20+8*AI20+12*AJ20)/30 -> 10.03333333 | AL20: =(10*M20+8*S20+12*AG20)/30 -> 9.764433862
A21: 18 | B21: Bingler | C21: Alexis | D21: Cergy | E21: 0 | F21: 0 | G21: 0 | H21: 13.5 | I21: 0 | J21: 0 | K21: 12.5 | L21: 14 | M21: =(6*E21+5*F21+4*G21+4*H21+4*I21+6*J21+4*K21+3*L21)/(6+5+4+4+4+6+4+3) -> 4.055555556 | N21: 1.5 | O21: 4.5 | R21: 1 | S21: =(5*N21+4*O21+2*P21+6*Q21+3*R21)/(5+4+2+6+3) -> 1.425 | U21: 2 | V21: 2 | W21: 9 | Z21: 10.5 | AA21: 6 | AB21: 0 | AG21: =IF(AC21,(3*T21+8*U21+4*V21+3*W21+4*AC21+8*AD21+3*AE21+4*AF21)/(3+8+4+3+4+8+3+4),(3*T21+8*U21+4*V21+3*W21+4*X21+3*Y21+3*Z21+3*AA21+4*AB21)/(3+8+4+3+4+3+3+3+4)) -> 2.871428571 | AH21: =CEILING(M21,0.5) -> 4.5 | AI21: =CEILING(S21,0.5) -> 1.5 | AJ21: =CEILING(AG21,0.5) -> 3 | AK21: =(10*AH21+8*AI21+12*AJ21)/30 -> 3.1 | AL21: =(10*M21+8*S21+12*AG21)/30 -> 2.88042328
A22: 19 | B22: Bitalika | C22: Armand | D22: Cergy | E22: 10.95 | F22: 13.25 | G22: 9.5 | H22: 15 | I22: 15 | J22: 17 | K22: 13 | L22: 17 | M22: =(6*E22+5*F22+4*G22+4*H22+4*I22+6*J22+4*K22+3*L22)/(6+5+4+4+4+6+4+3) -> 13.74861111 | N22: 3.5 | O22: 5.5 | P22: 3.5 | Q22: 7.5 | R22: 6 | S22: =(5*N22+4*O22+2*P22+6*Q22+3*R22)/(5+4+2+6+3) -> 5.475 | T22: 13 | U22: 2.5 | V22: 1 | W22: 17 | X22: 1 | Y22: 1 | Z22: 7.5 | AA22: 3.5 | AB22: 1.5 | AG22: =IF(AC22,(3*T22+8*U22+4*V22+3*W22+4*AC22+8*AD22+3*AE22+4*AF22)/(3+8+4+3+4+8+3+4),(3*T22+8*U22+4*V22+3*W22+4*X22+3*Y22+3*Z22+3*AA22+4*AB22)/(3+8+4+3+4+3+3+3+4)) -> 4.571428571 | AH22: =CEILING(M22,0.5) -> 14 | AI22: =CEILING(S22,0.5) -> 5.5 | AJ22: =CEILING(AG22,0.5) -> 5 | AK22: =(10*AH22+8*AI22+12*AJ22)/30 -> 8.133333333 | AL22: =(10*M22+8*S22+12*AG22)/30 -> 7.871441799
A23: 20 | B23: Bizet | C23: Gauthier | D23: Cergy
A24: 21 | B24: Blanchet | C24: Adrien | D24: Cergy | E24: 14.5 | F24: 14.75 | G24: 11 | H24: 15.5 | I24: 14 | J24: 12.6 | K24: 15 | L24: 18 | M24: =(6*E24+5*F24+4*G24+4*H24+4*I24+6*J24+4*K24+3*L24)/(6+5+4+4+4+6+4+3) -> 14.23194444 | N24: 8 | O24: 15 | P24: 11 | Q24: 14.75 | R24: 10.5 | S24: =(5*N24+4*O24+2*P24+6*Q24+3*R24)/(5+4+2+6+3) -> 12.1 | T24: 19 | U24: 10 | V24: 14.5 | W24: 15 | X24: 13.5 | Y24: 12.5 | Z24: 14 | AA24: 15.5 | AB24: 4 | AG24: =IF(AC24,(3*T24+8*U24+4*V24+3*W24+4*AC24+8*AD24+3*AE24+4*AF24)/(3+8+4+3+4+8+3+4),(3*T24+8*U24+4*V24+3*W24+4*X24+3*Y24+3*Z24+3*AA24+4*AB24)/(3+8+4+3+4+3+3+3+4)) -> 12.45714286 | AH24: =CEILING(M24,0.5) -> 14.5 | AI24: =CEILING(S24,0.5) -> 12.5 | AJ24: =CEILING(AG24,0.5) -> 12.5 | AK24: =(10*AH24+8*AI24+12*AJ24)/30 -> 13.16666667 | AL24: =(10*M24+8*S24+12*AG24)/30 -> 12.95350529
A25: 22 | B25: Blondeau | C25: Nelson | D25: Cergy | E25: 10 | F25: 12.5 | G25: 11.5 | H25: 13.5 | I25: 13.5 | J25: 14.4 | K25: 13 | L25: 17 | M25: =(6*E25+5*F25+4*G25+4*H25+4*I25+6*J25+4*K25+3*L25)/(6+5+4+4+4+6+4+3) -> 12.94166667 | N25: 9 | O25: 11.5 | P25: 14.5 | Q25: 11 | R25: 7 | S25: =(5*N25+4*O25+2*P25+6*Q25+3*R25)/(5+4+2+6+3) -> 10.35 | T25: 19 | U25: 10 | V25: 14 | W25: 17 | AC25: 13.5 | AD25: 7.5 | AE25: 10 | AF25: 14 | AG25: =IF(AC25,(3*T25+8*U25+4*V25+3*W25+4*AC25+8*AD25+3*AE25+4*AF25)/(3+8+4+3+4+8+3+4),(3*T25+8*U25+4*V25+3*W25+4*X25+3*Y25+3*Z25+3*AA25+4*AB25)/(3+8+4+3+4+3+3+3+4)) -> 12 | AH25: =CEILING(M25,0.5) -> 13 | AI25: =CEILING(S25,0.5) -> 10.5 | AJ25: =CEILING(AG25,0.5) -> 12 | AK25: =(10*AH25+8*AI25+12*AJ25)/30 -> 11.93333333 | AL25: =(10*M25+8*S25+12*AG25)/30 -> 11.87388889
A26: 23 | B26: Bouhmane | C26: Amine | D26: Cergy | E26: 16.5 | F26: 16 | G26: 14 | H26: 16.5 | I26: 13.5 | J26: 0 | K26: 13 | L26: 16 | M26: =(6*E26+5*F26+4*G26+4*H26+4*I26+6*J26+4*K26+3*L26)/(6+5+4+4+4+6+4+3) -> 12.63888889 | N26: 7 | O26: 12 | P26: 0 | Q26: 12 | R26: 13.5 | S26: =(5*N26+4*O26+2*P26+6*Q26+3*R26)/(5+4+2+6+3) -> 9.775 | T26: 18.5 | U26: 11.5 | V26: 6.5 | W26: 15 | X26: 5 | Y26: 3 | Z26: 13.2 | AA26: 12.5 | AB26: 10 | AG26: =IF(AC26,(3*T26+8*U26+4*V26+3*W26+4*AC26+8*AD26+3*AE26+4*AF26)/(3+8+4+3+4+8+3+4),(3*T26+8*U26+4*V26+3*W26+4*X26+3*Y26+3*Z26+3*AA26+4*AB26)/(3+8+4+3+4+3+3+3+4)) -> 10.41714286 | AH26: =CEILING(M26,0.5) -> 13 | AI26: =CEILING(S26,0.5) -> 10 | AJ26: =CEILING(AG26,0.5) -> 10.5 | AK26: =(10*AH26+8*AI26+12*AJ26)/30 -> 11.2 | AL26: =(10*M26+8*S26+12*AG26)/30 -> 10.98648677
A27: 24 | B27: Brasac | C27: Kévin | D27: Cergy | E27: 14 | F27: 14.5 | G27: 12.5 | H27: 13.5 | I27: 14 | J27: 9.1 | K27: 13 | L27: 15 | M27: =(6*E27+5*F27+4*G27+4*H27+4*I27+6*J27+4*K27+3*L27)/(6+5+4+4+4+6+4+3) -> 13.00277778 | N27: 10 | O27: 9 | P27: 12.5 | Q27: 12.5 | R27: 14.5 | S27: =(5*N27+4*O27+2*P27+6*Q27+3*R27)/(5+4+2+6+3) -> 11.475 | T27: 16.5 | U27: 15.5 | V27: 15 | W27: 13 | X27: 8 | Y27: 6 | Z27: 12.6 | AA27: 15.5 | AB27: 3.5 | AG27: =IF(AC27,(3*T27+8*U27+4*V27+3*W27+4*AC27+8*AD27+3*AE27+4*AF27)/(3+8+4+3+4+8+3+4),(3*T27+8*U27+4*V27+3*W27+4*X27+3*Y27+3*Z27+3*AA27+4*AB27)/(3+8+4+3+4+3+3+3+4)) -> 12.02285714 | AH27: =CEILING(M27,0.5) -> 13.5 | AI27: =CEILING(S27,0.5) -> 11.5 | AJ27: =CEILING(AG27,0.5) -> 12.5 | AK27: =(10*AH27+8*AI27+12*AJ27)/30 -> 12.56666667 | AL27: =(10*M27+8*S27+12*AG27)/30 -> 12.20340212
A28: 25 | B28: Bretonnière | C28: Anne | D28: Cergy | E28: 12.4 | F28: 14.5 | G28: 13 | H28: 16 | I28: 12.5 | J28: 12.1 | K28: 14.5 | L28: 13 | M28: =(6*E28+5*F28+4*G28+4*H28+4*I28+6*J28+4*K28+3*L28)/(6+5+4+4+4+6+4+3) -> 13.40277778 | N28: 4 | O28: 11 | P28: 8 | Q28: 10.5 | R28: 9.5 | S28: =(5*N28+4*O28+2*P28+6*Q28+3*R28)/(5+4+2+6+3) -> 8.575 | T28: 14 | U28: 12 | V28: 10.5 | W28: 17 | X28: 1.5 | Y28: 6 | Z28: 6 | AA28: 17 | AB28: 8.5 | AG28: =IF(AC28,(3*T28+8*U28+4*V28+3*W28+4*AC28+8*AD28+3*AE28+4*AF28)/(3+8+4+3+4+8+3+4),(3*T28+8*U28+4*V28+3*W28+4*X28+3*Y28+3*Z28+3*AA28+4*AB28)/(3+8+4+3+4+3+3+3+4)) -> 10.22857143 | AH28: =CEILING(M28,0.5) -> 13.5 | AI28: =CEILING(S28,0.5) -> 9 | AJ28: =CEILING(AG28,0.5) -> 10.5 | AK28: =(10*AH28+8*AI28+12*AJ28)/30 -> 11.1 | AL28: =(10*M28+8*S28+12*AG28)/30 -> 10.84568783
A29: 26 | B29: Buisson-Chavot | C29: Alexandre | D29: Cergy | E29: 10 | F29: 12 | G29: 15.5 | H29: 15 | I29: 15.5 | J29: 13 | K29: 15 | L29: 19 | M29: =(6*E29+5*F29+4*G29+4*H29+4*I29+6*J29+4*K29+3*L29)/(6+5+4+4+4+6+4+3) -> 13.86111111 | N29: 11.5 | O29: 7 | P29: 12.5 | Q29: 6.25 | R29: 10 | S29: =(5*N29+4*O29+2*P29+6*Q29+3*R29)/(5+4+2+6+3) -> 8.9 | T29: 4 | U29: 11 | V29: 8 | W29: 17 | X29: 11.5 | Y29: 3.5 | Z29: 14 | AA29: 18 | AB29: 8.5 | AG29: =IF(AC29,(3*T29+8*U29+4*V29+3*W29+4*AC29+8*AD29+3*AE29+4*AF29)/(3+8+4+3+4+8+3+4),(3*T29+8*U29+4*V29+3*W29+4*X29+3*Y29+3*Z29+3*AA29+4*AB29)/(3+8+4+3+4+3+3+3+4)) -> 10.55714286 | AH29: =CEILING(M29,0.5) -> 14 | AI29: =CEILING(S29,0.5) -> 9 | AJ29: =CEILING(AG29,0.5) -> 11 | AK29: =(10*AH29+8*AI29+12*AJ29)/30 -> 11.46666667 | AL29: =(10*M29+8*S29+12*AG29)/30 -> 11.21656085
A30: 27 | B30: Cadet | C30: Clément | D30: Cergy | E30: 10 | F30: 10 | G30: 0 | H30: 16 | I30: 0 | J30: 0 | K30: 14 | L30: 0 | M30: =(6*E30+5*F30+4*G30+4*H30+4*I30+6*J30+4*K30+3*L30)/(6+5+4+4+4+6+4+3) -> 6.388888889 | N30: 7.5 | O30: 4 | P30: 7 | Q30: 2.75 | S30: =(5*N30+4*O30+2*P30+6*Q30+3*R30)/(5+4+2+6+3) -> 4.2 | T30: 3.4 | U30: 5 | W30: 15 | Z30: 10.6 | AB30: 0 | AG30: =IF(AC30,(3*T30+8*U30+4*V30+3*W30+4*AC30+8*AD30+3*AE30+4*AF30)/(3+8+4+3+4+8+3+4),(3*T30+8*U30+4*V30+3*W30+4*X30+3*Y30+3*Z30+3*AA30+4*AB30)/(3+8+4+3+4+3+3+3+4)) -> 3.628571429 | AH30: =CEILING(M30,0.5) -> 6.5 | AI30: =CEILING(S30,0.5) -> 4.5 | AJ30: =CEILING(AG30,0.5) -> 4 | AK30: =(10*AH30+8*AI30+12*AJ30)/30 -> 4.966666667 | AL30: =(10*M30+8*S30+12*AG30)/30 -> 4.701058201
A31: 28 | B31: Chahid | C31: Lila | D31: Cergy | E31: 14.5 | F31: 14 | G31: 0 | H31: 16 | I31: 7.5 | J31: 9.1 | K31: 14 | L31: 0 | M31: =(6*E31+5*F31+4*G31+4*H31+4*I31+6*J31+4*K31+3*L31)/(6+5+4+4+4+6+4+3) -> 10.04444444 | N31: 5 | O31: 13 | P31: 8 | Q31: 5 | R31: 0 | S31: =(5*N31+4*O31+2*P31+6*Q31+3*R31)/(5+4+2+6+3) -> 6.15 | T31: 10 | U31: 6.5 | V31: 10.5 | W31: 11 | AC31: 15.5 | AD31: 8.5 | AE31: 9 | AF31: 14 | AG31: =IF(AC31,(3*T31+8*U31+4*V31+3*W31+4*AC31+8*AD31+3*AE31+4*AF31)/(3+8+4+3+4+8+3+4),(3*T31+8*U31+4*V31+3*W31+4*X31+3*Y31+3*Z31+3*AA31+4*AB31)/(3+8+4+3+4+3+3+3+4)) -> 10 | AH31: =CEILING(M31,0.5) -> 10.5 | AI31: =CEILING(S31,0.5) -> 6.5 | AJ31: =CEILING(AG31,0.5) -> 10 | AK31: =(10*AH31+8*AI31+12*AJ31)/30 -> 9.233333333 | AL31: =(10*M31+8*S31+12*AG31)/30 -> 8.988148148
A32: 29 | B32: Charbonnier | C32: Yann | D32: Cergy | E32: 17.17 | F32: 18.6 | G32: 14 | H32: 15.5 | I32: 11 | J32: 12.1 | K32: 16 | L32: 18 | M32: =(6*E32+5*F32+4*G32+4*H32+4*I32+6*J32+4*K32+3*L32)/(6+5+4+4+4+6+4+3) -> 15.23944444 | N32: 6 | O32: 5 | P32: 9.5 | Q32: 10 | R32: 5 | S32: =(5*N32+4*O32+2*P32+6*Q32+3*R32)/(5+4+2+6+3) -> 7.2 | T32: 5 | U32: 9 | V32: 11 | W32: 16 | X32: 0.5 | Y32: 13.5 | Z32: 15.5 | AA32: 7 | AB32: 7 | AG32: =IF(AC32,(3*T32+8*U32+4*V32+3*W32+4*AC32+8*AD32+3*AE32+4*AF32)/(3+8+4+3+4+8+3+4),(3*T32+8*U32+4*V32+3*W32+4*X32+3*Y32+3*Z32+3*AA32+4*AB32)/(3+8+4+3+4+3+3+3+4)) -> 9.057142857 | AH32: =CEILING(M32,0.5) -> 15.5 | AI32: =CEILING(S32,0.5) -> 7.5 | AJ32: =CEILING(AG32,0.5) -> 9.5 | AK32: =(10*AH32+8*AI32+12*AJ32)/30 -> 10.96666667 | AL32: =(10*M32+8*S32+12*AG32)/30 -> 10.62267196
A33: 30 | B33: Chaves Pacheco | C33: Bruno | D33: Cergy | E33: 17 | F33: 14.5 | G33: 10 | H33: 15 | I33: 9 | J33: 7 | K33: 12 | L33: 13 | M33: =(6*E33+5*F33+4*G33+4*H33+4*I33+6*J33+4*K33+3*L33)/(6+5+4+4+4+6+4+3) -> 12.20833333 | N33: 3.5 | O33: 4.5 | P33: 0.5 | Q33: 3.75 | R33: 1.5 | S33: =(5*N33+4*O33+2*P33+6*Q33+3*R33)/(5+4+2+6+3) -> 3.175 | T33: 9 | U33: 11 | V33: 18 | W33: 8 | AC33: 16.5 | AD33: 9.5 | AE33: 8 | AF33: 10 | AG33: =IF(AC33,(3*T33+8*U33+4*V33+3*W33+4*AC33+8*AD33+3*AE33+4*AF33)/(3+8+4+3+4+8+3+4),(3*T33+8*U33+4*V33+3*W33+4*X33+3*Y33+3*Z33+3*AA33+4*AB33)/(3+8+4+3+4+3+3+3+4)) -> 11.27027027 | AH33: =CEILING(M33,0.5) -> 12.5 | AI33: =CEILING(S33,0.5) -> 3.5 | AJ33: =CEILING(AG33,0.5) -> 11.5 | AK33: =(10*AH33+8*AI33+12*AJ33)/30 -> 9.7 | AL33: =(10*M33+8*S33+12*AG33)/30 -> 9.424219219
A34: 31 | B34: Chentouf | C34: Hicham | D34: Cergy | E34: 15 | F34: 13.75 | G34: 9 | H34: 15.5 | I34: 11.5 | J34: 12.1 | K34: 15 | L34: 3 | M34: =(6*E34+5*F34+4*G34+4*H34+4*I34+6*J34+4*K34+3*L34)/(6+5+4+4+4+6+4+3) -> 12.34305556 | N34: 1 | O34: 1.5 | P34: 0 | Q34: 5 | R34: 1.5 | S34: =(5*N34+4*O34+2*P34+6*Q34+3*R34)/(5+4+2+6+3) -> 2.275 | T34: 1.5 | U34: 4.5 | V34: 2 | W34: 8 | X34: 0 | Y34: 0 | Z34: 9.5 | AA34: 6.5 | AB34: 0 | AG34: =IF(AC34,(3*T34+8*U34+4*V34+3*W34+4*AC34+8*AD34+3*AE34+4*AF34)/(3+8+4+3+4+8+3+4),(3*T34+8*U34+4*V34+3*W34+4*X34+3*Y34+3*Z34+3*AA34+4*AB34)/(3+8+4+3+4+3+3+3+4)) -> 3.442857143 | AH34: =CEILING(M34,0.5) -> 12.5 | AI34: =CEILING(S34,0.5) -> 2.5 | AJ34: =CEILING(AG34,0.5) -> 3.5 | AK34: =(10*AH34+8*AI34+12*AJ34)/30 -> 6.233333333 | AL34: =(10*M34+8*S34+12*AG34)/30 -> 6.098161376
A35: 32 | B35: Clapie | C35: Florent | D35: Cergy | E35: 17.5 | F35: 6 | G35: 13 | H35: 16.5 | I35: 14 | J35: 12.1 | K35: 13 | L35: 19 | M35: =(6*E35+5*F35+4*G35+4*H35+4*I35+6*J35+4*K35+3*L35)/(6+5+4+4+4+6+4+3) -> 13.62777778 | N35: 14 | O35: 10 | P35: 10.5 | Q35: 10 | R35: 11.5 | S35: =(5*N35+4*O35+2*P35+6*Q35+3*R35)/(5+4+2+6+3) -> 11.275 | T35: 15 | U35: 10 | V35: 2 | W35: 9 | X35: 1 | Y35: 5 | Z35: 13 | AA35: 14 | AB35: 8 | AG35: =IF(AC35,(3*T35+8*U35+4*V35+3*W35+4*AC35+8*AD35+3*AE35+4*AF35)/(3+8+4+3+4+8+3+4),(3*T35+8*U35+4*V35+3*W35+4*X35+3*Y35+3*Z35+3*AA35+4*AB35)/(3+8+4+3+4+3+3+3+4)) -> 8.342857143 | AH35: =CEILING(M35,0.5) -> 14 | AI35: =CEILING(S35,0.5) -> 11.5 | AJ35: =CEILING(AG35,0.5) -> 8.5 | AK35: =(10*AH35+8*AI35+12*AJ35)/30 -> 11.13333333 | AL35: =(10*M35+8*S35+12*AG35)/30 -> 10.88640212
A36: 33 | B36: Cohendy | C36: Manon | D36: Cergy | E36: 17.25 | F36: 16 | G36: 14 | H36: 13.5 | I36: 15.5 | J36: 17.7 | K36: 11.5 | L36: 13 | M36: =(6*E36+5*F36+4*G36+4*H36+4*I36+6*J36+4*K36+3*L36)/(6+5+4+4+4+6+4+3) -> 15.18611111 | N36: 2 | O36: 9 | P36: 4.5 | Q36: 6.75 | R36: 0.5 | S36: =(5*N36+4*O36+2*P36+6*Q36+3*R36)/(5+4+2+6+3) -> 4.85 | T36: 16 | U36: 7.5 | V36: 4.5 | W36: 4 | X36: 0 | Y36: 1.5 | Z36: 12.3 | AA36: 15.5 | AB36: 5 | AG36: =IF(AC36,(3*T36+8*U36+4*V36+3*W36+4*AC36+8*AD36+3*AE36+4*AF36)/(3+8+4+3+4+8+3+4),(3*T36+8*U36+4*V36+3*W36+4*X36+3*Y36+3*Z36+3*AA36+4*AB36)/(3+8+4+3+4+3+3+3+4)) -> 7.025714286 | AH36: =CEILING(M36,0.5) -> 15.5 | AI36: =CEILING(S36,0.5) -> 5 | AJ36: =CEILING(AG36,0.5) -> 7.5 | AK36: =(10*AH36+8*AI36+12*AJ36)/30 -> 9.5 | AL36: =(10*M36+8*S36+12*AG36)/30 -> 9.165656085
A37: 34 | B37: Colin De Verdiere | C37: Yves | D37: Cergy | E37: 17 | F37: 16 | G37: 13 | H37: 15 | I37: 14 | J37: 13 | K37: 15 | L37: 14 | M37: =(6*E37+5*F37+4*G37+4*H37+4*I37+6*J37+4*K37+3*L37)/(6+5+4+4+4+6+4+3) -> 14.72222222 | N37: 13 | O37: 11.5 | P37: 13 | Q37: 12.5 | R37: 18 | S37: =(5*N37+4*O37+2*P37+6*Q37+3*R37)/(5+4+2+6+3) -> 13.3 | T37: 11.5 | U37: 13.5 | V37: 9 | W37: 15 | X37: 4 | Y37: 9 | Z37: 12.5 | AA37: 12 | AB37: 7.5 | AG37: =IF(AC37,(3*T37+8*U37+4*V37+3*W37+4*AC37+8*AD37+3*AE37+4*AF37)/(3+8+4+3+4+8+3+4),(3*T37+8*U37+4*V37+3*W37+4*X37+3*Y37+3*Z37+3*AA37+4*AB37)/(3+8+4+3+4+3+3+3+4)) -> 10.57142857 | AH37: =CEILING(M37,0.5) -> 15 | AI37: =CEILING(S37,0.5) -> 13.5 | AJ37: =CEILING(AG37,0.5) -> 11 | AK37: =(10*AH37+8*AI37+12*AJ37)/30 -> 13 | AL37: =(10*M37+8*S37+12*AG37)/30 -> 12.6826455
A38: 35 | B38: Coquelin | C38: Joan | D38: Cergy | E38: 16.5 | F38: 11.8 | G38: 14 | H38: 16 | I38: 17 | J38: 7 | K38: 17 | L38: 16 | M38: =(6*E38+5*F38+4*G38+4*H38+4*I38+6*J38+4*K38+3*L38)/(6+5+4+4+4+6+4+3) -> 14 | N38: 15 | O38: 14 | P38: 16 | Q38: 19 | R38: 11 | S38: =(5*N38+4*O38+2*P38+6*Q38+3*R38)/(5+4+2+6+3) -> 15.5 | T38: 18.5 | U38: 10 | V38: 7.5 | W38: 17 | X38: 14.5 | Y38: 9.5 | Z38: 14.5 | AA38: 16 | AB38: 13 | AG38: =IF(AC38,(3*T38+8*U38+4*V38+3*W38+4*AC38+8*AD38+3*AE38+4*AF38)/(3+8+4+3+4+8+3+4),(3*T38+8*U38+4*V38+3*W38+4*X38+3*Y38+3*Z38+3*AA38+4*AB38)/(3+8+4+3+4+3+3+3+4)) -> 12.75714286 | AH38: =CEILING(M38,0.5) -> 14 | AI38: =CEILING(S38,0.5) -> 15.5 | AJ38: =CEILING(AG38,0.5) -> 13 | AK38: =(10*AH38+8*AI38+12*AJ38)/30 -> 14 | AL38: =(10*M38+8*S38+12*AG38)/30 -> 13.90285714
A39: 36 | B39: Danquigny | C39: Timothée | D39: Cergy | E39: 13.5 | F39: 0 | G39: 16 | H39: 15.5 | I39: 0 | J39: 0 | L39: 17 | M39: =(6*E39+5*F39+4*G39+4*H39+4*I39+6*J39+4*K39+3*L39)/(6+5+4+4+4+6+4+3) -> 7.166666667 | N39: 10 | O39: 7 | P39: 0 | Q39: 3 | R39: 5 | S39: =(5*N39+4*O39+2*P39+6*Q39+3*R39)/(5+4+2+6+3) -> 5.55 | T39: 7.5 | U39: 6.5 | V39: 1.5 | W39: 19 | Z39: 12 | AA39: 15.5 | AB39: 5 | AG39: =IF(AC39,(3*T39+8*U39+4*V39+3*W39+4*AC39+8*AD39+3*AE39+4*AF39)/(3+8+4+3+4+8+3+4),(3*T39+8*U39+4*V39+3*W39+4*X39+3*Y39+3*Z39+3*AA39+4*AB39)/(3+8+4+3+4+3+3+3+4)) -> 6.857142857 | AH39: =CEILING(M39,0.5) -> 7.5 | AI39: =CEILING(S39,0.5) -> 6 | AJ39: =CEILING(AG39,0.5) -> 7 | AK39: =(10*AH39+8*AI39+12*AJ39)/30 -> 6.9 | AL39: =(10*M39+8*S39+12*AG39)/30 -> 6.611746032
A40: 37 | B40: Delannoy | C40: Merlin | D40: Cergy | E40: 15.93 | F40: 12 | G40: 10.5 | H40: 14 | I40: 14.5 | J40: 13 | K40: 12.5 | L40: 15 | M40: =(6*E40+5*F40+4*G40+4*H40+4*I40+6*J40+4*K40+3*L40)/(6+5+4+4+4+6+4+3) -> 13.46055556 | N40: 12.5 | O40: 7 | P40: 13.5 | Q40: 17.75 | R40: 4 | S40: =(5*N40+4*O40+2*P40+6*Q40+3*R40)/(5+4+2+6+3) -> 11.8 | T40: 9 | U40: 6 | V40: 4.5 | W40: 17 | X40: 3.5 | Y40: 12 | Z40: 13 | AA40: 14.5 | AB40: 8.5 | AG40: =IF(AC40,(3*T40+8*U40+4*V40+3*W40+4*AC40+8*AD40+3*AE40+4*AF40)/(3+8+4+3+4+8+3+4),(3*T40+8*U40+4*V40+3*W40+4*X40+3*Y40+3*Z40+3*AA40+4*AB40)/(3+8+4+3+4+3+3+3+4)) -> 8.871428571 | AH40: =CEILING(M40,0.5) -> 13.5 | AI40: =CEILING(S40,0.5) -> 12 | AJ40: =CEILING(AG40,0.5) -> 9 | AK40: =(10*AH40+8*AI40+12*AJ40)/30 -> 11.3 | AL40: =(10*M40+8*S40+12*AG40)/30 -> 11.18208995
A41: 38 | B41: Derail | C41: Clémence | D41: Cergy | E41: 12.8 | F41: 10.5 | G41: 10 | H41: 14.5 | I41: 15 | J41: 14.4 | K41: 10 | L41: 17 | M41: =(6*E41+5*F41+4*G41+4*H41+4*I41+6*J41+4*K41+3*L41)/(6+5+4+4+4+6+4+3) -> 12.90833333 | N41: 0 | O41: 7.5 | P41: 7 | Q41: 5.25 | R41: 6 | S41: =(5*N41+4*O41+2*P41+6*Q41+3*R41)/(5+4+2+6+3) -> 4.675 | T41: 6 | U41: 8.5 | V41: 2.5 | W41: 11 | X41: 0.5 | Y41: 7 | Z41: 13.1 | AA41: 10.5 | AB41: 1.5 | AG41: =IF(AC41,(3*T41+8*U41+4*V41+3*W41+4*AC41+8*AD41+3*AE41+4*AF41)/(3+8+4+3+4+8+3+4),(3*T41+8*U41+4*V41+3*W41+4*X41+3*Y41+3*Z41+3*AA41+4*AB41)/(3+8+4+3+4+3+3+3+4)) -> 6.537142857 | AH41: =CEILING(M41,0.5) -> 13 | AI41: =CEILING(S41,0.5) -> 5 | AJ41: =CEILING(AG41,0.5) -> 7 | AK41: =(10*AH41+8*AI41+12*AJ41)/30 -> 8.466666667 | AL41: =(10*M41+8*S41+12*AG41)/30 -> 8.164301587
A42: 39 | B42: Deshayes-Chossart | C42: Jérôme | D42: Cergy | E42: 12.5 | F42: 3.5 | G42: 9 | H42: 15 | I42: 11.5 | J42: 13 | K42: 12 | L42: 15 | M42: =(6*E42+5*F42+4*G42+4*H42+4*I42+6*J42+4*K42+3*L42)/(6+5+4+4+4+6+4+3) -> 11.26388889 | N42: 3.5 | O42: 6 | P42: 8 | Q42: 3.75 | S42: =(5*N42+4*O42+2*P42+6*Q42+3*R42)/(5+4+2+6+3) -> 4 | T42: 1.5 | U42: 0 | V42: 0 | Z42: 0 | AA42: 0 | AB42: 0 | AG42: =IF(AC42,(3*T42+8*U42+4*V42+3*W42+4*AC42+8*AD42+3*AE42+4*AF42)/(3+8+4+3+4+8+3+4),(3*T42+8*U42+4*V42+3*W42+4*X42+3*Y42+3*Z42+3*AA42+4*AB42)/(3+8+4+3+4+3+3+3+4)) -> 0.1285714286 | AH42: =CEILING(M42,0.5) -> 11.5 | AI42: =CEILING(S42,0.5) -> 4 | AJ42: =CEILING(AG42,0.5) -> 0.5 | AK42: =(10*AH42+8*AI42+12*AJ42)/30 -> 5.1 | AL42: =(10*M42+8*S42+12*AG42)/30 -> 4.872724868
A43: 40 | B43: Destuynder | C43: Jérémie | D43: Cergy | E43: 14.5 | F43: 18.4 | G43: 17.5 | H43: 15 | I43: 16.5 | J43: 9.1 | K43: 15 | L43: 19 | M43: =(6*E43+5*F43+4*G43+4*H43+4*I43+6*J43+4*K43+3*L43)/(6+5+4+4+4+6+4+3) -> 15.18333333 | N43: 17 | O43: 13.5 | P43: 16 | Q43: 19 | R43: 18.5 | S43: =(5*N43+4*O43+2*P43+6*Q43+3*R43)/(5+4+2+6+3) -> 17.025 | T43: 7.5 | U43: 14.5 | V43: 15 | W43: 14 | X43: 6 | Y43: 17.5 | Z43: 14 | AA43: 15.5 | AB43: 20 | AG43: =IF(AC43,(3*T43+8*U43+4*V43+3*W43+4*AC43+8*AD43+3*AE43+4*AF43)/(3+8+4+3+4+8+3+4),(3*T43+8*U43+4*V43+3*W43+4*X43+3*Y43+3*Z43+3*AA43+4*AB43)/(3+8+4+3+4+3+3+3+4)) -> 13.87142857 | AH43: =CEILING(M43,0.5) -> 15.5 | AI43: =CEILING(S43,0.5) -> 17.5 | AJ43: =CEILING(AG43,0.5) -> 14 | AK43: =(10*AH43+8*AI43+12*AJ43)/30 -> 15.43333333 | AL43: =(10*M43+8*S43+12*AG43)/30 -> 15.14968254
A44: 41 | B44: Dos | C44: Hugo | D44: Cergy | E44: 13.15 | F44: 18 | G44: 15 | H44: 15 | I44: 16 | J44: 12.6 | K44: 16 | L44: 18 | M44: =(6*E44+5*F44+4*G44+4*H44+4*I44+6*J44+4*K44+3*L44)/(6+5+4+4+4+6+4+3) -> 15.18055556 | N44: 10 | O44: 13 | P44: 15 | Q44: 13.75 | R44: 9.5 | S44: =(5*N44+4*O44+2*P44+6*Q44+3*R44)/(5+4+2+6+3) -> 12.15 | T44: 8.5 | U44: 11 | V44: 10 | W44: 12 | X44: 10.5 | Y44: 11 | Z44: 15.2 | AA44: 12 | AB44: 5.5 | AG44: =IF(AC44,(3*T44+8*U44+4*V44+3*W44+4*AC44+8*AD44+3*AE44+4*AF44)/(3+8+4+3+4+8+3+4),(3*T44+8*U44+4*V44+3*W44+4*X44+3*Y44+3*Z44+3*AA44+4*AB44)/(3+8+4+3+4+3+3+3+4)) -> 10.51714286 | AH44: =CEILING(M44,0.5) -> 15.5 | AI44: =CEILING(S44,0.5) -> 12.5 | AJ44: =CEILING(AG44,0.5) -> 11 | AK44: =(10*AH44+8*AI44+12*AJ44)/30 -> 12.9 | AL44: =(10*M44+8*S44+12*AG44)/30 -> 12.50704233
A45: 42 | B45: Ek | C45: Ouk-Dom | D45: Cergy | E45: 13.17 | F45: 13.25 | G45: 12.5 | H45: 14 | I45: 15.5 | J45: 14.4 | K45: 14.5 | L45: 17 | M45: =(6*E45+5*F45+4*G45+4*H45+4*I45+6*J45+4*K45+3*L45)/(6+5+4+4+4+6+4+3) -> 14.12972222 | N45: 12.5 | O45: 12 | P45: 15 | Q45: 10.25 | R45: 5.5 | S45: =(5*N45+4*O45+2*P45+6*Q45+3*R45)/(5+4+2+6+3) -> 10.925 | T45: 17 | U45: 1.5 | V45: 12 | W45: 13 | AC45: 12.5 | AD45: 9 | AE45: 11.5 | AF45: 10 | AG45: =IF(AC45,(3*T45+8*U45+4*V45+3*W45+4*AC45+8*AD45+3*AE45+4*AF45)/(3+8+4+3+4+8+3+4),(3*T45+8*U45+4*V45+3*W45+4*X45+3*Y45+3*Z45+3*AA45+4*AB45)/(3+8+4+3+4+3+3+3+4)) -> 9.364864865 | AH45: =CEILING(M45,0.5) -> 14.5 | AI45: =CEILING(S45,0.5) -> 11 | AJ45: =CEILING(AG45,0.5) -> 9.5 | AK45: =(10*AH45+8*AI45+12*AJ45)/30 -> 11.56666667 | AL45: =(10*M45+8*S45+12*AG45)/30 -> 11.36918669
A46: 43 | B46: Ennebati | C46: Benaïssa | D46: Cergy | E46: 18.5 | F46: 15 | G46: 10 | H46: 15.5 | I46: 13.5 | J46: 13.5 | K46: 15 | L46: 18 | M46: =(6*E46+5*F46+4*G46+4*H46+4*I46+6*J46+4*K46+3*L46)/(6+5+4+4+4+6+4+3) -> 14.91666667 | N46: 9 | O46: 9.5 | P46: 0 | Q46: 10.25 | R46: 3 | S46: =(5*N46+4*O46+2*P46+6*Q46+3*R46)/(5+4+2+6+3) -> 7.675 | T46: 15.5 | U46: 4.5 | V46: 7.5 | W46: 11 | X46: 1.5 | Y46: 1.5 | Z46: 12.8 | AA46: 11 | AB46: 9 | AG46: =IF(AC46,(3*T46+8*U46+4*V46+3*W46+4*AC46+8*AD46+3*AE46+4*AF46)/(3+8+4+3+4+8+3+4),(3*T46+8*U46+4*V46+3*W46+4*X46+3*Y46+3*Z46+3*AA46+4*AB46)/(3+8+4+3+4+3+3+3+4)) -> 7.525714286 | AH46: =CEILING(M46,0.5) -> 15 | AI46: =CEILING(S46,0.5) -> 8 | AJ46: =CEILING(AG46,0.5) -> 8 | AK46: =(10*AH46+8*AI46+12*AJ46)/30 -> 10.33333333 | AL46: =(10*M46+8*S46+12*AG46)/30 -> 10.0291746
A47: 44 | B47: Fournier | C47: Anthony Jean | D47: Cergy | E47: 10 | F47: 0 | G47: 6.5 | H47: 15 | I47: 0 | J47: 11.2 | K47: 12 | L47: 15.5 | M47: =(6*E47+5*F47+4*G47+4*H47+4*I47+6*J47+4*K47+3*L47)/(6+5+4+4+4+6+4+3) -> 8.547222222 | N47: 6.5 | O47: 1 | P47: 3.5 | Q47: 5.75 | R47: 1 | S47: =(5*N47+4*O47+2*P47+6*Q47+3*R47)/(5+4+2+6+3) -> 4.05 | T47: 5 | U47: 1 | V47: 7.5 | W47: 11.5 | X47: 1.5 | Y47: 6 | Z47: 10.9 | AA47: 9.5 | AB47: 0.5 | AG47: =IF(AC47,(3*T47+8*U47+4*V47+3*W47+4*AC47+8*AD47+3*AE47+4*AF47)/(3+8+4+3+4+8+3+4),(3*T47+8*U47+4*V47+3*W47+4*X47+3*Y47+3*Z47+3*AA47+4*AB47)/(3+8+4+3+4+3+3+3+4)) -> 4.991428571 | AH47: =CEILING(M47,0.5) -> 9 | AI47: =CEILING(S47,0.5) -> 4.5 | AJ47: =CEILING(AG47,0.5) -> 5 | AK47: =(10*AH47+8*AI47+12*AJ47)/30 -> 6.2 | AL47: =(10*M47+8*S47+12*AG47)/30 -> 5.925645503
A48: 45 | B48: Geffraye | C48: Romain | D48: Cergy | E48: 10.75 | F48: 11 | G48: 11 | H48: 16 | I48: 13 | J48: 10 | K48: 14.5 | L48: 19 | M48: =(6*E48+5*F48+4*G48+4*H48+4*I48+6*J48+4*K48+3*L48)/(6+5+4+4+4+6+4+3) -> 12.625 | N48: 13 | O48: 12 | P48: 14.5 | Q48: 10.75 | R48: 5.5 | S48: =(5*N48+4*O48+2*P48+6*Q48+3*R48)/(5+4+2+6+3) -> 11.15 | T48: 19.5 | U48: 12.5 | V48: 11.5 | W48: 17 | X48: 8 | Y48: 14.5 | Z48: 11.5 | AA48: 16 | AB48: 6.5 | AG48: =IF(AC48,(3*T48+8*U48+4*V48+3*W48+4*AC48+8*AD48+3*AE48+4*AF48)/(3+8+4+3+4+8+3+4),(3*T48+8*U48+4*V48+3*W48+4*X48+3*Y48+3*Z48+3*AA48+4*AB48)/(3+8+4+3+4+3+3+3+4)) -> 12.55714286 | AH48: =CEILING(M48,0.5) -> 13 | AI48: =CEILING(S48,0.5) -> 11.5 | AJ48: =CEILING(AG48,0.5) -> 13 | AK48: =(10*AH48+8*AI48+12*AJ48)/30 -> 12.6 | AL48: =(10*M48+8*S48+12*AG48)/30 -> 12.20452381
A49: 46 | B49: Geiler | C49: Louis | D49: Cergy | E49: 17 | F49: 18 | G49: 14 | H49: 16.5 | I49: 9.5 | J49: 0 | K49: 13 | L49: 17 | M49: =(6*E49+5*F49+4*G49+4*H49+4*I49+6*J49+4*K49+3*L49)/(6+5+4+4+4+6+4+3) -> 12.63888889 | N49: 3 | O49: 7.5 | P49: 10 | Q49: 11.25 | R49: 9.5 | S49: =(5*N49+4*O49+2*P49+6*Q49+3*R49)/(5+4+2+6+3) -> 8.05 | T49: 17 | U49: 8.5 | V49: 15 | W49: 15 | AC49: 6 | AD49: 9.5 | AE49: 8 | AF49: 2.5 | AG49: =IF(AC49,(3*T49+8*U49+4*V49+3*W49+4*AC49+8*AD49+3*AE49+4*AF49)/(3+8+4+3+4+8+3+4),(3*T49+8*U49+4*V49+3*W49+4*X49+3*Y49+3*Z49+3*AA49+4*AB49)/(3+8+4+3+4+3+3+3+4)) -> 9.675675676 | AH49: =CEILING(M49,0.5) -> 13 | AI49: =CEILING(S49,0.5) -> 8.5 | AJ49: =CEILING(AG49,0.5) -> 10 | AK49: =(10*AH49+8*AI49+12*AJ49)/30 -> 10.6 | AL49: =(10*M49+8*S49+12*AG49)/30 -> 10.2298999
A50: 47 | B50: Gimenez | C50: Thibault | D50: Cergy | E50: 10.5 | F50: 14.25 | G50: 14 | H50: 15 | I50: 12 | J50: 13.5 | K50: 13 | L50: 17 | M50: =(6*E50+5*F50+4*G50+4*H50+4*I50+6*J50+4*K50+3*L50)/(6+5+4+4+4+6+4+3) -> 13.39583333 | N50: 8.5 | O50: 13 | P50: 16 | Q50: 9 | R50: 15 | S50: =(5*N50+4*O50+2*P50+6*Q50+3*R50)/(5+4+2+6+3) -> 11.275 | T50: 9 | U50: 14.5 | V50: 15.5 | W50: 17 | X50: 1.5 | Y50: 6 | Z50: 15 | AA50: 16 | AB50: 15 | AG50: =IF(AC50,(3*T50+8*U50+4*V50+3*W50+4*AC50+8*AD50+3*AE50+4*AF50)/(3+8+4+3+4+8+3+4),(3*T50+8*U50+4*V50+3*W50+4*X50+3*Y50+3*Z50+3*AA50+4*AB50)/(3+8+4+3+4+3+3+3+4)) -> 12.37142857 | AH50: =CEILING(M50,0.5) -> 13.5 | AI50: =CEILING(S50,0.5) -> 11.5 | AJ50: =CEILING(AG50,0.5) -> 12.5 | AK50: =(10*AH50+8*AI50+12*AJ50)/30 -> 12.56666667 | AL50: =(10*M50+8*S50+12*AG50)/30 -> 12.42051587
A51: 48 | B51: Gourraud | C51: Nicolas | D51: Cergy | E51: 0 | F51: 0 | G51: 12 | H51: 15 | I51: 0 | J51: 0 | K51: 13 | L51: 0 | M51: =(6*E51+5*F51+4*G51+4*H51+4*I51+6*J51+4*K51+3*L51)/(6+5+4+4+4+6+4+3) -> 4.444444444 | P51: 4.5 | S51: =(5*N51+4*O51+2*P51+6*Q51+3*R51)/(5+4+2+6+3) -> 0.45 | U51: 0 | Z51: 11.4 | AA51: 0 | AB51: 0 | AG51: =IF(AC51,(3*T51+8*U51+4*V51+3*W51+4*AC51+8*AD51+3*AE51+4*AF51)/(3+8+4+3+4+8+3+4),(3*T51+8*U51+4*V51+3*W51+4*X51+3*Y51+3*Z51+3*AA51+4*AB51)/(3+8+4+3+4+3+3+3+4)) -> 0.9771428571 | AH51: =CEILING(M51,0.5) -> 4.5 | AI51: =CEILING(S51,0.5) -> 0.5 | AJ51: =CEILING(AG51,0.5) -> 1 | AK51: =(10*AH51+8*AI51+12*AJ51)/30 -> 2.033333333 | AL51: =(10*M51+8*S51+12*AG51)/30 -> 1.992338624
A52: 49 | B52: Graille | C52: Jean-Baptiste | D52: Cergy | E52: 10 | F52: 7 | G52: 11 | H52: 16.5 | I52: 12.5 | J52: 12.1 | K52: 13 | L52: 16 | M52: =(6*E52+5*F52+4*G52+4*H52+4*I52+6*J52+4*K52+3*L52)/(6+5+4+4+4+6+4+3) -> 11.87777778 | N52: 2.5 | O52: 7 | P52: 9 | Q52: 4.25 | R52: 8 | S52: =(5*N52+4*O52+2*P52+6*Q52+3*R52)/(5+4+2+6+3) -> 5.4 | T52: 13 | U52: 9.5 | V52: 11.5 | W52: 10 | AC52: 4.5 | AD52: 2 | AE52: 3.5 | AF52: 4 | AG52: =IF(AC52,(3*T52+8*U52+4*V52+3*W52+4*AC52+8*AD52+3*AE52+4*AF52)/(3+8+4+3+4+8+3+4),(3*T52+8*U52+4*V52+3*W52+4*X52+3*Y52+3*Z52+3*AA52+4*AB52)/(3+8+4+3+4+3+3+3+4)) -> 6.797297297 | AH52: =CEILING(M52,0.5) -> 12 | AI52: =CEILING(S52,0.5) -> 5.5 | AJ52: =CEILING(AG52,0.5) -> 7 | AK52: =(10*AH52+8*AI52+12*AJ52)/30 -> 8.266666667 | AL52: =(10*M52+8*S52+12*AG52)/30 -> 8.118178178
A53: 50 | B53: Gremion | C53: Patrice | D53: Cergy | E53: 14.4 | F53: 17.25 | G53: 15 | H53: 15 | I53: 18 | J53: 12.6 | K53: 16 | L53: 17 | M53: =(6*E53+5*F53+4*G53+4*H53+4*I53+6*J53+4*K53+3*L53)/(6+5+4+4+4+6+4+3) -> 15.42361111 | N53: 10 | O53: 12 | P53: 8.5 | Q53: 9.5 | R53: 13.5 | S53: =(5*N53+4*O53+2*P53+6*Q53+3*R53)/(5+4+2+6+3) -> 10.625 | T53: 10.5 | U53: 10.5 | V53: 12.5 | W53: 9 | AC53: 17.5 | AD53: 9 | AE53: 6 | AF53: 13.5 | AG53: =IF(AC53,(3*T53+8*U53+4*V53+3*W53+4*AC53+8*AD53+3*AE53+4*AF53)/(3+8+4+3+4+8+3+4),(3*T53+8*U53+4*V53+3*W53+4*X53+3*Y53+3*Z53+3*AA53+4*AB53)/(3+8+4+3+4+3+3+3+4)) -> 10.98648649 | AH53: =CEILING(M53,0.5) -> 15.5 | AI53: =CEILING(S53,0.5) -> 11 | AJ53: =CEILING(AG53,0.5) -> 11 | AK53: =(10*AH53+8*AI53+12*AJ53)/30 -> 12.5 | AL53: =(10*M53+8*S53+12*AG53)/30 -> 12.36913163
A54: 51 | B54: Grill | C54: Amaury | D54: Cergy | E54: 12.35 | F54: 11.4 | G54: 13.5 | H54: 13.5 | I54: 11 | J54: 13 | K54: 12.5 | L54: 13 | M54: =(6*E54+5*F54+4*G54+4*H54+4*I54+6*J54+4*K54+3*L54)/(6+5+4+4+4+6+4+3) -> 12.50277778 | N54: 1.5 | O54: 6.5 | P54: 5 | Q54: 9 | R54: 1 | S54: =(5*N54+4*O54+2*P54+6*Q54+3*R54)/(5+4+2+6+3) -> 5.025 | T54: 12 | U54: 7 | V54: 10 | W54: 3 | Y54: 2 | Z54: 12.4 | AA54: 11.5 | AB54: 6.5 | AG54: =IF(AC54,(3*T54+8*U54+4*V54+3*W54+4*AC54+8*AD54+3*AE54+4*AF54)/(3+8+4+3+4+8+3+4),(3*T54+8*U54+4*V54+3*W54+4*X54+3*Y54+3*Z54+3*AA54+4*AB54)/(3+8+4+3+4+3+3+3+4)) -> 6.991428571 | AH54: =CEILING(M54,0.5) -> 13 | AI54: =CEILING(S54,0.5) -> 5.5 | AJ54: =CEILING(AG54,0.5) -> 7 | AK54: =(10*AH54+8*AI54+12*AJ54)/30 -> 8.6 | AL54: =(10*M54+8*S54+12*AG54)/30 -> 8.304164021
A55: 52 | B55: Grod | C55: Kevin | D55: Cergy | E55: 14.5 | F55: 13 | G55: 12 | H55: 16 | I55: 14 | J55: 9.1 | K55: 14.5 | L55: 16.5 | M55: =(6*E55+5*F55+4*G55+4*H55+4*I55+6*J55+4*K55+3*L55)/(6+5+4+4+4+6+4+3) -> 13.39166667 | N55: 7 | O55: 12 | P55: 13.5 | Q55: 17 | R55: 8 | S55: =(5*N55+4*O55+2*P55+6*Q55+3*R55)/(5+4+2+6+3) -> 11.8 | T55: 20 | U55: 12 | V55: 10.5 | W55: 14 | X55: 1.5 | Y55: 11 | Z55: 14 | AA55: 15.5 | AB55: 4.5 | AG55: =IF(AC55,(3*T55+8*U55+4*V55+3*W55+4*AC55+8*AD55+3*AE55+4*AF55)/(3+8+4+3+4+8+3+4),(3*T55+8*U55+4*V55+3*W55+4*X55+3*Y55+3*Z55+3*AA55+4*AB55)/(3+8+4+3+4+3+3+3+4)) -> 11.01428571 | AH55: =CEILING(M55,0.5) -> 13.5 | AI55: =CEILING(S55,0.5) -> 12 | AJ55: =CEILING(AG55,0.5) -> 11.5 | AK55: =(10*AH55+8*AI55+12*AJ55)/30 -> 12.3 | AL55: =(10*M55+8*S55+12*AG55)/30 -> 12.01626984
A56: 53 | B56: Guedj | C56: Axel | D56: Cergy | E56: 16.58 | F56: 14 | G56: 8.5 | H56: 14 | I56: 0 | J56: 10 | K56: 10 | L56: 0 | M56: =(6*E56+5*F56+4*G56+4*H56+4*I56+6*J56+4*K56+3*L56)/(6+5+4+4+4+6+4+3) -> 9.985555556 | N56: 1.5 | Q56: 2 | S56: =(5*N56+4*O56+2*P56+6*Q56+3*R56)/(5+4+2+6+3) -> 0.975 | T56: 4.5 | U56: 3 | Z56: 9.5 | AA56: 7 | AB56: 0 | AG56: =IF(AC56,(3*T56+8*U56+4*V56+3*W56+4*AC56+8*AD56+3*AE56+4*AF56)/(3+8+4+3+4+8+3+4),(3*T56+8*U56+4*V56+3*W56+4*X56+3*Y56+3*Z56+3*AA56+4*AB56)/(3+8+4+3+4+3+3+3+4)) -> 2.485714286 | AH56: =CEILING(M56,0.5) -> 10 | AI56: =CEILING(S56,0.5) -> 1 | AJ56: =CEILING(AG56,0.5) -> 2.5 | AK56: =(10*AH56+8*AI56+12*AJ56)/30 -> 4.6 | AL56: =(10*M56+8*S56+12*AG56)/30 -> 4.582804233
A57: 54 | B57: Halajko | C57: Arthur | D57: Cergy | E57: 0 | F57: 0 | G57: 14 | H57: 12 | I57: 16 | J57: 13.5 | L57: 17 | M57: =(6*E57+5*F57+4*G57+4*H57+4*I57+6*J57+4*K57+3*L57)/(6+5+4+4+4+6+4+3) -> 8.333333333 | N57: 4.5 | P57: 0 | Q57: 2 | R57: 0 | S57: =(5*N57+4*O57+2*P57+6*Q57+3*R57)/(5+4+2+6+3) -> 1.725 | T57: 7.5 | U57: 5 | V57: 3 | Y57: 0 | Z57: 9.5 | AA57: 9 | AB57: 2 | AG57: =IF(AC57,(3*T57+8*U57+4*V57+3*W57+4*AC57+8*AD57+3*AE57+4*AF57)/(3+8+4+3+4+8+3+4),(3*T57+8*U57+4*V57+3*W57+4*X57+3*Y57+3*Z57+3*AA57+4*AB57)/(3+8+4+3+4+3+3+3+4)) -> 3.942857143 | AH57: =CEILING(M57,0.5) -> 8.5 | AI57: =CEILING(S57,0.5) -> 2 | AJ57: =CEILING(AG57,0.5) -> 4 | AK57: =(10*AH57+8*AI57+12*AJ57)/30 -> 4.966666667 | AL57: =(10*M57+8*S57+12*AG57)/30 -> 4.814920635
A58: 55 | B58: Hartock | C58: Anthony François | D58: Cergy | E58: 13 | F58: 17.5 | G58: 14 | H58: 16 | I58: 16.5 | J58: 16.5 | K58: 15 | L58: 17 | M58: =(6*E58+5*F58+4*G58+4*H58+4*I58+6*J58+4*K58+3*L58)/(6+5+4+4+4+6+4+3) -> 15.59722222 | N58: 8.5 | O58: 8.5 | P58: 11 | Q58: 14 | R58: 15.5 | S58: =(5*N58+4*O58+2*P58+6*Q58+3*R58)/(5+4+2+6+3) -> 11.45 | T58: 19.5 | U58: 14.5 | V58: 13 | W58: 12 | X58: 5 | Y58: 4 | Z58: 14.4 | AA58: 14 | AB58: 14 | AG58: =IF(AC58,(3*T58+8*U58+4*V58+3*W58+4*AC58+8*AD58+3*AE58+4*AF58)/(3+8+4+3+4+8+3+4),(3*T58+8*U58+4*V58+3*W58+4*X58+3*Y58+3*Z58+3*AA58+4*AB58)/(3+8+4+3+4+3+3+3+4)) -> 12.44857143 | AH58: =CEILING(M58,0.5) -> 16 | AI58: =CEILING(S58,0.5) -> 11.5 | AJ58: =CEILING(AG58,0.5) -> 12.5 | AK58: =(10*AH58+8*AI58+12*AJ58)/30 -> 13.4 | AL58: =(10*M58+8*S58+12*AG58)/30 -> 13.23183598
A59: 56 | B59: Henn | C59: Thomas | D59: Cergy | E59: 16.25 | F59: 19.4 | G59: 14.5 | H59: 15 | I59: 11.5 | J59: 9.1 | K59: 16 | L59: 17.5 | M59: =(6*E59+5*F59+4*G59+4*H59+4*I59+6*J59+4*K59+3*L59)/(6+5+4+4+4+6+4+3) -> 14.71111111 | N59: 11 | O59: 17.5 | P59: 17 | Q59: 19 | R59: 12.5 | S59: =(5*N59+4*O59+2*P59+6*Q59+3*R59)/(5+4+2+6+3) -> 15.525 | T59: 13.5 | U59: 11.5 | V59: 6 | W59: 17 | X59: 17 | Y59: 14 | Z59: 13.9 | AA59: 18 | AB59: 11 | AG59: =IF(AC59,(3*T59+8*U59+4*V59+3*W59+4*AC59+8*AD59+3*AE59+4*AF59)/(3+8+4+3+4+8+3+4),(3*T59+8*U59+4*V59+3*W59+4*X59+3*Y59+3*Z59+3*AA59+4*AB59)/(3+8+4+3+4+3+3+3+4)) -> 13.06285714 | AH59: =CEILING(M59,0.5) -> 15 | AI59: =CEILING(S59,0.5) -> 16 | AJ59: =CEILING(AG59,0.5) -> 13.5 | AK59: =(10*AH59+8*AI59+12*AJ59)/30 -> 14.66666667 | AL59: =(10*M59+8*S59+12*AG59)/30 -> 14.26884656
A60: 57 | B60: Hiraclides | C60: Nicolas | D60: Cergy | E60: 14.92 | F60: 18.8 | G60: 15 | H60: 16 | I60: 14.5 | J60: 10 | K60: 16 | L60: 16 | M60: =(6*E60+5*F60+4*G60+4*H60+4*I60+6*J60+4*K60+3*L60)/(6+5+4+4+4+6+4+3) -> 14.93111111 | N60: 8.5 | O60: 8 | P60: 6.5 | Q60: 12.75 | R60: 8 | S60: =(5*N60+4*O60+2*P60+6*Q60+3*R60)/(5+4+2+6+3) -> 9.4 | T60: 14.5 | U60: 12.5 | V60: 13.5 | W60: 16 | X60: 7 | Y60: 10.5 | Z60: 13.3 | AA60: 10.5 | AB60: 7.5 | AG60: =IF(AC60,(3*T60+8*U60+4*V60+3*W60+4*AC60+8*AD60+3*AE60+4*AF60)/(3+8+4+3+4+8+3+4),(3*T60+8*U60+4*V60+3*W60+4*X60+3*Y60+3*Z60+3*AA60+4*AB60)/(3+8+4+3+4+3+3+3+4)) -> 11.61142857 | AH60: =CEILING(M60,0.5) -> 15 | AI60: =CEILING(S60,0.5) -> 9.5 | AJ60: =CEILING(AG60,0.5) -> 12 | AK60: =(10*AH60+8*AI60+12*AJ60)/30 -> 12.33333333 | AL60: =(10*M60+8*S60+12*AG60)/30 -> 12.12827513
A61: 58 | B61: Hyacinthe | C61: Clément | D61: Cergy | E61: 7 | F61: 12.8 | G61: 12 | H61: 14.5 | I61: 14.5 | J61: 16.5 | L61: 17 | M61: =(6*E61+5*F61+4*G61+4*H61+4*I61+6*J61+4*K61+3*L61)/(6+5+4+4+4+6+4+3) -> 11.66666667 | N61: 7.5 | O61: 6 | P61: 5.5 | Q61: 8 | R61: 6.5 | S61: =(5*N61+4*O61+2*P61+6*Q61+3*R61)/(5+4+2+6+3) -> 7 | T61: 3 | U61: 5 | V61: 2 | W61: 12 | X61: 2 | Y61: 9 | Z61: 10.8 | AA61: 14.5 | AB61: 2 | AG61: =IF(AC61,(3*T61+8*U61+4*V61+3*W61+4*AC61+8*AD61+3*AE61+4*AF61)/(3+8+4+3+4+8+3+4),(3*T61+8*U61+4*V61+3*W61+4*X61+3*Y61+3*Z61+3*AA61+4*AB61)/(3+8+4+3+4+3+3+3+4)) -> 6.054285714 | AH61: =CEILING(M61,0.5) -> 12 | AI61: =CEILING(S61,0.5) -> 7 | AJ61: =CEILING(AG61,0.5) -> 6.5 | AK61: =(10*AH61+8*AI61+12*AJ61)/30 -> 8.466666667 | AL61: =(10*M61+8*S61+12*AG61)/30 -> 8.177269841
A62: 59 | B62: Illy | C62: Lucas | D62: Cergy | E62: 13.1 | F62: 11.7 | G62: 12.5 | H62: 13.5 | I62: 14.5 | J62: 0 | K62: 12.5 | L62: 15 | M62: =(6*E62+5*F62+4*G62+4*H62+4*I62+6*J62+4*K62+3*L62)/(6+5+4+4+4+6+4+3) -> 10.94722222 | N62: 9 | O62: 7.5 | R62: 1 | S62: =(5*N62+4*O62+2*P62+6*Q62+3*R62)/(5+4+2+6+3) -> 3.9 | T62: 5.5 | U62: 8.5 | V62: 10 | W62: 11 | AC62: 6 | AD62: 3 | AE62: 5.5 | AF62: 6 | AG62: =IF(AC62,(3*T62+8*U62+4*V62+3*W62+4*AC62+8*AD62+3*AE62+4*AF62)/(3+8+4+3+4+8+3+4),(3*T62+8*U62+4*V62+3*W62+4*X62+3*Y62+3*Z62+3*AA62+4*AB62)/(3+8+4+3+4+3+3+3+4)) -> 6.648648649 | AH62: =CEILING(M62,0.5) -> 11 | AI62: =CEILING(S62,0.5) -> 4 | AJ62: =CEILING(AG62,0.5) -> 7 | AK62: =(10*AH62+8*AI62+12*AJ62)/30 -> 7.533333333 | AL62: =(10*M62+8*S62+12*AG62)/30 -> 7.348533534
A63: 60 | B63: Ingouff | C63: Christian | D63: Cergy | E63: 18.92 | F63: 14 | G63: 15.5 | H63: 15.5 | I63: 14.5 | J63: 13 | K63: 16 | L63: 18 | M63: =(6*E63+5*F63+4*G63+4*H63+4*I63+6*J63+4*K63+3*L63)/(6+5+4+4+4+6+4+3) -> 15.59777778 | N63: 13.5 | O63: 15 | P63: 14 | Q63: 14.5 | R63: 8 | S63: =(5*N63+4*O63+2*P63+6*Q63+3*R63)/(5+4+2+6+3) -> 13.325 | T63: 10.5 | U63: 5 | V63: 11.5 | W63: 15 | X63: 2.5 | Y63: 16 | Z63: 13.7 | AA63: 15 | AB63: 4 | AG63: =IF(AC63,(3*T63+8*U63+4*V63+3*W63+4*AC63+8*AD63+3*AE63+4*AF63)/(3+8+4+3+4+8+3+4),(3*T63+8*U63+4*V63+3*W63+4*X63+3*Y63+3*Z63+3*AA63+4*AB63)/(3+8+4+3+4+3+3+3+4)) -> 9.217142857 | AH63: =CEILING(M63,0.5) -> 16 | AI63: =CEILING(S63,0.5) -> 13.5 | AJ63: =CEILING(AG63,0.5) -> 9.5 | AK63: =(10*AH63+8*AI63+12*AJ63)/30 -> 12.73333333 | AL63: =(10*M63+8*S63+12*AG63)/30 -> 12.43944974
A64: 61 | B64: Jarret | C64: Guillaume | D64: Cergy | E64: 14 | F64: 7 | G64: 17.5 | H64: 12 | I64: 16.5 | J64: 12.1 | L64: 14 | M64: =(6*E64+5*F64+4*G64+4*H64+4*I64+6*J64+4*K64+3*L64)/(6+5+4+4+4+6+4+3) -> 11.6 | N64: 5.5 | O64: 0.5 | P64: 7 | Q64: 7.5 | R64: 5.5 | S64: =(5*N64+4*O64+2*P64+6*Q64+3*R64)/(5+4+2+6+3) -> 5.25 | T64: 12.5 | U64: 3 | V64: 6.5 | W64: 13 | Y64: 2 | Z64: 11.5 | AA64: 13 | AB64: 3.5 | AG64: =IF(AC64,(3*T64+8*U64+4*V64+3*W64+4*AC64+8*AD64+3*AE64+4*AF64)/(3+8+4+3+4+8+3+4),(3*T64+8*U64+4*V64+3*W64+4*X64+3*Y64+3*Z64+3*AA64+4*AB64)/(3+8+4+3+4+3+3+3+4)) -> 6.285714286 | AH64: =CEILING(M64,0.5) -> 12 | AI64: =CEILING(S64,0.5) -> 5.5 | AJ64: =CEILING(AG64,0.5) -> 6.5 | AK64: =(10*AH64+8*AI64+12*AJ64)/30 -> 8.066666667 | AL64: =(10*M64+8*S64+12*AG64)/30 -> 7.780952381
A65: 62 | B65: Jeannerod | C65: Antoine | D65: Cergy | E65: 16.21 | F65: 18.25 | G65: 15.5 | H65: 14 | I65: 14.5 | J65: 13 | K65: 12.5 | L65: 14 | M65: =(6*E65+5*F65+4*G65+4*H65+4*I65+6*J65+4*K65+3*L65)/(6+5+4+4+4+6+4+3) -> 14.8475 | N65: 14 | O65: 10.5 | P65: 8 | Q65: 8.5 | R65: 5 | S65: =(5*N65+4*O65+2*P65+6*Q65+3*R65)/(5+4+2+6+3) -> 9.7 | T65: 8.5 | U65: 10 | V65: 12.5 | W65: 13 | X65: 11 | Y65: 5 | Z65: 13 | AA65: 17.5 | AB65: 15.5 | AG65: =IF(AC65,(3*T65+8*U65+4*V65+3*W65+4*AC65+8*AD65+3*AE65+4*AF65)/(3+8+4+3+4+8+3+4),(3*T65+8*U65+4*V65+3*W65+4*X65+3*Y65+3*Z65+3*AA65+4*AB65)/(3+8+4+3+4+3+3+3+4)) -> 11.62857143 | AH65: =CEILING(M65,0.5) -> 15 | AI65: =CEILING(S65,0.5) -> 10 | AJ65: =CEILING(AG65,0.5) -> 12 | AK65: =(10*AH65+8*AI65+12*AJ65)/30 -> 12.46666667 | AL65: =(10*M65+8*S65+12*AG65)/30 -> 12.1872619
A66: 63 | B66: Jeannin | C66: Arthur | D66: Cergy | E66: 17 | F66: 13.5 | G66: 12 | H66: 14.5 | I66: 15 | J66: 9.1 | L66: 17 | M66: =(6*E66+5*F66+4*G66+4*H66+4*I66+6*J66+4*K66+3*L66)/(6+5+4+4+4+6+4+3) -> 12.25277778 | N66: 5 | O66: 6 | P66: 4 | Q66: 5 | R66: 3.5 | S66: =(5*N66+4*O66+2*P66+6*Q66+3*R66)/(5+4+2+6+3) -> 4.875 | T66: 9 | U66: 10.5 | V66: 12.5 | W66: 11 | X66: 1 | Y66: 0 | Z66: 11.5 | AA66: 13 | AB66: 0.5 | AG66: =IF(AC66,(3*T66+8*U66+4*V66+3*W66+4*AC66+8*AD66+3*AE66+4*AF66)/(3+8+4+3+4+8+3+4),(3*T66+8*U66+4*V66+3*W66+4*X66+3*Y66+3*Z66+3*AA66+4*AB66)/(3+8+4+3+4+3+3+3+4)) -> 7.814285714 | AH66: =CEILING(M66,0.5) -> 12.5 | AI66: =CEILING(S66,0.5) -> 5 | AJ66: =CEILING(AG66,0.5) -> 8 | AK66: =(10*AH66+8*AI66+12*AJ66)/30 -> 8.7 | AL66: =(10*M66+8*S66+12*AG66)/30 -> 8.509973545
A67: 64 | B67: Jutard | C67: Pierre | D67: Cergy | E67: 14.65 | F67: 19 | G67: 13.5 | H67: 14 | I67: 13 | J67: 13.5 | K67: 12.5 | L67: 18 | M67: =(6*E67+5*F67+4*G67+4*H67+4*I67+6*J67+4*K67+3*L67)/(6+5+4+4+4+6+4+3) -> 14.71944444 | N67: 4 | O67: 9.5 | P67: 7 | Q67: 8.75 | R67: 5.5 | S67: =(5*N67+4*O67+2*P67+6*Q67+3*R67)/(5+4+2+6+3) -> 7.05 | T67: 17 | U67: 12.5 | V67: 15 | W67: 11 | AC67: 14.5 | AD67: 9 | AE67: 10 | AF67: 16 | AG67: =IF(AC67,(3*T67+8*U67+4*V67+3*W67+4*AC67+8*AD67+3*AE67+4*AF67)/(3+8+4+3+4+8+3+4),(3*T67+8*U67+4*V67+3*W67+4*X67+3*Y67+3*Z67+3*AA67+4*AB67)/(3+8+4+3+4+3+3+3+4)) -> 12.64864865 | AH67: =CEILING(M67,0.5) -> 15 | AI67: =CEILING(S67,0.5) -> 7.5 | AJ67: =CEILING(AG67,0.5) -> 13 | AK67: =(10*AH67+8*AI67+12*AJ67)/30 -> 12.2 | AL67: =(10*M67+8*S67+12*AG67)/30 -> 11.84594094
A68: 65 | B68: Kembi | C68: Selim | D68: Cergy | E68: 19 | G68: 12.5 | H68: 12 | I68: 15.5 | J68: 0 | L68: 13 | M68: =(6*E68+5*F68+4*G68+4*H68+4*I68+6*J68+4*K68+3*L68)/(6+5+4+4+4+6+4+3) -> 8.694444444 | N68: 8 | O68: 11 | P68: 5 | Q68: 8.75 | R68: 5.5 | S68: =(5*N68+4*O68+2*P68+6*Q68+3*R68)/(5+4+2+6+3) -> 8.15 | T68: 14 | U68: 4.5 | V68: 14 | W68: 14 | AC68: 18.5 | AD68: 6.5 | AE68: 12.5 | AF68: 19 | AG68: =IF(AC68,(3*T68+8*U68+4*V68+3*W68+4*AC68+8*AD68+3*AE68+4*AF68)/(3+8+4+3+4+8+3+4),(3*T68+8*U68+4*V68+3*W68+4*X68+3*Y68+3*Z68+3*AA68+4*AB68)/(3+8+4+3+4+3+3+3+4)) -> 11.22972973 | AH68: =CEILING(M68,0.5) -> 9 | AI68: =CEILING(S68,0.5) -> 8.5 | AJ68: =CEILING(AG68,0.5) -> 11.5 | AK68: =(10*AH68+8*AI68+12*AJ68)/30 -> 9.866666667 | AL68: =(10*M68+8*S68+12*AG68)/30 -> 9.563373373
A69: 66 | B69: Koc | C69: Murat | D69: Cergy | E69: 16.67 | F69: 19.2 | G69: 14 | H69: 14.5 | I69: 16.5 | J69: 15 | K69: 12.5 | L69: 17.5 | M69: =(6*E69+5*F69+4*G69+4*H69+4*I69+6*J69+4*K69+3*L69)/(6+5+4+4+4+6+4+3) -> 15.79222222 | N69: 6 | O69: 9.5 | P69: 12 | Q69: 11.5 | R69: 2 | S69: =(5*N69+4*O69+2*P69+6*Q69+3*R69)/(5+4+2+6+3) -> 8.35 | T69: 11.5 | U69: 14 | V69: 10 | W69: 15 | X69: 0.5 | Y69: 4 | Z69: 15.2 | AA69: 15.5 | AB69: 5 | AG69: =IF(AC69,(3*T69+8*U69+4*V69+3*W69+4*AC69+8*AD69+3*AE69+4*AF69)/(3+8+4+3+4+8+3+4),(3*T69+8*U69+4*V69+3*W69+4*X69+3*Y69+3*Z69+3*AA69+4*AB69)/(3+8+4+3+4+3+3+3+4)) -> 10.21714286 | AH69: =CEILING(M69,0.5) -> 16 | AI69: =CEILING(S69,0.5) -> 8.5 | AJ69: =CEILING(AG69,0.5) -> 10.5 | AK69: =(10*AH69+8*AI69+12*AJ69)/30 -> 11.8 | AL69: =(10*M69+8*S69+12*AG69)/30 -> 11.57759788
A70: 67 | B70: Kowaleswski | C70: Matthieu | D70: Cergy | E70: 12.4 | F70: 12 | G70: 15.5 | H70: 16 | I70: 15 | J70: 9.1 | K70: 16 | L70: 17 | M70: =(6*E70+5*F70+4*G70+4*H70+4*I70+6*J70+4*K70+3*L70)/(6+5+4+4+4+6+4+3) -> 13.61111111 | N70: 9 | O70: 9.5 | P70: 14.5 | Q70: 18.5 | R70: 12 | S70: =(5*N70+4*O70+2*P70+6*Q70+3*R70)/(5+4+2+6+3) -> 12.95 | T70: 16.5 | U70: 12 | V70: 12 | W70: 19 | X70: 6 | Y70: 19.5 | Z70: 18.5 | AA70: 11.5 | AB70: 5.5 | AG70: =IF(AC70,(3*T70+8*U70+4*V70+3*W70+4*AC70+8*AD70+3*AE70+4*AF70)/(3+8+4+3+4+8+3+4),(3*T70+8*U70+4*V70+3*W70+4*X70+3*Y70+3*Z70+3*AA70+4*AB70)/(3+8+4+3+4+3+3+3+4)) -> 12.71428571 | AH70: =CEILING(M70,0.5) -> 14 | AI70: =CEILING(S70,0.5) -> 13 | AJ70: =CEILING(AG70,0.5) -> 13 | AK70: =(10*AH70+8*AI70+12*AJ70)/30 -> 13.33333333 | AL70: =(10*M70+8*S70+12*AG70)/30 -> 13.07608466
A71: 68 | B71: Labatie | C71: Louise | D71: Cergy | E71: 16 | F71: 20 | G71: 10 | H71: 17 | I71: 14.5 | J71: 17.1 | K71: 13.5 | L71: 17 | M71: =(6*E71+5*F71+4*G71+4*H71+4*I71+6*J71+4*K71+3*L71)/(6+5+4+4+4+6+4+3) -> 15.82222222 | N71: 8.5 | O71: 11 | P71: 10.5 | Q71: 5.5 | R71: 3.5 | S71: =(5*N71+4*O71+2*P71+6*Q71+3*R71)/(5+4+2+6+3) -> 7.55 | T71: 12.5 | U71: 8 | V71: 8.5 | W71: 15 | X71: 2.5 | Y71: 3 | Z71: 12.5 | AA71: 11.5 | AB71: 1.5 | AG71: =IF(AC71,(3*T71+8*U71+4*V71+3*W71+4*AC71+8*AD71+3*AE71+4*AF71)/(3+8+4+3+4+8+3+4),(3*T71+8*U71+4*V71+3*W71+4*X71+3*Y71+3*Z71+3*AA71+4*AB71)/(3+8+4+3+4+3+3+3+4)) -> 7.928571429 | AH71: =CEILING(M71,0.5) -> 16 | AI71: =CEILING(S71,0.5) -> 8 | AJ71: =CEILING(AG71,0.5) -> 8 | AK71: =(10*AH71+8*AI71+12*AJ71)/30 -> 10.66666667 | AL71: =(10*M71+8*S71+12*AG71)/30 -> 10.45883598
A72: 69 | B72: Laleye | C72: Mohamed | D72: Cergy | E72: 12.5 | F72: 7 | G72: 9 | H72: 0 | I72: 13.5 | J72: 12.1 | K72: 13 | L72: 16 | M72: =(6*E72+5*F72+4*G72+4*H72+4*I72+6*J72+4*K72+3*L72)/(6+5+4+4+4+6+4+3) -> 10.35 | N72: 0.5 | O72: 8 | P72: 5.5 | Q72: 5.5 | R72: 2 | S72: =(5*N72+4*O72+2*P72+6*Q72+3*R72)/(5+4+2+6+3) -> 4.225 | T72: 11.5 | U72: 7 | V72: 14.5 | W72: 14 | AC72: 7 | AD72: 4.5 | AE72: 11 | AF72: 6.5 | AG72: =IF(AC72,(3*T72+8*U72+4*V72+3*W72+4*AC72+8*AD72+3*AE72+4*AF72)/(3+8+4+3+4+8+3+4),(3*T72+8*U72+4*V72+3*W72+4*X72+3*Y72+3*Z72+3*AA72+4*AB72)/(3+8+4+3+4+3+3+3+4)) -> 8.472972973 | AH72: =CEILING(M72,0.5) -> 10.5 | AI72: =CEILING(S72,0.5) -> 4.5 | AJ72: =CEILING(AG72,0.5) -> 8.5 | AK72: =(10*AH72+8*AI72+12*AJ72)/30 -> 8.1 | AL72: =(10*M72+8*S72+12*AG72)/30 -> 7.965855856
A73: 70 | B73: Lannuel | C73: Nicolas | D73: Cergy | E73: 10 | F73: 0 | G73: 13.5 | H73: 16 | I73: 0 | J73: 15 | K73: 14 | L73: 14 | M73: =(6*E73+5*F73+4*G73+4*H73+4*I73+6*J73+4*K73+3*L73)/(6+5+4+4+4+6+4+3) -> 10.16666667 | N73: 3.5 | O73: 9.5 | P73: 0.5 | Q73: 11.25 | R73: 1 | S73: =(5*N73+4*O73+2*P73+6*Q73+3*R73)/(5+4+2+6+3) -> 6.35 | T73: 8 | U73: 2 | V73: 0.5 | W73: 7 | X73: 0 | Y73: 5.5 | Z73: 6.5 | AA73: 13.5 | AB73: 0 | AG73: =IF(AC73,(3*T73+8*U73+4*V73+3*W73+4*AC73+8*AD73+3*AE73+4*AF73)/(3+8+4+3+4+8+3+4),(3*T73+8*U73+4*V73+3*W73+4*X73+3*Y73+3*Z73+3*AA73+4*AB73)/(3+8+4+3+4+3+3+3+4)) -> 3.985714286 | AH73: =CEILING(M73,0.5) -> 10.5 | AI73: =CEILING(S73,0.5) -> 6.5 | AJ73: =CEILING(AG73,0.5) -> 4 | AK73: =(10*AH73+8*AI73+12*AJ73)/30 -> 6.833333333 | AL73: =(10*M73+8*S73+12*AG73)/30 -> 6.676507937
A74: 71 | B74: Lasnier | C74: Robin | D74: Cergy | E74: 7.4 | F74: 11.5 | G74: 10.5 | H74: 13.5 | I74: 12.5 | J74: 0 | K74: 11.5 | L74: 16 | M74: =(6*E74+5*F74+4*G74+4*H74+4*I74+6*J74+4*K74+3*L74)/(6+5+4+4+4+6+4+3) -> 9.497222222 | N74: 5 | O74: 9 | P74: 3 | Q74: 3.5 | R74: 0 | S74: =(5*N74+4*O74+2*P74+6*Q74+3*R74)/(5+4+2+6+3) -> 4.4 | T74: 10 | U74: 1.5 | V74: 12 | W74: 9 | X74: 5 | Y74: 3.5 | Z74: 11.4 | AA74: 14.5 | AB74: 6 | AG74: =IF(AC74,(3*T74+8*U74+4*V74+3*W74+4*AC74+8*AD74+3*AE74+4*AF74)/(3+8+4+3+4+8+3+4),(3*T74+8*U74+4*V74+3*W74+4*X74+3*Y74+3*Z74+3*AA74+4*AB74)/(3+8+4+3+4+3+3+3+4)) -> 7.12 | AH74: =CEILING(M74,0.5) -> 9.5 | AI74: =CEILING(S74,0.5) -> 4.5 | AJ74: =CEILING(AG74,0.5) -> 7.5 | AK74: =(10*AH74+8*AI74+12*AJ74)/30 -> 7.366666667 | AL74: =(10*M74+8*S74+12*AG74)/30 -> 7.187074074
A75: 72 | B75: Lasri | C75: Othman | D75: Cergy | E75: 17 | F75: 15.6 | G75: 11 | H75: 16 | I75: 12.5 | J75: 15.6 | K75: 12 | L75: 17 | M75: =(6*E75+5*F75+4*G75+4*H75+4*I75+6*J75+4*K75+3*L75)/(6+5+4+4+4+6+4+3) -> 14.73888889 | N75: 5.5 | O75: 8 | P75: 10 | Q75: 9 | R75: 7 | S75: =(5*N75+4*O75+2*P75+6*Q75+3*R75)/(5+4+2+6+3) -> 7.725 | T75: 17 | U75: 12.5 | V75: 10 | W75: 17 | AC75: 8.5 | AD75: 6.5 | AE75: 6 | AF75: 9 | AG75: =IF(AC75,(3*T75+8*U75+4*V75+3*W75+4*AC75+8*AD75+3*AE75+4*AF75)/(3+8+4+3+4+8+3+4),(3*T75+8*U75+4*V75+3*W75+4*X75+3*Y75+3*Z75+3*AA75+4*AB75)/(3+8+4+3+4+3+3+3+4)) -> 10.32432432 | AH75: =CEILING(M75,0.5) -> 15 | AI75: =CEILING(S75,0.5) -> 8 | AJ75: =CEILING(AG75,0.5) -> 10.5 | AK75: =(10*AH75+8*AI75+12*AJ75)/30 -> 11.33333333 | AL75: =(10*M75+8*S75+12*AG75)/30 -> 11.10269269
A76: 73 | B76: Lebel | C76: Vishnu | D76: Cergy | E76: 17 | F76: 14.6 | G76: 10.5 | H76: 15.5 | I76: 12.5 | J76: 10.5 | L76: 16 | M76: =(6*E76+5*F76+4*G76+4*H76+4*I76+6*J76+4*K76+3*L76)/(6+5+4+4+4+6+4+3) -> 12.22222222 | N76: 0 | O76: 5 | P76: 2.5 | Q76: 1.25 | R76: 5.5 | S76: =(5*N76+4*O76+2*P76+6*Q76+3*R76)/(5+4+2+6+3) -> 2.45 | T76: 16 | U76: 3.5 | V76: 9 | W76: 12 | AC76: 4.5 | AD76: 1 | AE76: 1 | AF76: 0.5 | AG76: =IF(AC76,(3*T76+8*U76+4*V76+3*W76+4*AC76+8*AD76+3*AE76+4*AF76)/(3+8+4+3+4+8+3+4),(3*T76+8*U76+4*V76+3*W76+4*X76+3*Y76+3*Z76+3*AA76+4*AB76)/(3+8+4+3+4+3+3+3+4)) -> 4.837837838 | AH76: =CEILING(M76,0.5) -> 12.5 | AI76: =CEILING(S76,0.5) -> 2.5 | AJ76: =CEILING(AG76,0.5) -> 5 | AK76: =(10*AH76+8*AI76+12*AJ76)/30 -> 6.833333333 | AL76: =(10*M76+8*S76+12*AG76)/30 -> 6.662542543
A77: 74 | B77: Legrand | C77: Benjamin | D77: Cergy | E77: 17 | F77: 13.6 | G77: 11 | H77: 15 | I77: 14 | J77: 10.5 | K77: 13 | L77: 17 | M77: =(6*E77+5*F77+4*G77+4*H77+4*I77+6*J77+4*K77+3*L77)/(6+5+4+4+4+6+4+3) -> 13.77777778 | N77: 7.5 | O77: 7.5 | P77: 5.5 | Q77: 3.25 | R77: 9 | S77: =(5*N77+4*O77+2*P77+6*Q77+3*R77)/(5+4+2+6+3) -> 6.25 | T77: 11.5 | U77: 11 | V77: 10 | W77: 16 | X77: 0 | Y77: 2.5 | Z77: 12.8 | AA77: 15.5 | AB77: 2 | AG77: =IF(AC77,(3*T77+8*U77+4*V77+3*W77+4*AC77+8*AD77+3*AE77+4*AF77)/(3+8+4+3+4+8+3+4),(3*T77+8*U77+4*V77+3*W77+4*X77+3*Y77+3*Z77+3*AA77+4*AB77)/(3+8+4+3+4+3+3+3+4)) -> 8.882857143 | AH77: =CEILING(M77,0.5) -> 14 | AI77: =CEILING(S77,0.5) -> 6.5 | AJ77: =CEILING(AG77,0.5) -> 9 | AK77: =(10*AH77+8*AI77+12*AJ77)/30 -> 10 | AL77: =(10*M77+8*S77+12*AG77)/30 -> 9.812402116
A78: 75 | B78: Lemasson | C78: Brian | D78: Cergy | E78: 16 | F78: 11 | G78: 13.5 | H78: 12 | I78: 8.5 | J78: 12.1 | L78: 15 | M78: =(6*E78+5*F78+4*G78+4*H78+4*I78+6*J78+4*K78+3*L78)/(6+5+4+4+4+6+4+3) -> 11.23888889 | N78: 2 | O78: 8.5 | P78: 7.5 | Q78: 5.25 | R78: 3.5 | S78: =(5*N78+4*O78+2*P78+6*Q78+3*R78)/(5+4+2+6+3) -> 5.05 | T78: 16 | U78: 9 | V78: 9.5 | W78: 12 | X78: 0.5 | Y78: 2 | Z78: 12.7 | AA78: 3.5 | AB78: 1 | AG78: =IF(AC78,(3*T78+8*U78+4*V78+3*W78+4*AC78+8*AD78+3*AE78+4*AF78)/(3+8+4+3+4+8+3+4),(3*T78+8*U78+4*V78+3*W78+4*X78+3*Y78+3*Z78+3*AA78+4*AB78)/(3+8+4+3+4+3+3+3+4)) -> 7.274285714 | AH78: =CEILING(M78,0.5) -> 11.5 | AI78: =CEILING(S78,0.5) -> 5.5 | AJ78: =CEILING(AG78,0.5) -> 7.5 | AK78: =(10*AH78+8*AI78+12*AJ78)/30 -> 8.3 | AL78: =(10*M78+8*S78+12*AG78)/30 -> 8.002677249
A79: 76 | B79: Lepicard | C79: Céline | D79: Cergy | E79: 14 | F79: 19 | G79: 10.5 | H79: 13.5 | I79: 16 | J79: 14.4 | K79: 13 | L79: 15.5 | M79: =(6*E79+5*F79+4*G79+4*H79+4*I79+6*J79+4*K79+3*L79)/(6+5+4+4+4+6+4+3) -> 14.55277778 | N79: 10 | O79: 5 | P79: 12 | Q79: 11.5 | R79: 7.5 | S79: =(5*N79+4*O79+2*P79+6*Q79+3*R79)/(5+4+2+6+3) -> 9.275 | T79: 6.5 | U79: 8 | V79: 3 | W79: 5 | X79: 0 | Y79: 3 | Z79: 12.4 | AA79: 10.5 | AB79: 3.5 | AG79: =IF(AC79,(3*T79+8*U79+4*V79+3*W79+4*AC79+8*AD79+3*AE79+4*AF79)/(3+8+4+3+4+8+3+4),(3*T79+8*U79+4*V79+3*W79+4*X79+3*Y79+3*Z79+3*AA79+4*AB79)/(3+8+4+3+4+3+3+3+4)) -> 5.777142857 | AH79: =CEILING(M79,0.5) -> 15 | AI79: =CEILING(S79,0.5) -> 9.5 | AJ79: =CEILING(AG79,0.5) -> 6 | AK79: =(10*AH79+8*AI79+12*AJ79)/30 -> 9.933333333 | AL79: =(10*M79+8*S79+12*AG79)/30 -> 9.635116402
A80: 77 | B80: Lesieur | C80: Christophe | D80: Cergy | E80: 14.83 | F80: 13 | G80: 14 | H80: 16 | I80: 14.5 | J80: 15 | K80: 16 | L80: 17 | M80: =(6*E80+5*F80+4*G80+4*H80+4*I80+6*J80+4*K80+3*L80)/(6+5+4+4+4+6+4+3) -> 14.91611111 | N80: 11.5 | O80: 13.5 | P80: 13.5 | Q80: 16 | R80: 8 | S80: =(5*N80+4*O80+2*P80+6*Q80+3*R80)/(5+4+2+6+3) -> 12.925 | T80: 5.5 | U80: 10.5 | V80: 10 | W80: 16 | X80: 2 | Y80: 17 | Z80: 14 | AA80: 16.5 | AB80: 15 | AG80: =IF(AC80,(3*T80+8*U80+4*V80+3*W80+4*AC80+8*AD80+3*AE80+4*AF80)/(3+8+4+3+4+8+3+4),(3*T80+8*U80+4*V80+3*W80+4*X80+3*Y80+3*Z80+3*AA80+4*AB80)/(3+8+4+3+4+3+3+3+4)) -> 11.4 | AH80: =CEILING(M80,0.5) -> 15 | AI80: =CEILING(S80,0.5) -> 13 | AJ80: =CEILING(AG80,0.5) -> 11.5 | AK80: =(10*AH80+8*AI80+12*AJ80)/30 -> 13.06666667 | AL80: =(10*M80+8*S80+12*AG80)/30 -> 12.9787037
A81: 78 | B81: Lesignac | C81: Damien | D81: Cergy | E81: 14.87 | F81: 16 | G81: 13 | H81: 15.5 | I81: 3.5 | J81: 11.2 | K81: 13 | L81: 15 | M81: =(6*E81+5*F81+4*G81+4*H81+4*I81+6*J81+4*K81+3*L81)/(6+5+4+4+4+6+4+3) -> 12.81722222 | N81: 11.5 | O81: 12.5 | P81: 13 | Q81: 12.75 | R81: 11.5 | S81: =(5*N81+4*O81+2*P81+6*Q81+3*R81)/(5+4+2+6+3) -> 12.225 | T81: 15.5 | U81: 10 | V81: 8 | W81: 16 | X81: 13.5 | Y81: 10.5 | Z81: 13 | AA81: 14 | AB81: 8.5 | AG81: =IF(AC81,(3*T81+8*U81+4*V81+3*W81+4*AC81+8*AD81+3*AE81+4*AF81)/(3+8+4+3+4+8+3+4),(3*T81+8*U81+4*V81+3*W81+4*X81+3*Y81+3*Z81+3*AA81+4*AB81)/(3+8+4+3+4+3+3+3+4)) -> 11.62857143 | AH81: =CEILING(M81,0.5) -> 13 | AI81: =CEILING(S81,0.5) -> 12.5 | AJ81: =CEILING(AG81,0.5) -> 12 | AK81: =(10*AH81+8*AI81+12*AJ81)/30 -> 12.46666667 | AL81: =(10*M81+8*S81+12*AG81)/30 -> 12.18383598
A82: 79 | B82: Leterme | C82: Manon | D82: Cergy | E82: 14.4 | F82: 8 | G82: 8 | H82: 15.5 | I82: 2.5 | J82: 15 | K82: 13 | L82: 18 | M82: =(6*E82+5*F82+4*G82+4*H82+4*I82+6*J82+4*K82+3*L82)/(6+5+4+4+4+6+4+3) -> 11.84444444 | N82: 10 | O82: 11 | P82: 4.5 | Q82: 7 | R82: 2 | S82: =(5*N82+4*O82+2*P82+6*Q82+3*R82)/(5+4+2+6+3) -> 7.55 | T82: 9.5 | U82: 10 | V82: 6.5 | W82: 17 | X82: 5.5 | Y82: 0 | Z82: 10.5 | AA82: 14.5 | AB82: 9 | AG82: =IF(AC82,(3*T82+8*U82+4*V82+3*W82+4*AC82+8*AD82+3*AE82+4*AF82)/(3+8+4+3+4+8+3+4),(3*T82+8*U82+4*V82+3*W82+4*X82+3*Y82+3*Z82+3*AA82+4*AB82)/(3+8+4+3+4+3+3+3+4)) -> 9.1 | AH82: =CEILING(M82,0.5) -> 12 | AI82: =CEILING(S82,0.5) -> 8 | AJ82: =CEILING(AG82,0.5) -> 9.5 | AK82: =(10*AH82+8*AI82+12*AJ82)/30 -> 9.933333333 | AL82: =(10*M82+8*S82+12*AG82)/30 -> 9.601481481
A83: 80 | B83: Lmallasse | C83: Ismail | D83: Cergy | E83: 7.9 | F83: 16.8 | G83: 9 | H83: 16 | I83: 10 | J83: 10 | K83: 14.5 | L83: 17 | M83: =(6*E83+5*F83+4*G83+4*H83+4*I83+6*J83+4*K83+3*L83)/(6+5+4+4+4+6+4+3) -> 12.23333333 | N83: 9 | Q83: 5.25 | R83: 0 | S83: =(5*N83+4*O83+2*P83+6*Q83+3*R83)/(5+4+2+6+3) -> 3.825 | T83: 8.5 | U83: 7.5 | V83: 8 | W83: 11 | X83: 1 | Z83: 15 | AA83: 15 | AB83: 2 | AG83: =IF(AC83,(3*T83+8*U83+4*V83+3*W83+4*AC83+8*AD83+3*AE83+4*AF83)/(3+8+4+3+4+8+3+4),(3*T83+8*U83+4*V83+3*W83+4*X83+3*Y83+3*Z83+3*AA83+4*AB83)/(3+8+4+3+4+3+3+3+4)) -> 7.214285714 | AH83: =CEILING(M83,0.5) -> 12.5 | AI83: =CEILING(S83,0.5) -> 4 | AJ83: =CEILING(AG83,0.5) -> 7.5 | AK83: =(10*AH83+8*AI83+12*AJ83)/30 -> 8.233333333 | AL83: =(10*M83+8*S83+12*AG83)/30 -> 7.983492063
A84: 81 | B84: Lonjon | C84: Sébastien | D84: Cergy | E84: 18.5 | F84: 17 | G84: 16 | H84: 16 | I84: 15 | J84: 14.4 | K84: 14 | L84: 18 | M84: =(6*E84+5*F84+4*G84+4*H84+4*I84+6*J84+4*K84+3*L84)/(6+5+4+4+4+6+4+3) -> 16.12222222 | N84: 9 | O84: 11 | P84: 11.5 | Q84: 11 | R84: 10 | S84: =(5*N84+4*O84+2*P84+6*Q84+3*R84)/(5+4+2+6+3) -> 10.4 | T84: 19.5 | U84: 13 | V84: 10 | W84: 18 | AC84: 18.5 | AD84: 8.5 | AE84: 11.5 | AF84: 13 | AG84: =IF(AC84,(3*T84+8*U84+4*V84+3*W84+4*AC84+8*AD84+3*AE84+4*AF84)/(3+8+4+3+4+8+3+4),(3*T84+8*U84+4*V84+3*W84+4*X84+3*Y84+3*Z84+3*AA84+4*AB84)/(3+8+4+3+4+3+3+3+4)) -> 13.10810811 | AH84: =CEILING(M84,0.5) -> 16.5 | AI84: =CEILING(S84,0.5) -> 10.5 | AJ84: =CEILING(AG84,0.5) -> 13.5 | AK84: =(10*AH84+8*AI84+12*AJ84)/30 -> 13.7 | AL84: =(10*M84+8*S84+12*AG84)/30 -> 13.39065065
A85: 82 | B85: Maiornikoff | C85: Sacha | D85: Cergy | E85: 10.6 | F85: 13 | G85: 0 | H85: 13 | I85: 0 | J85: 0 | K85: 3 | L85: 15 | M85: =(6*E85+5*F85+4*G85+4*H85+4*I85+6*J85+4*K85+3*L85)/(6+5+4+4+4+6+4+3) -> 6.6 | N85: 15.5 | S85: =(5*N85+4*O85+2*P85+6*Q85+3*R85)/(5+4+2+6+3) -> 3.875 | Z85: 12.7 | AG85: =IF(AC85,(3*T85+8*U85+4*V85+3*W85+4*AC85+8*AD85+3*AE85+4*AF85)/(3+8+4+3+4+8+3+4),(3*T85+8*U85+4*V85+3*W85+4*X85+3*Y85+3*Z85+3*AA85+4*AB85)/(3+8+4+3+4+3+3+3+4)) -> 1.088571429 | AH85: =CEILING(M85,0.5) -> 7 | AI85: =CEILING(S85,0.5) -> 4 | AJ85: =CEILING(AG85,0.5) -> 1.5 | AK85: =(10*AH85+8*AI85+12*AJ85)/30 -> 4 | AL85: =(10*M85+8*S85+12*AG85)/30 -> 3.668761905
A86: 83 | B86: Marx | C86: Anne-Laure | D86: Cergy | E86: 15.07 | F86: 18.5 | G86: 10 | H86: 17 | I86: 16.5 | J86: 13.5 | K86: 13.5 | L86: 17 | M86: =(6*E86+5*F86+4*G86+4*H86+4*I86+6*J86+4*K86+3*L86)/(6+5+4+4+4+6+4+3) -> 15.08111111 | N86: 7.5 | O86: 11.5 | P86: 9 | Q86: 10 | R86: 9.5 | S86: =(5*N86+4*O86+2*P86+6*Q86+3*R86)/(5+4+2+6+3) -> 9.5 | T86: 8.5 | U86: 13.5 | V86: 8.5 | W86: 13 | X86: 2.5 | Y86: 5 | Z86: 12.5 | AA86: 15 | AB86: 10.5 | AG86: =IF(AC86,(3*T86+8*U86+4*V86+3*W86+4*AC86+8*AD86+3*AE86+4*AF86)/(3+8+4+3+4+8+3+4),(3*T86+8*U86+4*V86+3*W86+4*X86+3*Y86+3*Z86+3*AA86+4*AB86)/(3+8+4+3+4+3+3+3+4)) -> 10.17142857 | AH86: =CEILING(M86,0.5) -> 15.5 | AI86: =CEILING(S86,0.5) -> 9.5 | AJ86: =CEILING(AG86,0.5) -> 10.5 | AK86: =(10*AH86+8*AI86+12*AJ86)/30 -> 11.9 | AL86: =(10*M86+8*S86+12*AG86)/30 -> 11.6289418
A87: 84 | B87: Marzouk | C87: Sami | D87: Cergy | E87: 19 | F87: 16 | G87: 12 | H87: 16 | I87: 16.5 | J87: 9.1 | K87: 12 | L87: 18 | M87: =(6*E87+5*F87+4*G87+4*H87+4*I87+6*J87+4*K87+3*L87)/(6+5+4+4+4+6+4+3) -> 14.68333333 | N87: 0.5 | O87: 4 | P87: 2.5 | Q87: 4 | R87: 3.5 | S87: =(5*N87+4*O87+2*P87+6*Q87+3*R87)/(5+4+2+6+3) -> 2.9 | U87: 11.5 | V87: 6 | W87: 4 | X87: 0 | Y87: 0 | Z87: 13.2 | AA87: 8.5 | AB87: 0 | AG87: =IF(AC87,(3*T87+8*U87+4*V87+3*W87+4*AC87+8*AD87+3*AE87+4*AF87)/(3+8+4+3+4+8+3+4),(3*T87+8*U87+4*V87+3*W87+4*X87+3*Y87+3*Z87+3*AA87+4*AB87)/(3+8+4+3+4+3+3+3+4)) -> 5.517142857 | AH87: =CEILING(M87,0.5) -> 15 | AI87: =CEILING(S87,0.5) -> 3 | AJ87: =CEILING(AG87,0.5) -> 6 | AK87: =(10*AH87+8*AI87+12*AJ87)/30 -> 8.2 | AL87: =(10*M87+8*S87+12*AG87)/30 -> 7.874634921
A88: 85 | B88: Mazouni | C88: Mohamed | D88: Cergy | E88: 15 | F88: 15.8 | G88: 10 | H88: 16 | I88: 13.5 | J88: 13 | K88: 14 | L88: 19 | M88: =(6*E88+5*F88+4*G88+4*H88+4*I88+6*J88+4*K88+3*L88)/(6+5+4+4+4+6+4+3) -> 14.38888889 | N88: 1.5 | O88: 10 | P88: 9.5 | Q88: 10.25 | R88: 7 | S88: =(5*N88+4*O88+2*P88+6*Q88+3*R88)/(5+4+2+6+3) -> 7.45 | T88: 12.5 | U88: 10.5 | V88: 4 | W88: 17 | X88: 4.5 | Y88: 3 | Z88: 11 | AA88: 8 | AB88: 2 | AG88: =IF(AC88,(3*T88+8*U88+4*V88+3*W88+4*AC88+8*AD88+3*AE88+4*AF88)/(3+8+4+3+4+8+3+4),(3*T88+8*U88+4*V88+3*W88+4*X88+3*Y88+3*Z88+3*AA88+4*AB88)/(3+8+4+3+4+3+3+3+4)) -> 8.014285714 | AH88: =CEILING(M88,0.5) -> 14.5 | AI88: =CEILING(S88,0.5) -> 7.5 | AJ88: =CEILING(AG88,0.5) -> 8.5 | AK88: =(10*AH88+8*AI88+12*AJ88)/30 -> 10.23333333 | AL88: =(10*M88+8*S88+12*AG88)/30 -> 9.988677249
A89: 86 | B89: Merlin D'Estreux De Beaugrenie | C89: Pierre | D89: Cergy | E89: 18 | F89: 11 | G89: 11 | H89: 15 | I89: 13.5 | J89: 14.4 | L89: 13 | M89: =(6*E89+5*F89+4*G89+4*H89+4*I89+6*J89+4*K89+3*L89)/(6+5+4+4+4+6+4+3) -> 12.4 | N89: 7.5 | O89: 7.5 | P89: 5 | Q89: 5.25 | R89: 9.5 | S89: =(5*N89+4*O89+2*P89+6*Q89+3*R89)/(5+4+2+6+3) -> 6.875 | T89: 10.5 | U89: 11.5 | V89: 6 | W89: 17 | X89: 1 | Y89: 1.5 | Z89: 13 | AA89: 12.5 | AB89: 1.5 | AG89: =IF(AC89,(3*T89+8*U89+4*V89+3*W89+4*AC89+8*AD89+3*AE89+4*AF89)/(3+8+4+3+4+8+3+4),(3*T89+8*U89+4*V89+3*W89+4*X89+3*Y89+3*Z89+3*AA89+4*AB89)/(3+8+4+3+4+3+3+3+4)) -> 8.271428571 | AH89: =CEILING(M89,0.5) -> 12.5 | AI89: =CEILING(S89,0.5) -> 7 | AJ89: =CEILING(AG89,0.5) -> 8.5 | AK89: =(10*AH89+8*AI89+12*AJ89)/30 -> 9.433333333 | AL89: =(10*M89+8*S89+12*AG89)/30 -> 9.275238095
A90: 87 | B90: Michalak | C90: Stanislas | D90: Cergy | E90: 14 | F90: 17.5 | G90: 13 | H90: 16 | I90: 13 | J90: 17.1 | K90: 14 | L90: 15.5 | M90: =(6*E90+5*F90+4*G90+4*H90+4*I90+6*J90+4*K90+3*L90)/(6+5+4+4+4+6+4+3) -> 15.12777778 | N90: 10.5 | O90: 14.5 | P90: 16 | Q90: 15.75 | R90: 14.5 | S90: =(5*N90+4*O90+2*P90+6*Q90+3*R90)/(5+4+2+6+3) -> 14.025 | T90: 5 | U90: 4 | V90: 5 | W90: 10 | X90: 5.5 | Y90: 10 | Z90: 7 | AA90: 8 | AB90: 2 | AG90: =IF(AC90,(3*T90+8*U90+4*V90+3*W90+4*AC90+8*AD90+3*AE90+4*AF90)/(3+8+4+3+4+8+3+4),(3*T90+8*U90+4*V90+3*W90+4*X90+3*Y90+3*Z90+3*AA90+4*AB90)/(3+8+4+3+4+3+3+3+4)) -> 5.771428571 | AH90: =CEILING(M90,0.5) -> 15.5 | AI90: =CEILING(S90,0.5) -> 14.5 | AJ90: =CEILING(AG90,0.5) -> 6 | AK90: =(10*AH90+8*AI90+12*AJ90)/30 -> 11.43333333 | AL90: =(10*M90+8*S90+12*AG90)/30 -> 11.09116402
A91: 88 | B91: Michon | C91: Matthieu | D91: Cergy | E91: 10.65 | F91: 13 | G91: 12.5 | H91: 14 | I91: 14.5 | J91: 9.1 | K91: 14 | L91: 18 | M91: =(6*E91+5*F91+4*G91+4*H91+4*I91+6*J91+4*K91+3*L91)/(6+5+4+4+4+6+4+3) -> 12.70833333 | N91: 4.5 | O91: 8.5 | P91: 8 | Q91: 6.5 | R91: 3 | S91: =(5*N91+4*O91+2*P91+6*Q91+3*R91)/(5+4+2+6+3) -> 6.025 | T91: 5.5 | U91: 10 | V91: 7.5 | W91: 7 | AC91: 7.5 | AD91: 3.5 | AE91: 8 | AF91: 4.5 | AG91: =IF(AC91,(3*T91+8*U91+4*V91+3*W91+4*AC91+8*AD91+3*AE91+4*AF91)/(3+8+4+3+4+8+3+4),(3*T91+8*U91+4*V91+3*W91+4*X91+3*Y91+3*Z91+3*AA91+4*AB91)/(3+8+4+3+4+3+3+3+4)) -> 6.689189189 | AH91: =CEILING(M91,0.5) -> 13 | AI91: =CEILING(S91,0.5) -> 6.5 | AJ91: =CEILING(AG91,0.5) -> 7 | AK91: =(10*AH91+8*AI91+12*AJ91)/30 -> 8.866666667 | AL91: =(10*M91+8*S91+12*AG91)/30 -> 8.518453453
A92: 89 | B92: Mongodin | C92: Maxime | D92: Cergy | E92: 17.75 | F92: 13 | G92: 14 | H92: 16 | I92: 15 | J92: 12.1 | K92: 16 | L92: 17 | M92: =(6*E92+5*F92+4*G92+4*H92+4*I92+6*J92+4*K92+3*L92)/(6+5+4+4+4+6+4+3) -> 14.975 | N92: 14 | O92: 8.5 | P92: 12.5 | Q92: 15.5 | R92: 10.5 | S92: =(5*N92+4*O92+2*P92+6*Q92+3*R92)/(5+4+2+6+3) -> 12.675 | T92: 13 | U92: 9 | V92: 11 | W92: 15 | X92: 1.5 | Y92: 12.5 | Z92: 13.5 | AA92: 8 | AB92: 12 | AG92: =IF(AC92,(3*T92+8*U92+4*V92+3*W92+4*AC92+8*AD92+3*AE92+4*AF92)/(3+8+4+3+4+8+3+4),(3*T92+8*U92+4*V92+3*W92+4*X92+3*Y92+3*Z92+3*AA92+4*AB92)/(3+8+4+3+4+3+3+3+4)) -> 10.17142857 | AH92: =CEILING(M92,0.5) -> 15 | AI92: =CEILING(S92,0.5) -> 13 | AJ92: =CEILING(AG92,0.5) -> 10.5 | AK92: =(10*AH92+8*AI92+12*AJ92)/30 -> 12.66666667 | AL92: =(10*M92+8*S92+12*AG92)/30 -> 12.4402381
A93: 90 | B93: Moubarak | C93: Hannoun | D93: Cergy | E93: 14.5 | F93: 18 | G93: 10 | H93: 16 | I93: 16 | J93: 14.4 | K93: 14 | L93: 16 | M93: =(6*E93+5*F93+4*G93+4*H93+4*I93+6*J93+4*K93+3*L93)/(6+5+4+4+4+6+4+3) -> 14.87222222 | N93: 11 | O93: 9 | P93: 16.5 | Q93: 14 | R93: 16.5 | S93: =(5*N93+4*O93+2*P93+6*Q93+3*R93)/(5+4+2+6+3) -> 12.875 | T93: 17 | U93: 14.5 | V93: 6.5 | W93: 12 | X93: 0.5 | Y93: 6.5 | Z93: 14.5 | AA93: 11.5 | AB93: 3 | AG93: =IF(AC93,(3*T93+8*U93+4*V93+3*W93+4*AC93+8*AD93+3*AE93+4*AF93)/(3+8+4+3+4+8+3+4),(3*T93+8*U93+4*V93+3*W93+4*X93+3*Y93+3*Z93+3*AA93+4*AB93)/(3+8+4+3+4+3+3+3+4)) -> 9.728571429 | AH93: =CEILING(M93,0.5) -> 15 | AI93: =CEILING(S93,0.5) -> 13 | AJ93: =CEILING(AG93,0.5) -> 10 | AK93: =(10*AH93+8*AI93+12*AJ93)/30 -> 12.46666667 | AL93: =(10*M93+8*S93+12*AG93)/30 -> 12.28216931
A94: 91 | B94: Navelet-Noualhier | C94: Aurélien | D94: Cergy | E94: 13.1 | F94: 13.75 | G94: 9 | H94: 15 | I94: 8.5 | J94: 7 | K94: 13 | L94: 15 | M94: =(6*E94+5*F94+4*G94+4*H94+4*I94+6*J94+4*K94+3*L94)/(6+5+4+4+4+6+4+3) -> 11.56527778 | N94: 7.5 | O94: 12 | P94: 11 | Q94: 15 | R94: 11 | S94: =(5*N94+4*O94+2*P94+6*Q94+3*R94)/(5+4+2+6+3) -> 11.525 | T94: 19.5 | U94: 9 | V94: 10.5 | W94: 16 | X94: 1.5 | Y94: 7.5 | Z94: 12.8 | AA94: 11.5 | AB94: 9 | AG94: =IF(AC94,(3*T94+8*U94+4*V94+3*W94+4*AC94+8*AD94+3*AE94+4*AF94)/(3+8+4+3+4+8+3+4),(3*T94+8*U94+4*V94+3*W94+4*X94+3*Y94+3*Z94+3*AA94+4*AB94)/(3+8+4+3+4+3+3+3+4)) -> 10.22571429 | AH94: =CEILING(M94,0.5) -> 12 | AI94: =CEILING(S94,0.5) -> 12 | AJ94: =CEILING(AG94,0.5) -> 10.5 | AK94: =(10*AH94+8*AI94+12*AJ94)/30 -> 11.4 | AL94: =(10*M94+8*S94+12*AG94)/30 -> 11.01871164
A95: 92 | B95: Nguon | C95: Mickäel | D95: Cergy | E95: 15.4 | F95: 15.75 | G95: 12 | H95: 16 | I95: 13.5 | J95: 13 | K95: 14.5 | L95: 16.5 | M95: =(6*E95+5*F95+4*G95+4*H95+4*I95+6*J95+4*K95+3*L95)/(6+5+4+4+4+6+4+3) -> 14.51805556 | N95: 7.5 | O95: 6 | P95: 10.5 | Q95: 11.5 | R95: 7 | S95: =(5*N95+4*O95+2*P95+6*Q95+3*R95)/(5+4+2+6+3) -> 8.625 | T95: 19 | U95: 9 | V95: 2 | W95: 19 | X95: 0 | Y95: 7 | Z95: 13.8 | AA95: 14 | AB95: 0 | AG95: =IF(AC95,(3*T95+8*U95+4*V95+3*W95+4*AC95+8*AD95+3*AE95+4*AF95)/(3+8+4+3+4+8+3+4),(3*T95+8*U95+4*V95+3*W95+4*X95+3*Y95+3*Z95+3*AA95+4*AB95)/(3+8+4+3+4+3+3+3+4)) -> 8.525714286 | AH95: =CEILING(M95,0.5) -> 15 | AI95: =CEILING(S95,0.5) -> 9 | AJ95: =CEILING(AG95,0.5) -> 9 | AK95: =(10*AH95+8*AI95+12*AJ95)/30 -> 11 | AL95: =(10*M95+8*S95+12*AG95)/30 -> 10.54963757
A96: 93 | B96: Normand | C96: Guillaume | D96: Cergy | E96: 10 | F96: 13.3 | G96: 10 | H96: 14.5 | I96: 15.5 | J96: 12.1 | L96: 17 | M96: =(6*E96+5*F96+4*G96+4*H96+4*I96+6*J96+4*K96+3*L96)/(6+5+4+4+4+6+4+3) -> 11.39166667 | N96: 5 | O96: 6.5 | P96: 6.5 | Q96: 8 | R96: 8.5 | S96: =(5*N96+4*O96+2*P96+6*Q96+3*R96)/(5+4+2+6+3) -> 6.875 | T96: 9 | U96: 8.5 | V96: 9 | W96: 11 | X96: 0.5 | Y96: 3 | Z96: 10.2 | AA96: 12 | AB96: 10.5 | AG96: =IF(AC96,(3*T96+8*U96+4*V96+3*W96+4*AC96+8*AD96+3*AE96+4*AF96)/(3+8+4+3+4+8+3+4),(3*T96+8*U96+4*V96+3*W96+4*X96+3*Y96+3*Z96+3*AA96+4*AB96)/(3+8+4+3+4+3+3+3+4)) -> 8.102857143 | AH96: =CEILING(M96,0.5) -> 11.5 | AI96: =CEILING(S96,0.5) -> 7 | AJ96: =CEILING(AG96,0.5) -> 8.5 | AK96: =(10*AH96+8*AI96+12*AJ96)/30 -> 9.1 | AL96: =(10*M96+8*S96+12*AG96)/30 -> 8.871698413
A97: 94 | B97: Nouri | C97: Wassim | D97: Cergy | E97: 14.17 | F97: 18.75 | G97: 11 | H97: 14 | I97: 14 | J97: 12.1 | K97: 14 | L97: 17 | M97: =(6*E97+5*F97+4*G97+4*H97+4*I97+6*J97+4*K97+3*L97)/(6+5+4+4+4+6+4+3) -> 14.28805556 | N97: 6 | O97: 9.5 | P97: 12 | Q97: 9 | R97: 8 | S97: =(5*N97+4*O97+2*P97+6*Q97+3*R97)/(5+4+2+6+3) -> 8.5 | T97: 18.5 | U97: 2.5 | V97: 10.5 | W97: 12 | AC97: 10.5 | AD97: 6 | AE97: 11 | AF97: 6.5 | AG97: =IF(AC97,(3*T97+8*U97+4*V97+3*W97+4*AC97+8*AD97+3*AE97+4*AF97)/(3+8+4+3+4+8+3+4),(3*T97+8*U97+4*V97+3*W97+4*X97+3*Y97+3*Z97+3*AA97+4*AB97)/(3+8+4+3+4+3+3+3+4)) -> 8.175675676 | AH97: =CEILING(M97,0.5) -> 14.5 | AI97: =CEILING(S97,0.5) -> 8.5 | AJ97: =CEILING(AG97,0.5) -> 8.5 | AK97: =(10*AH97+8*AI97+12*AJ97)/30 -> 10.5 | AL97: =(10*M97+8*S97+12*AG97)/30 -> 10.29962212
A98: 95 | B98: Osanlou | C98: Kévin | D98: Cergy | E98: 14 | F98: 20 | G98: 12 | H98: 16 | I98: 13 | J98: 14.4 | K98: 15 | L98: 18 | M98: =(6*E98+5*F98+4*G98+4*H98+4*I98+6*J98+4*K98+3*L98)/(6+5+4+4+4+6+4+3) -> 15.23333333 | N98: 12 | O98: 14.5 | P98: 11.5 | Q98: 15.5 | R98: 17 | S98: =(5*N98+4*O98+2*P98+6*Q98+3*R98)/(5+4+2+6+3) -> 14.25 | T98: 18.5 | U98: 15 | V98: 16.5 | W98: 14 | X98: 8 | Y98: 6 | Z98: 15.1 | AA98: 18 | AB98: 13 | AG98: =IF(AC98,(3*T98+8*U98+4*V98+3*W98+4*AC98+8*AD98+3*AE98+4*AF98)/(3+8+4+3+4+8+3+4),(3*T98+8*U98+4*V98+3*W98+4*X98+3*Y98+3*Z98+3*AA98+4*AB98)/(3+8+4+3+4+3+3+3+4)) -> 13.85142857 | AH98: =CEILING(M98,0.5) -> 15.5 | AI98: =CEILING(S98,0.5) -> 14.5 | AJ98: =CEILING(AG98,0.5) -> 14 | AK98: =(10*AH98+8*AI98+12*AJ98)/30 -> 14.63333333 | AL98: =(10*M98+8*S98+12*AG98)/30 -> 14.41834921
A99: 96 | B99: Ouassini | C99: Younes | D99: Cergy | E99: 13.83 | F99: 14.6 | G99: 12 | H99: 13 | I99: 7.5 | J99: 12.1 | K99: 3 | L99: 13 | M99: =(6*E99+5*F99+4*G99+4*H99+4*I99+6*J99+4*K99+3*L99)/(6+5+4+4+4+6+4+3) -> 11.37722222 | N99: 4 | O99: 5.5 | P99: 4 | Q99: 1.75 | R99: 5.5 | S99: =(5*N99+4*O99+2*P99+6*Q99+3*R99)/(5+4+2+6+3) -> 3.85 | T99: 19.5 | U99: 0 | V99: 11.5 | W99: 10 | Y99: 1 | Z99: 13 | AA99: 18 | AB99: 4.5 | AG99: =IF(AC99,(3*T99+8*U99+4*V99+3*W99+4*AC99+8*AD99+3*AE99+4*AF99)/(3+8+4+3+4+8+3+4),(3*T99+8*U99+4*V99+3*W99+4*X99+3*Y99+3*Z99+3*AA99+4*AB99)/(3+8+4+3+4+3+3+3+4)) -> 7.1 | AH99: =CEILING(M99,0.5) -> 11.5 | AI99: =CEILING(S99,0.5) -> 4 | AJ99: =CEILING(AG99,0.5) -> 7.5 | AK99: =(10*AH99+8*AI99+12*AJ99)/30 -> 7.9 | AL99: =(10*M99+8*S99+12*AG99)/30 -> 7.659074074
A100: 97 | B100: Ozouf | C100: Guillaume | D100: Cergy | E100: 11.25 | F100: 13 | G100: 11 | H100: 15.5 | I100: 2.5 | J100: 13 | K100: 13 | L100: 15 | M100: =(6*E100+5*F100+4*G100+4*H100+4*I100+6*J100+4*K100+3*L100)/(6+5+4+4+4+6+4+3) -> 11.76388889 | N100: 3.5 | O100: 9 | P100: 14.5 | Q100: 8.75 | R100: 8 | S100: =(5*N100+4*O100+2*P100+6*Q100+3*R100)/(5+4+2+6+3) -> 7.95 | T100: 11 | U100: 6.5 | V100: 9.5 | W100: 14 | X100: 6 | Y100: 8.5 | Z100: 12.6 | AA100: 14 | AB100: 12 | AG100: =IF(AC100,(3*T100+8*U100+4*V100+3*W100+4*AC100+8*AD100+3*AE100+4*AF100)/(3+8+4+3+4+8+3+4),(3*T100+8*U100+4*V100+3*W100+4*X100+3*Y100+3*Z100+3*AA100+4*AB100)/(3+8+4+3+4+3+3+3+4)) -> 9.78 | AH100: =CEILING(M100,0.5) -> 12 | AI100: =CEILING(S100,0.5) -> 8 | AJ100: =CEILING(AG100,0.5) -> 10 | AK100: =(10*AH100+8*AI100+12*AJ100)/30 -> 10.13333333 | AL100: =(10*M100+8*S100+12*AG100)/30 -> 9.953296296
A101: 98 | B101: Papillon | C101: Thomas | D101: Cergy | E101: 0 | F101: 5 | G101: 8 | H101: 13.5 | I101: 0 | J101: 13.5 | K101: 12.5 | L101: 18 | M101: =(6*E101+5*F101+4*G101+4*H101+4*I101+6*J101+4*K101+3*L101)/(6+5+4+4+4+6+4+3) -> 8.222222222 | N101: 14.5 | O101: 12 | P101: 16 | Q101: 13 | R101: 15 | S101: =(5*N101+4*O101+2*P101+6*Q101+3*R101)/(5+4+2+6+3) -> 13.775 | T101: 10 | U101: 4 | V101: 17.5 | W101: 16 | AC101: 9 | AD101: 8 | AE101: 12.5 | AF101: 10 | AG101: =IF(AC101,(3*T101+8*U101+4*V101+3*W101+4*AC101+8*AD101+3*AE101+4*AF101)/(3+8+4+3+4+8+3+4),(3*T101+8*U101+4*V101+3*W101+4*X101+3*Y101+3*Z101+3*AA101+4*AB101)/(3+8+4+3+4+3+3+3+4)) -> 9.662162162 | AH101: =CEILING(M101,0.5) -> 8.5 | AI101: =CEILING(S101,0.5) -> 14 | AJ101: =CEILING(AG101,0.5) -> 10 | AK101: =(10*AH101+8*AI101+12*AJ101)/30 -> 10.56666667 | AL101: =(10*M101+8*S101+12*AG101)/30 -> 10.27893894
A102: 99 | B102: Pedelhez | C102: Céline | D102: Cergy | E102: 12.45 | F102: 12.8 | G102: 13 | H102: 17 | I102: 14.5 | J102: 17.1 | K102: 13.5 | L102: 16 | M102: =(6*E102+5*F102+4*G102+4*H102+4*I102+6*J102+4*K102+3*L102)/(6+5+4+4+4+6+4+3) -> 14.48055556 | N102: 7 | O102: 16 | P102: 10 | Q102: 10 | R102: 5.5 | S102: =(5*N102+4*O102+2*P102+6*Q102+3*R102)/(5+4+2+6+3) -> 9.775 | T102: 10 | U102: 14.5 | V102: 15 | W102: 16 | AC102: 7 | AD102: 9.5 | AE102: 6.5 | AF102: 1 | AG102: =IF(AC102,(3*T102+8*U102+4*V102+3*W102+4*AC102+8*AD102+3*AE102+4*AF102)/(3+8+4+3+4+8+3+4),(3*T102+8*U102+4*V102+3*W102+4*X102+3*Y102+3*Z102+3*AA102+4*AB102)/(3+8+4+3+4+3+3+3+4)) -> 10.31081081 | AH102: =CEILING(M102,0.5) -> 14.5 | AI102: =CEILING(S102,0.5) -> 10 | AJ102: =CEILING(AG102,0.5) -> 10.5 | AK102: =(10*AH102+8*AI102+12*AJ102)/30 -> 11.7 | AL102: =(10*M102+8*S102+12*AG102)/30 -> 11.55784284
A103: 100 | B103: Peignon | C103: Melvyn | D103: Cergy | E103: 12 | F103: 10 | G103: 12.5 | H103: 16 | I103: 15 | J103: 7 | K103: 17 | L103: 13 | M103: =(6*E103+5*F103+4*G103+4*H103+4*I103+6*J103+4*K103+3*L103)/(6+5+4+4+4+6+4+3) -> 12.36111111 | N103: 6 | O103: 8.5 | P103: 5.5 | Q103: 8.5 | R103: 6 | S103: =(5*N103+4*O103+2*P103+6*Q103+3*R103)/(5+4+2+6+3) -> 7.2 | T103: 13.5 | U103: 4.5 | V103: 3 | W103: 9 | X103: 1.5 | Y103: 0 | Z103: 12.4 | AA103: 12 | AB103: 0.5 | AG103: =IF(AC103,(3*T103+8*U103+4*V103+3*W103+4*AC103+8*AD103+3*AE103+4*AF103)/(3+8+4+3+4+8+3+4),(3*T103+8*U103+4*V103+3*W103+4*X103+3*Y103+3*Z103+3*AA103+4*AB103)/(3+8+4+3+4+3+3+3+4)) -> 5.62 | AH103: =CEILING(M103,0.5) -> 12.5 | AI103: =CEILING(S103,0.5) -> 7.5 | AJ103: =CEILING(AG103,0.5) -> 6 | AK103: =(10*AH103+8*AI103+12*AJ103)/30 -> 8.566666667 | AL103: =(10*M103+8*S103+12*AG103)/30 -> 8.28837037
A104: 101 | B104: Piedeloup | C104: Laura | D104: Cergy | E104: 11 | F104: 0 | G104: 14 | H104: 13.5 | I104: 15 | J104: 13.5 | K104: 13 | L104: 14 | M104: =(6*E104+5*F104+4*G104+4*H104+4*I104+6*J104+4*K104+3*L104)/(6+5+4+4+4+6+4+3) -> 11.41666667 | N104: 7 | O104: 1.5 | P104: 0 | Q104: 6.25 | R104: 2 | S104: =(5*N104+4*O104+2*P104+6*Q104+3*R104)/(5+4+2+6+3) -> 4.225 | T104: 11.5 | U104: 3.5 | V104: 9 | W104: 17 | X104: 1 | Y104: 3 | Z104: 12.5 | AA104: 12 | AB104: 9 | AG104: =IF(AC104,(3*T104+8*U104+4*V104+3*W104+4*AC104+8*AD104+3*AE104+4*AF104)/(3+8+4+3+4+8+3+4),(3*T104+8*U104+4*V104+3*W104+4*X104+3*Y104+3*Z104+3*AA104+4*AB104)/(3+8+4+3+4+3+3+3+4)) -> 7.771428571 | AH104: =CEILING(M104,0.5) -> 11.5 | AI104: =CEILING(S104,0.5) -> 4.5 | AJ104: =CEILING(AG104,0.5) -> 8 | AK104: =(10*AH104+8*AI104+12*AJ104)/30 -> 8.233333333 | AL104: =(10*M104+8*S104+12*AG104)/30 -> 8.040793651
A105: 102 | B105: Ranaivoson | C105: Dialinandrianina | D105: Cergy | E105: 15.93 | F105: 18.75 | G105: 10 | H105: 16 | I105: 11.5 | J105: 14.4 | K105: 14.5 | L105: 16.5 | M105: =(6*E105+5*F105+4*G105+4*H105+4*I105+6*J105+4*K105+3*L105)/(6+5+4+4+4+6+4+3) -> 14.81194444 | N105: 3 | O105: 13.5 | P105: 10.5 | Q105: 16 | R105: 6.5 | S105: =(5*N105+4*O105+2*P105+6*Q105+3*R105)/(5+4+2+6+3) -> 10.275 | T105: 20 | U105: 12.5 | V105: 9.5 | W105: 14 | X105: 1.5 | Y105: 13 | Z105: 12.8 | AA105: 17.5 | AB105: 10.5 | AG105: =IF(AC105,(3*T105+8*U105+4*V105+3*W105+4*AC105+8*AD105+3*AE105+4*AF105)/(3+8+4+3+4+8+3+4),(3*T105+8*U105+4*V105+3*W105+4*X105+3*Y105+3*Z105+3*AA105+4*AB105)/(3+8+4+3+4+3+3+3+4)) -> 11.94 | AH105: =CEILING(M105,0.5) -> 15 | AI105: =CEILING(S105,0.5) -> 10.5 | AJ105: =CEILING(AG105,0.5) -> 12 | AK105: =(10*AH105+8*AI105+12*AJ105)/30 -> 12.6 | AL105: =(10*M105+8*S105+12*AG105)/30 -> 12.45331481
A106: 103 | B106: Raynaud | C106: Flavien | D106: Cergy | E106: 13 | F106: 5 | G106: 12 | H106: 14.5 | I106: 13 | J106: 15.6 | K106: 17 | L106: 18 | M106: =(6*E106+5*F106+4*G106+4*H106+4*I106+6*J106+4*K106+3*L106)/(6+5+4+4+4+6+4+3) -> 13.23888889 | N106: 16 | O106: 16.5 | P106: 16 | Q106: 19 | R106: 11 | S106: =(5*N106+4*O106+2*P106+6*Q106+3*R106)/(5+4+2+6+3) -> 16.25 | T106: 18 | U106: 13 | V106: 17 | W106: 16 | AC106: 6.5 | AD106: 8 | AE106: 10 | AF106: 6.5 | AG106: =IF(AC106,(3*T106+8*U106+4*V106+3*W106+4*AC106+8*AD106+3*AE106+4*AF106)/(3+8+4+3+4+8+3+4),(3*T106+8*U106+4*V106+3*W106+4*X106+3*Y106+3*Z106+3*AA106+4*AB106)/(3+8+4+3+4+3+3+3+4)) -> 11.35135135 | AH106: =CEILING(M106,0.5) -> 13.5 | AI106: =CEILING(S106,0.5) -> 16.5 | AJ106: =CEILING(AG106,0.5) -> 11.5 | AK106: =(10*AH106+8*AI106+12*AJ106)/30 -> 13.5 | AL106: =(10*M106+8*S106+12*AG106)/30 -> 13.28683684
A107: 104 | B107: Roncin | C107: Olivier | D107: Cergy | E107: 0 | F107: 16.8 | G107: 14 | H107: 15 | I107: 7 | J107: 13 | K107: 13 | L107: 19 | M107: =(6*E107+5*F107+4*G107+4*H107+4*I107+6*J107+4*K107+3*L107)/(6+5+4+4+4+6+4+3) -> 11.52777778 | N107: 5.5 | O107: 8.5 | P107: 8.5 | Q107: 10 | R107: 6.5 | S107: =(5*N107+4*O107+2*P107+6*Q107+3*R107)/(5+4+2+6+3) -> 7.9 | U107: 5 | V107: 2.5 | W107: 17.5 | X107: 0.5 | Y107: 3.5 | Z107: 12.7 | AA107: 12 | AB107: 5.5 | AG107: =IF(AC107,(3*T107+8*U107+4*V107+3*W107+4*AC107+8*AD107+3*AE107+4*AF107)/(3+8+4+3+4+8+3+4),(3*T107+8*U107+4*V107+3*W107+4*X107+3*Y107+3*Z107+3*AA107+4*AB107)/(3+8+4+3+4+3+3+3+4)) -> 6.031428571 | AH107: =CEILING(M107,0.5) -> 12 | AI107: =CEILING(S107,0.5) -> 8 | AJ107: =CEILING(AG107,0.5) -> 6.5 | AK107: =(10*AH107+8*AI107+12*AJ107)/30 -> 8.733333333 | AL107: =(10*M107+8*S107+12*AG107)/30 -> 8.361830688
A108: 105 | B108: Saadi | C108: Rania | D108: Cergy | E108: 16.5 | F108: 15.75 | G108: 11.5 | H108: 13.5 | I108: 12.5 | J108: 17.1 | K108: 13 | L108: 16 | M108: =(6*E108+5*F108+4*G108+4*H108+4*I108+6*J108+4*K108+3*L108)/(6+5+4+4+4+6+4+3) -> 14.73194444 | N108: 11 | O108: 9 | P108: 10 | Q108: 7.5 | R108: 13.5 | S108: =(5*N108+4*O108+2*P108+6*Q108+3*R108)/(5+4+2+6+3) -> 9.825 | T108: 12 | U108: 13 | V108: 8.5 | W108: 13 | AC108: 8.5 | AD108: 6 | AE108: 5.5 | AF108: 5.5 | AG108: =IF(AC108,(3*T108+8*U108+4*V108+3*W108+4*AC108+8*AD108+3*AE108+4*AF108)/(3+8+4+3+4+8+3+4),(3*T108+8*U108+4*V108+3*W108+4*X108+3*Y108+3*Z108+3*AA108+4*AB108)/(3+8+4+3+4+3+3+3+4)) -> 9.013513514 | AH108: =CEILING(M108,0.5) -> 15 | AI108: =CEILING(S108,0.5) -> 10 | AJ108: =CEILING(AG108,0.5) -> 9.5 | AK108: =(10*AH108+8*AI108+12*AJ108)/30 -> 11.46666667 | AL108: =(10*M108+8*S108+12*AG108)/30 -> 11.13605355
A109: 106 | B109: Sage | C109: Thomas | D109: Cergy | E109: 11.92 | F109: 13.4 | G109: 12 | H109: 14.5 | I109: 13.5 | J109: 14.4 | K109: 10 | L109: 14 | M109: =(6*E109+5*F109+4*G109+4*H109+4*I109+6*J109+4*K109+3*L109)/(6+5+4+4+4+6+4+3) -> 12.97 | N109: 11 | O109: 9 | P109: 6 | Q109: 7.75 | R109: 6 | S109: =(5*N109+4*O109+2*P109+6*Q109+3*R109)/(5+4+2+6+3) -> 8.375 | T109: 14.5 | U109: 12 | V109: 12.5 | W109: 13 | AC109: 10.5 | AD109: 7.5 | AE109: 6.5 | AF109: 2.5 | AG109: =IF(AC109,(3*T109+8*U109+4*V109+3*W109+4*AC109+8*AD109+3*AE109+4*AF109)/(3+8+4+3+4+8+3+4),(3*T109+8*U109+4*V109+3*W109+4*X109+3*Y109+3*Z109+3*AA109+4*AB109)/(3+8+4+3+4+3+3+3+4)) -> 9.72972973 | AH109: =CEILING(M109,0.5) -> 13 | AI109: =CEILING(S109,0.5) -> 8.5 | AJ109: =CEILING(AG109,0.5) -> 10 | AK109: =(10*AH109+8*AI109+12*AJ109)/30 -> 10.6 | AL109: =(10*M109+8*S109+12*AG109)/30 -> 10.44855856
A110: 107 | B110: Salem Hedada | C110: Abdenassar | D110: Cergy | E110: 13.75 | F110: 18 | G110: 10 | H110: 14 | I110: 16.5 | J110: 0 | K110: 14 | L110: 17 | M110: =(6*E110+5*F110+4*G110+4*H110+4*I110+6*J110+4*K110+3*L110)/(6+5+4+4+4+6+4+3) -> 12.26388889 | N110: 7.5 | O110: 15 | Q110: 13.25 | R110: 6.5 | S110: =(5*N110+4*O110+2*P110+6*Q110+3*R110)/(5+4+2+6+3) -> 9.825 | T110: 9.5 | U110: 13.5 | V110: 15.5 | W110: 11 | X110: 6.5 | Y110: 9.5 | Z110: 14.8 | AA110: 15 | AB110: 5 | AG110: =IF(AC110,(3*T110+8*U110+4*V110+3*W110+4*AC110+8*AD110+3*AE110+4*AF110)/(3+8+4+3+4+8+3+4),(3*T110+8*U110+4*V110+3*W110+4*X110+3*Y110+3*Z110+3*AA110+4*AB110)/(3+8+4+3+4+3+3+3+4)) -> 11.29714286 | AH110: =CEILING(M110,0.5) -> 12.5 | AI110: =CEILING(S110,0.5) -> 10 | AJ110: =CEILING(AG110,0.5) -> 11.5 | AK110: =(10*AH110+8*AI110+12*AJ110)/30 -> 11.43333333 | AL110: =(10*M110+8*S110+12*AG110)/30 -> 11.22682011
A111: 108 | B111: Sastre-Garau | C111: Élie | D111: Cergy | E111: 12 | F111: 0 | G111: 10.5 | H111: 15.5 | I111: 0 | J111: 13 | L111: 17 | M111: =(6*E111+5*F111+4*G111+4*H111+4*I111+6*J111+4*K111+3*L111)/(6+5+4+4+4+6+4+3) -> 8.472222222 | N111: 4.5 | O111: 2.5 | P111: 5 | Q111: 4.25 | R111: 4 | S111: =(5*N111+4*O111+2*P111+6*Q111+3*R111)/(5+4+2+6+3) -> 4 | T111: 9.5 | U111: 5.5 | V111: 4.5 | W111: 12 | X111: 1 | Y111: 1.5 | Z111: 13.8 | AA111: 11.5 | AB111: 7 | AG111: =IF(AC111,(3*T111+8*U111+4*V111+3*W111+4*AC111+8*AD111+3*AE111+4*AF111)/(3+8+4+3+4+8+3+4),(3*T111+8*U111+4*V111+3*W111+4*X111+3*Y111+3*Z111+3*AA111+4*AB111)/(3+8+4+3+4+3+3+3+4)) -> 6.825714286 | AH111: =CEILING(M111,0.5) -> 8.5 | AI111: =CEILING(S111,0.5) -> 4 | AJ111: =CEILING(AG111,0.5) -> 7 | AK111: =(10*AH111+8*AI111+12*AJ111)/30 -> 6.7 | AL111: =(10*M111+8*S111+12*AG111)/30 -> 6.621026455
A112: 109 | B112: Savin | C112: Thibault | D112: Cergy | E112: 12.6 | F112: 11 | G112: 10 | H112: 16 | I112: 15.5 | J112: 13 | K112: 14.5 | L112: 14 | M112: =(6*E112+5*F112+4*G112+4*H112+4*I112+6*J112+4*K112+3*L112)/(6+5+4+4+4+6+4+3) -> 13.18333333 | N112: 8 | O112: 7.5 | P112: 14.5 | Q112: 12.75 | R112: 11.5 | S112: =(5*N112+4*O112+2*P112+6*Q112+3*R112)/(5+4+2+6+3) -> 10.5 | T112: 11.5 | U112: 7 | V112: 10 | W112: 8 | X112: 10 | Y112: 15.5 | Z112: 11.7 | AA112: 15.5 | AB112: 5 | AG112: =IF(AC112,(3*T112+8*U112+4*V112+3*W112+4*AC112+8*AD112+3*AE112+4*AF112)/(3+8+4+3+4+8+3+4),(3*T112+8*U112+4*V112+3*W112+4*X112+3*Y112+3*Z112+3*AA112+4*AB112)/(3+8+4+3+4+3+3+3+4)) -> 9.788571429 | AH112: =CEILING(M112,0.5) -> 13.5 | AI112: =CEILING(S112,0.5) -> 10.5 | AJ112: =CEILING(AG112,0.5) -> 10 | AK112: =(10*AH112+8*AI112+12*AJ112)/30 -> 11.3 | AL112: =(10*M112+8*S112+12*AG112)/30 -> 11.10987302
A113: 110 | B113: Schoch | C113: Emmanuelle | D113: Cergy | E113: 16 | F113: 13 | G113: 16.5 | H113: 13.5 | I113: 17 | J113: 14.4 | K113: 15 | L113: 18 | M113: =(6*E113+5*F113+4*G113+4*H113+4*I113+6*J113+4*K113+3*L113)/(6+5+4+4+4+6+4+3) -> 15.26111111 | N113: 9 | O113: 8.5 | P113: 11 | Q113: 11 | R113: 10 | S113: =(5*N113+4*O113+2*P113+6*Q113+3*R113)/(5+4+2+6+3) -> 9.85 | T113: 10.5 | U113: 13.5 | V113: 15.5 | W113: 8 | AC113: 10 | AD113: 6 | AE113: 8 | AF113: 11 | AG113: =IF(AC113,(3*T113+8*U113+4*V113+3*W113+4*AC113+8*AD113+3*AE113+4*AF113)/(3+8+4+3+4+8+3+4),(3*T113+8*U113+4*V113+3*W113+4*X113+3*Y113+3*Z113+3*AA113+4*AB113)/(3+8+4+3+4+3+3+3+4)) -> 10.31081081 | AH113: =CEILING(M113,0.5) -> 15.5 | AI113: =CEILING(S113,0.5) -> 10 | AJ113: =CEILING(AG113,0.5) -> 10.5 | AK113: =(10*AH113+8*AI113+12*AJ113)/30 -> 12.03333333 | AL113: =(10*M113+8*S113+12*AG113)/30 -> 11.83802803
A114: 111 | B114: Schramm | C114: Paul | D114: Cergy | E114: 18 | F114: 12 | G114: 15 | H114: 15.5 | I114: 19 | J114: 0 | L114: 17 | M114: =(6*E114+5*F114+4*G114+4*H114+4*I114+6*J114+4*K114+3*L114)/(6+5+4+4+4+6+4+3) -> 11.58333333 | N114: 5 | O114: 8 | P114: 10.5 | Q114: 3.5 | R114: 6.5 | S114: =(5*N114+4*O114+2*P114+6*Q114+3*R114)/(5+4+2+6+3) -> 5.925 | T114: 11.5 | U114: 8 | V114: 3.5 | W114: 19 | X114: 1 | Y114: 4 | Z114: 15 | AA114: 17 | AB114: 15 | AG114: =IF(AC114,(3*T114+8*U114+4*V114+3*W114+4*AC114+8*AD114+3*AE114+4*AF114)/(3+8+4+3+4+8+3+4),(3*T114+8*U114+4*V114+3*W114+4*X114+3*Y114+3*Z114+3*AA114+4*AB114)/(3+8+4+3+4+3+3+3+4)) -> 9.757142857 | AH114: =CEILING(M114,0.5) -> 12 | AI114: =CEILING(S114,0.5) -> 6 | AJ114: =CEILING(AG114,0.5) -> 10 | AK114: =(10*AH114+8*AI114+12*AJ114)/30 -> 9.6 | AL114: =(10*M114+8*S114+12*AG114)/30 -> 9.343968254
A115: 112 | B115: Seddiki | C115: Sonia | D115: Cergy | E115: 17.5 | F115: 18.4 | G115: 17 | H115: 15.5 | I115: 15 | J115: 17.1 | K115: 16 | L115: 15.5 | M115: =(6*E115+5*F115+4*G115+4*H115+4*I115+6*J115+4*K115+3*L115)/(6+5+4+4+4+6+4+3) -> 16.66944444 | N115: 7 | O115: 12 | P115: 11 | Q115: 15.25 | R115: 7 | S115: =(5*N115+4*O115+2*P115+6*Q115+3*R115)/(5+4+2+6+3) -> 10.875 | T115: 12 | U115: 13.5 | V115: 9 | W115: 13 | X115: 2.5 | Y115: 4 | Z115: 13.2 | AA115: 10 | AB115: 4 | AG115: =IF(AC115,(3*T115+8*U115+4*V115+3*W115+4*AC115+8*AD115+3*AE115+4*AF115)/(3+8+4+3+4+8+3+4),(3*T115+8*U115+4*V115+3*W115+4*X115+3*Y115+3*Z115+3*AA115+4*AB115)/(3+8+4+3+4+3+3+3+4)) -> 9.331428571 | AH115: =CEILING(M115,0.5) -> 17 | AI115: =CEILING(S115,0.5) -> 11 | AJ115: =CEILING(AG115,0.5) -> 9.5 | AK115: =(10*AH115+8*AI115+12*AJ115)/30 -> 12.4 | AL115: =(10*M115+8*S115+12*AG115)/30 -> 12.18905291
A116: 113 | B116: Sengout | C116: Karthic | D116: Cergy | E116: 16.92 | F116: 10 | G116: 11 | H116: 15 | I116: 2.5 | J116: 12.1 | K116: 13 | L116: 15 | M116: =(6*E116+5*F116+4*G116+4*H116+4*I116+6*J116+4*K116+3*L116)/(6+5+4+4+4+6+4+3) -> 12.08666667 | N116: 2 | O116: 8.5 | P116: 4.5 | Q116: 7 | R116: 14 | S116: =(5*N116+4*O116+2*P116+6*Q116+3*R116)/(5+4+2+6+3) -> 6.85 | T116: 13.5 | U116: 3 | V116: 8.5 | W116: 10 | AC116: 13 | AD116: 10.5 | AE116: 6 | AF116: 14.5 | AG116: =IF(AC116,(3*T116+8*U116+4*V116+3*W116+4*AC116+8*AD116+3*AE116+4*AF116)/(3+8+4+3+4+8+3+4),(3*T116+8*U116+4*V116+3*W116+4*X116+3*Y116+3*Z116+3*AA116+4*AB116)/(3+8+4+3+4+3+3+3+4)) -> 9.202702703 | AH116: =CEILING(M116,0.5) -> 12.5 | AI116: =CEILING(S116,0.5) -> 7 | AJ116: =CEILING(AG116,0.5) -> 9.5 | AK116: =(10*AH116+8*AI116+12*AJ116)/30 -> 9.833333333 | AL116: =(10*M116+8*S116+12*AG116)/30 -> 9.536636637
A117: 114 | B117: Seurin | C117: Thibault | D117: Cergy | E117: 18.5 | F117: 6 | G117: 9 | H117: 10.5 | I117: 3 | J117: 0 | K117: 14 | L117: 14 | M117: =(6*E117+5*F117+4*G117+4*H117+4*I117+6*J117+4*K117+3*L117)/(6+5+4+4+4+6+4+3) -> 9.138888889 | N117: 5 | O117: 11.5 | P117: 16 | Q117: 8 | R117: 3 | S117: =(5*N117+4*O117+2*P117+6*Q117+3*R117)/(5+4+2+6+3) -> 8 | T117: 11.5 | U117: 3.5 | V117: 5.5 | W117: 4 | AC117: 4.5 | AD117: 2.5 | AE117: 2 | AF117: 4 | AG117: =IF(AC117,(3*T117+8*U117+4*V117+3*W117+4*AC117+8*AD117+3*AE117+4*AF117)/(3+8+4+3+4+8+3+4),(3*T117+8*U117+4*V117+3*W117+4*X117+3*Y117+3*Z117+3*AA117+4*AB117)/(3+8+4+3+4+3+3+3+4)) -> 4.22972973 | AH117: =CEILING(M117,0.5) -> 9.5 | AI117: =CEILING(S117,0.5) -> 8 | AJ117: =CEILING(AG117,0.5) -> 4.5 | AK117: =(10*AH117+8*AI117+12*AJ117)/30 -> 7.1 | AL117: =(10*M117+8*S117+12*AG117)/30 -> 6.871521522
A118: 115 | B118: Sforza | C118: Allan | D118: Cergy | E118: 18 | F118: 16.75 | G118: 16.5 | H118: 15 | I118: 16.5 | J118: 14.4 | K118: 15 | L118: 19 | M118: =(6*E118+5*F118+4*G118+4*H118+4*I118+6*J118+4*K118+3*L118)/(6+5+4+4+4+6+4+3) -> 16.30972222 | N118: 18 | O118: 14 | P118: 11.5 | Q118: 19 | R118: 16.5 | S118: =(5*N118+4*O118+2*P118+6*Q118+3*R118)/(5+4+2+6+3) -> 16.625 | T118: 19.5 | U118: 15 | V118: 14 | W118: 11 | X118: 16 | Y118: 13 | Z118: 14.5 | AA118: 17.5 | AB118: 15 | AG118: =IF(AC118,(3*T118+8*U118+4*V118+3*W118+4*AC118+8*AD118+3*AE118+4*AF118)/(3+8+4+3+4+8+3+4),(3*T118+8*U118+4*V118+3*W118+4*X118+3*Y118+3*Z118+3*AA118+4*AB118)/(3+8+4+3+4+3+3+3+4)) -> 15.04285714 | AH118: =CEILING(M118,0.5) -> 16.5 | AI118: =CEILING(S118,0.5) -> 17 | AJ118: =CEILING(AG118,0.5) -> 15.5 | AK118: =(10*AH118+8*AI118+12*AJ118)/30 -> 16.23333333 | AL118: =(10*M118+8*S118+12*AG118)/30 -> 15.88705026
A119: 116 | B119: Simonneau | C119: Thomas | D119: Cergy | E119: 10 | F119: 10 | G119: 10 | H119: 14.5 | I119: 13.5 | J119: 14.4 | K119: 17 | L119: 16 | M119: =(6*E119+5*F119+4*G119+4*H119+4*I119+6*J119+4*K119+3*L119)/(6+5+4+4+4+6+4+3) -> 12.9 | N119: 6 | O119: 11.5 | P119: 6 | Q119: 4.75 | R119: 0 | S119: =(5*N119+4*O119+2*P119+6*Q119+3*R119)/(5+4+2+6+3) -> 5.825 | T119: 13.5 | U119: 12.5 | V119: 14.5 | W119: 18 | AC119: 11.5 | AD119: 3 | AE119: 5 | AF119: 2.5 | AG119: =IF(AC119,(3*T119+8*U119+4*V119+3*W119+4*AC119+8*AD119+3*AE119+4*AF119)/(3+8+4+3+4+8+3+4),(3*T119+8*U119+4*V119+3*W119+4*X119+3*Y119+3*Z119+3*AA119+4*AB119)/(3+8+4+3+4+3+3+3+4)) -> 9.391891892 | AH119: =CEILING(M119,0.5) -> 13 | AI119: =CEILING(S119,0.5) -> 6 | AJ119: =CEILING(AG119,0.5) -> 9.5 | AK119: =(10*AH119+8*AI119+12*AJ119)/30 -> 9.733333333 | AL119: =(10*M119+8*S119+12*AG119)/30 -> 9.61009009
A120: 117 | B120: Skulason | C120: Mathieu Grettir | D120: Cergy | E120: 18.4 | M120: =(6*E120+5*F120+4*G120+4*H120+4*I120+6*J120+4*K120+3*L120)/(6+5+4+4+4+6+4+3) -> 3.066666667 | S120: =(5*N120+4*O120+2*P120+6*Q120+3*R120)/(5+4+2+6+3) -> 0 | T120: 0.5 | U120: 0.5 | V120: 1 | W120: 0.5 | AG120: =IF(AC120,(3*T120+8*U120+4*V120+3*W120+4*AC120+8*AD120+3*AE120+4*AF120)/(3+8+4+3+4+8+3+4),(3*T120+8*U120+4*V120+3*W120+4*X120+3*Y120+3*Z120+3*AA120+4*AB120)/(3+8+4+3+4+3+3+3+4)) -> 0.3142857143 | AH120: =CEILING(M120,0.5) -> 3.5 | AI120: =CEILING(S120,0.5) -> 0 | AJ120: =CEILING(AG120,0.5) -> 0.5 | AK120: =(10*AH120+8*AI120+12*AJ120)/30 -> 1.366666667 | AL120: =(10*M120+8*S120+12*AG120)/30 -> 1.147936508
A121: 118 | B121: Sylverius | C121: Surya | D121: Cergy | E121: 17.14 | F121: 18.75 | G121: 14 | H121: 10.5 | I121: 17.5 | J121: 16.5 | K121: 14 | L121: 19 | M121: =(6*E121+5*F121+4*G121+4*H121+4*I121+6*J121+4*K121+3*L121)/(6+5+4+4+4+6+4+3) -> 16.01638889 | N121: 11.5 | O121: 16 | P121: 17.5 | Q121: 13.5 | R121: 15 | S121: =(5*N121+4*O121+2*P121+6*Q121+3*R121)/(5+4+2+6+3) -> 14.125 | T121: 8 | U121: 16 | V121: 15 | W121: 18 | X121: 13.5 | Y121: 10.5 | Z121: 14.8 | AA121: 17.5 | AB121: 20 | AG121: =IF(AC121,(3*T121+8*U121+4*V121+3*W121+4*AC121+8*AD121+3*AE121+4*AF121)/(3+8+4+3+4+8+3+4),(3*T121+8*U121+4*V121+3*W121+4*X121+3*Y121+3*Z121+3*AA121+4*AB121)/(3+8+4+3+4+3+3+3+4)) -> 15.09714286 | AH121: =CEILING(M121,0.5) -> 16.5 | AI121: =CEILING(S121,0.5) -> 14.5 | AJ121: =CEILING(AG121,0.5) -> 15.5 | AK121: =(10*AH121+8*AI121+12*AJ121)/30 -> 15.56666667 | AL121: =(10*M121+8*S121+12*AG121)/30 -> 15.14432011
A122: 119 | B122: Ta | C122: Josselin | D122: Cergy | E122: 15 | F122: 13 | G122: 11 | H122: 15 | I122: 13.5 | J122: 14.4 | K122: 12 | L122: 14 | M122: =(6*E122+5*F122+4*G122+4*H122+4*I122+6*J122+4*K122+3*L122)/(6+5+4+4+4+6+4+3) -> 13.59444444 | N122: 3 | O122: 6.5 | P122: 4.5 | Q122: 5.25 | R122: 0.5 | S122: =(5*N122+4*O122+2*P122+6*Q122+3*R122)/(5+4+2+6+3) -> 4.15 | T122: 14.5 | U122: 10 | V122: 5.5 | W122: 8 | X122: 1.5 | Y122: 2.5 | Z122: 13.7 | AA122: 13 | AB122: 1.5 | AG122: =IF(AC122,(3*T122+8*U122+4*V122+3*W122+4*AC122+8*AD122+3*AE122+4*AF122)/(3+8+4+3+4+8+3+4),(3*T122+8*U122+4*V122+3*W122+4*X122+3*Y122+3*Z122+3*AA122+4*AB122)/(3+8+4+3+4+3+3+3+4)) -> 7.688571429 | AH122: =CEILING(M122,0.5) -> 14 | AI122: =CEILING(S122,0.5) -> 4.5 | AJ122: =CEILING(AG122,0.5) -> 8 | AK122: =(10*AH122+8*AI122+12*AJ122)/30 -> 9.066666667 | AL122: =(10*M122+8*S122+12*AG122)/30 -> 8.71357672
A123: 120 | B123: Taboga | C123: Marc | D123: Cergy | E123: 12.8 | F123: 11 | G123: 11 | H123: 16 | I123: 13 | J123: 12.1 | K123: 14.5 | L123: 14 | M123: =(6*E123+5*F123+4*G123+4*H123+4*I123+6*J123+4*K123+3*L123)/(6+5+4+4+4+6+4+3) -> 12.9 | N123: 11.5 | O123: 7.5 | P123: 11.5 | Q123: 10 | R123: 5 | S123: =(5*N123+4*O123+2*P123+6*Q123+3*R123)/(5+4+2+6+3) -> 9.275 | T123: 15.5 | U123: 12 | V123: 8.5 | W123: 14 | X123: 2.5 | Y123: 0 | Z123: 7.5 | AA123: 8 | AB123: 9 | AG123: =IF(AC123,(3*T123+8*U123+4*V123+3*W123+4*AC123+8*AD123+3*AE123+4*AF123)/(3+8+4+3+4+8+3+4),(3*T123+8*U123+4*V123+3*W123+4*X123+3*Y123+3*Z123+3*AA123+4*AB123)/(3+8+4+3+4+3+3+3+4)) -> 8.885714286 | AH123: =CEILING(M123,0.5) -> 13 | AI123: =CEILING(S123,0.5) -> 9.5 | AJ123: =CEILING(AG123,0.5) -> 9 | AK123: =(10*AH123+8*AI123+12*AJ123)/30 -> 10.46666667 | AL123: =(10*M123+8*S123+12*AG123)/30 -> 10.32761905
A124: 121 | B124: Talla | C124: Onésime | D124: Cergy | E124: 14.5 | F124: 16 | G124: 16.5 | H124: 15 | I124: 15.5 | J124: 14.4 | K124: 16 | L124: 15 | M124: =(6*E124+5*F124+4*G124+4*H124+4*I124+6*J124+4*K124+3*L124)/(6+5+4+4+4+6+4+3) -> 15.28888889 | N124: 7 | O124: 10.5 | P124: 11 | Q124: 11 | R124: 12.5 | S124: =(5*N124+4*O124+2*P124+6*Q124+3*R124)/(5+4+2+6+3) -> 10.125 | T124: 8 | U124: 10.5 | V124: 4.5 | W124: 13 | AC124: 8 | AD124: 6 | AE124: 6.5 | AF124: 11 | AG124: =IF(AC124,(3*T124+8*U124+4*V124+3*W124+4*AC124+8*AD124+3*AE124+4*AF124)/(3+8+4+3+4+8+3+4),(3*T124+8*U124+4*V124+3*W124+4*X124+3*Y124+3*Z124+3*AA124+4*AB124)/(3+8+4+3+4+3+3+3+4)) -> 8.337837838 | AH124: =CEILING(M124,0.5) -> 15.5 | AI124: =CEILING(S124,0.5) -> 10.5 | AJ124: =CEILING(AG124,0.5) -> 8.5 | AK124: =(10*AH124+8*AI124+12*AJ124)/30 -> 11.36666667 | AL124: =(10*M124+8*S124+12*AG124)/30 -> 11.13143143
A125: 122 | B125: Tcherkawsky | C125: Thomas | D125: Cergy | E125: 2.9 | F125: 0 | G125: 13 | H125: 15 | I125: 4 | J125: 0 | K125: 13 | L125: 15 | M125: =(6*E125+5*F125+4*G125+4*H125+4*I125+6*J125+4*K125+3*L125)/(6+5+4+4+4+6+4+3) -> 6.733333333 | N125: 5.5 | O125: 6.5 | P125: 3 | Q125: 4 | S125: =(5*N125+4*O125+2*P125+6*Q125+3*R125)/(5+4+2+6+3) -> 4.175 | T125: 6 | U125: 4.5 | V125: 10.5 | W125: 12 | AC125: 12.5 | AD125: 3 | AF125: 8 | AG125: =IF(AC125,(3*T125+8*U125+4*V125+3*W125+4*AC125+8*AD125+3*AE125+4*AF125)/(3+8+4+3+4+8+3+4),(3*T125+8*U125+4*V125+3*W125+4*X125+3*Y125+3*Z125+3*AA125+4*AB125)/(3+8+4+3+4+3+3+3+4)) -> 6.432432432 | AH125: =CEILING(M125,0.5) -> 7 | AI125: =CEILING(S125,0.5) -> 4.5 | AJ125: =CEILING(AG125,0.5) -> 6.5 | AK125: =(10*AH125+8*AI125+12*AJ125)/30 -> 6.133333333 | AL125: =(10*M125+8*S125+12*AG125)/30 -> 5.930750751
A126: 123 | B126: Testier | C126: Marc-Antoine | D126: Cergy | E126: 11 | F126: 14 | G126: 12 | H126: 14.5 | I126: 3 | J126: 7 | L126: 15.5 | M126: =(6*E126+5*F126+4*G126+4*H126+4*I126+6*J126+4*K126+3*L126)/(6+5+4+4+4+6+4+3) -> 9.513888889 | N126: 12 | O126: 12 | P126: 13.5 | Q126: 14.25 | R126: 10 | S126: =(5*N126+4*O126+2*P126+6*Q126+3*R126)/(5+4+2+6+3) -> 12.525 | T126: 15 | U126: 10 | V126: 10.5 | W126: 16 | X126: 10 | Y126: 9.5 | Z126: 14 | AA126: 15 | AB126: 8.5 | AG126: =IF(AC126,(3*T126+8*U126+4*V126+3*W126+4*AC126+8*AD126+3*AE126+4*AF126)/(3+8+4+3+4+8+3+4),(3*T126+8*U126+4*V126+3*W126+4*X126+3*Y126+3*Z126+3*AA126+4*AB126)/(3+8+4+3+4+3+3+3+4)) -> 11.55714286 | AH126: =CEILING(M126,0.5) -> 10 | AI126: =CEILING(S126,0.5) -> 13 | AJ126: =CEILING(AG126,0.5) -> 12 | AK126: =(10*AH126+8*AI126+12*AJ126)/30 -> 11.6 | AL126: =(10*M126+8*S126+12*AG126)/30 -> 11.13415344
A127: 124 | B127: Tete-Didier | C127: Pierre-Adrien | D127: Cergy | E127: 16 | F127: 14.2 | G127: 5 | H127: 15 | I127: 0 | J127: 0 | K127: 11 | L127: 0 | M127: =(6*E127+5*F127+4*G127+4*H127+4*I127+6*J127+4*K127+3*L127)/(6+5+4+4+4+6+4+3) -> 8.083333333 | N127: 1 | P127: 2.5 | Q127: 7 | R127: 3 | S127: =(5*N127+4*O127+2*P127+6*Q127+3*R127)/(5+4+2+6+3) -> 3.05 | T127: 1 | U127: 1.5 | V127: 5 | W127: 7 | Y127: 0 | Z127: 7 | AA127: 8 | AB127: 0 | AG127: =IF(AC127,(3*T127+8*U127+4*V127+3*W127+4*AC127+8*AD127+3*AE127+4*AF127)/(3+8+4+3+4+8+3+4),(3*T127+8*U127+4*V127+3*W127+4*X127+3*Y127+3*Z127+3*AA127+4*AB127)/(3+8+4+3+4+3+3+3+4)) -> 2.885714286 | AH127: =CEILING(M127,0.5) -> 8.5 | AI127: =CEILING(S127,0.5) -> 3.5 | AJ127: =CEILING(AG127,0.5) -> 3 | AK127: =(10*AH127+8*AI127+12*AJ127)/30 -> 4.966666667 | AL127: =(10*M127+8*S127+12*AG127)/30 -> 4.662063492
A128: 125 | B128: Thepot | C128: Alexandre | D128: Cergy | E128: 15 | F128: 16 | G128: 15 | H128: 16 | I128: 19 | J128: 14.4 | K128: 14 | L128: 18 | M128: =(6*E128+5*F128+4*G128+4*H128+4*I128+6*J128+4*K128+3*L128)/(6+5+4+4+4+6+4+3) -> 15.73333333 | N128: 9 | O128: 11.5 | P128: 10 | Q128: 10.75 | R128: 16.5 | S128: =(5*N128+4*O128+2*P128+6*Q128+3*R128)/(5+4+2+6+3) -> 11.25 | T128: 13 | U128: 10 | V128: 11 | W128: 13 | X128: 10 | Y128: 3 | Z128: 14 | AA128: 13.5 | AB128: 8 | AG128: =IF(AC128,(3*T128+8*U128+4*V128+3*W128+4*AC128+8*AD128+3*AE128+4*AF128)/(3+8+4+3+4+8+3+4),(3*T128+8*U128+4*V128+3*W128+4*X128+3*Y128+3*Z128+3*AA128+4*AB128)/(3+8+4+3+4+3+3+3+4)) -> 10.44285714 | AH128: =CEILING(M128,0.5) -> 16 | AI128: =CEILING(S128,0.5) -> 11.5 | AJ128: =CEILING(AG128,0.5) -> 10.5 | AK128: =(10*AH128+8*AI128+12*AJ128)/30 -> 12.6 | AL128: =(10*M128+8*S128+12*AG128)/30 -> 12.4215873
A129: 126 | B129: Thibaud | C129: Alexandre | D129: Cergy | E129: 18 | F129: 5.5 | G129: 5 | H129: 13.5 | I129: 12.5 | J129: 16.5 | K129: 13 | L129: 13 | M129: =(6*E129+5*F129+4*G129+4*H129+4*I129+6*J129+4*K129+3*L129)/(6+5+4+4+4+6+4+3) -> 12.48611111 | N129: 4.5 | O129: 2 | P129: 1.5 | Q129: 1.5 | R129: 3.5 | S129: =(5*N129+4*O129+2*P129+6*Q129+3*R129)/(5+4+2+6+3) -> 2.65 | T129: 12 | U129: 7.5 | V129: 5 | W129: 11 | Y129: 1.5 | Z129: 10.6 | AA129: 13 | AB129: 3 | AG129: =IF(AC129,(3*T129+8*U129+4*V129+3*W129+4*AC129+8*AD129+3*AE129+4*AF129)/(3+8+4+3+4+8+3+4),(3*T129+8*U129+4*V129+3*W129+4*X129+3*Y129+3*Z129+3*AA129+4*AB129)/(3+8+4+3+4+3+3+3+4)) -> 6.751428571 | AH129: =CEILING(M129,0.5) -> 12.5 | AI129: =CEILING(S129,0.5) -> 3 | AJ129: =CEILING(AG129,0.5) -> 7 | AK129: =(10*AH129+8*AI129+12*AJ129)/30 -> 7.766666667 | AL129: =(10*M129+8*S129+12*AG129)/30 -> 7.569275132
A130: 127 | B130: Thomas | C130: Abel | D130: Cergy | E130: 14.14 | F130: 8 | G130: 12 | H130: 17 | I130: 12 | J130: 0 | K130: 13.5 | L130: 18 | M130: =(6*E130+5*F130+4*G130+4*H130+4*I130+6*J130+4*K130+3*L130)/(6+5+4+4+4+6+4+3) -> 11.02333333 | N130: 11 | O130: 10.5 | P130: 6 | Q130: 3.25 | R130: 7 | S130: =(5*N130+4*O130+2*P130+6*Q130+3*R130)/(5+4+2+6+3) -> 7.475 | T130: 10 | U130: 6.5 | V130: 16 | W130: 14 | AC130: 9 | AD130: 4 | AE130: 9 | AF130: 4.5 | AG130: =IF(AC130,(3*T130+8*U130+4*V130+3*W130+4*AC130+8*AD130+3*AE130+4*AF130)/(3+8+4+3+4+8+3+4),(3*T130+8*U130+4*V130+3*W130+4*X130+3*Y130+3*Z130+3*AA130+4*AB130)/(3+8+4+3+4+3+3+3+4)) -> 8.135135135 | AH130: =CEILING(M130,0.5) -> 11.5 | AI130: =CEILING(S130,0.5) -> 7.5 | AJ130: =CEILING(AG130,0.5) -> 8.5 | AK130: =(10*AH130+8*AI130+12*AJ130)/30 -> 9.233333333 | AL130: =(10*M130+8*S130+12*AG130)/30 -> 8.921831832
A131: 128 | B131: Thomas De Montpreville | C131: Henri | D131: Cergy | E131: 11.5 | F131: 10 | G131: 9 | H131: 14.5 | I131: 14 | J131: 12.1 | K131: 10 | L131: 14 | M131: =(6*E131+5*F131+4*G131+4*H131+4*I131+6*J131+4*K131+3*L131)/(6+5+4+4+4+6+4+3) -> 11.76666667 | N131: 3.5 | O131: 11 | P131: 7 | Q131: 7 | R131: 4 | S131: =(5*N131+4*O131+2*P131+6*Q131+3*R131)/(5+4+2+6+3) -> 6.475 | T131: 11.5 | U131: 9 | V131: 1 | W131: 12 | X131: 0 | Y131: 3.5 | Z131: 10.2 | AA131: 15 | AB131: 1 | AG131: =IF(AC131,(3*T131+8*U131+4*V131+3*W131+4*AC131+8*AD131+3*AE131+4*AF131)/(3+8+4+3+4+8+3+4),(3*T131+8*U131+4*V131+3*W131+4*X131+3*Y131+3*Z131+3*AA131+4*AB131)/(3+8+4+3+4+3+3+3+4)) -> 6.76 | AH131: =CEILING(M131,0.5) -> 12 | AI131: =CEILING(S131,0.5) -> 6.5 | AJ131: =CEILING(AG131,0.5) -> 7 | AK131: =(10*AH131+8*AI131+12*AJ131)/30 -> 8.533333333 | AL131: =(10*M131+8*S131+12*AG131)/30 -> 8.352888889
A132: 129 | B132: Thomé | C132: Alexis | D132: Cergy | E132: 12.6 | F132: 14.6 | G132: 14 | H132: 15 | I132: 15 | J132: 17.1 | K132: 13 | L132: 17 | M132: =(6*E132+5*F132+4*G132+4*H132+4*I132+6*J132+4*K132+3*L132)/(6+5+4+4+4+6+4+3) -> 14.72777778 | N132: 8.5 | O132: 10 | P132: 7.5 | Q132: 10 | R132: 7.5 | S132: =(5*N132+4*O132+2*P132+6*Q132+3*R132)/(5+4+2+6+3) -> 9 | T132: 4 | U132: 10 | V132: 2.5 | W132: 19 | X132: 5 | Y132: 3 | Z132: 14 | AA132: 12.5 | AB132: 13.5 | AG132: =IF(AC132,(3*T132+8*U132+4*V132+3*W132+4*AC132+8*AD132+3*AE132+4*AF132)/(3+8+4+3+4+8+3+4),(3*T132+8*U132+4*V132+3*W132+4*X132+3*Y132+3*Z132+3*AA132+4*AB132)/(3+8+4+3+4+3+3+3+4)) -> 9.185714286 | AH132: =CEILING(M132,0.5) -> 15 | AI132: =CEILING(S132,0.5) -> 9 | AJ132: =CEILING(AG132,0.5) -> 9.5 | AK132: =(10*AH132+8*AI132+12*AJ132)/30 -> 11.2 | AL132: =(10*M132+8*S132+12*AG132)/30 -> 10.98354497
A133: 130 | B133: Tran | C133: Sylvain | D133: Cergy | E133: 10 | F133: 15 | G133: 12.5 | H133: 14.5 | I133: 13 | J133: 13 | K133: 17 | L133: 19 | M133: =(6*E133+5*F133+4*G133+4*H133+4*I133+6*J133+4*K133+3*L133)/(6+5+4+4+4+6+4+3) -> 13.83333333 | N133: 5 | O133: 4 | P133: 0 | Q133: 4.5 | R133: 5 | S133: =(5*N133+4*O133+2*P133+6*Q133+3*R133)/(5+4+2+6+3) -> 4.15 | T133: 13 | U133: 8.5 | V133: 10 | W133: 13 | X133: 0 | Y133: 2.5 | Z133: 10.5 | AA133: 10.5 | AB133: 0.5 | AG133: =IF(AC133,(3*T133+8*U133+4*V133+3*W133+4*AC133+8*AD133+3*AE133+4*AF133)/(3+8+4+3+4+8+3+4),(3*T133+8*U133+4*V133+3*W133+4*X133+3*Y133+3*Z133+3*AA133+4*AB133)/(3+8+4+3+4+3+3+3+4)) -> 7.385714286 | AH133: =CEILING(M133,0.5) -> 14 | AI133: =CEILING(S133,0.5) -> 4.5 | AJ133: =CEILING(AG133,0.5) -> 7.5 | AK133: =(10*AH133+8*AI133+12*AJ133)/30 -> 8.866666667 | AL133: =(10*M133+8*S133+12*AG133)/30 -> 8.672063492
A134: 131 | B134: Truong | C134: Élise | D134: Cergy | E134: 15.5 | F134: 15 | G134: 13 | H134: 10.5 | I134: 16.5 | J134: 12.6 | K134: 14 | L134: 0 | M134: =(6*E134+5*F134+4*G134+4*H134+4*I134+6*J134+4*K134+3*L134)/(6+5+4+4+4+6+4+3) -> 12.76666667 | N134: 6 | O134: 10 | P134: 6.5 | Q134: 10.25 | R134: 8 | S134: =(5*N134+4*O134+2*P134+6*Q134+3*R134)/(5+4+2+6+3) -> 8.425 | T134: 19.5 | U134: 16 | V134: 15.5 | W134: 9 | AC134: 18 | AD134: 7.5 | AE134: 6 | AF134: 11 | AG134: =IF(AC134,(3*T134+8*U134+4*V134+3*W134+4*AC134+8*AD134+3*AE134+4*AF134)/(3+8+4+3+4+8+3+4),(3*T134+8*U134+4*V134+3*W134+4*X134+3*Y134+3*Z134+3*AA134+4*AB134)/(3+8+4+3+4+3+3+3+4)) -> 12.68918919 | AH134: =CEILING(M134,0.5) -> 13 | AI134: =CEILING(S134,0.5) -> 8.5 | AJ134: =CEILING(AG134,0.5) -> 13 | AK134: =(10*AH134+8*AI134+12*AJ134)/30 -> 11.8 | AL134: =(10*M134+8*S134+12*AG134)/30 -> 11.5778979
A135: 132 | B135: Tyndal | C135: Pierre-Alexandre | D135: Cergy | E135: 11.7 | F135: 13.25 | G135: 11 | H135: 15.5 | I135: 11.5 | J135: 16.5 | K135: 16 | L135: 16 | M135: =(6*E135+5*F135+4*G135+4*H135+4*I135+6*J135+4*K135+3*L135)/(6+5+4+4+4+6+4+3) -> 13.87361111 | N135: 7 | O135: 7 | P135: 7.5 | Q135: 10 | R135: 3.5 | S135: =(5*N135+4*O135+2*P135+6*Q135+3*R135)/(5+4+2+6+3) -> 7.425 | T135: 17.5 | U135: 10.5 | V135: 4 | W135: 11 | X135: 4.5 | Y135: 4.5 | Z135: 11.9 | AA135: 11.5 | AB135: 11.5 | AG135: =IF(AC135,(3*T135+8*U135+4*V135+3*W135+4*AC135+8*AD135+3*AE135+4*AF135)/(3+8+4+3+4+8+3+4),(3*T135+8*U135+4*V135+3*W135+4*X135+3*Y135+3*Z135+3*AA135+4*AB135)/(3+8+4+3+4+3+3+3+4)) -> 9.52 | AH135: =CEILING(M135,0.5) -> 14 | AI135: =CEILING(S135,0.5) -> 7.5 | AJ135: =CEILING(AG135,0.5) -> 10 | AK135: =(10*AH135+8*AI135+12*AJ135)/30 -> 10.66666667 | AL135: =(10*M135+8*S135+12*AG135)/30 -> 10.41253704
A136: 133 | B136: Vannier | C136: Thomas | D136: Cergy | E136: 11.75 | F136: 14 | G136: 11.5 | H136: 13.5 | I136: 16 | J136: 12.1 | K136: 11.5 | L136: 16 | M136: =(6*E136+5*F136+4*G136+4*H136+4*I136+6*J136+4*K136+3*L136)/(6+5+4+4+4+6+4+3) -> 13.08611111 | N136: 4.5 | O136: 4 | P136: 12.5 | Q136: 10 | R136: 9.5 | S136: =(5*N136+4*O136+2*P136+6*Q136+3*R136)/(5+4+2+6+3) -> 7.6 | T136: 9.5 | U136: 13.5 | V136: 10 | W136: 16 | X136: 8.5 | Y136: 0 | Z136: 14.2 | AA136: 16 | AB136: 3.5 | AG136: =IF(AC136,(3*T136+8*U136+4*V136+3*W136+4*AC136+8*AD136+3*AE136+4*AF136)/(3+8+4+3+4+8+3+4),(3*T136+8*U136+4*V136+3*W136+4*X136+3*Y136+3*Z136+3*AA136+4*AB136)/(3+8+4+3+4+3+3+3+4)) -> 10.37428571 | AH136: =CEILING(M136,0.5) -> 13.5 | AI136: =CEILING(S136,0.5) -> 8 | AJ136: =CEILING(AG136,0.5) -> 10.5 | AK136: =(10*AH136+8*AI136+12*AJ136)/30 -> 10.83333333 | AL136: =(10*M136+8*S136+12*AG136)/30 -> 10.53841799
A137: 134 | B137: Witz | C137: Arnaud | D137: Cergy | E137: 15 | F137: 15 | G137: 11.5 | H137: 13.5 | I137: 16.5 | J137: 15 | K137: 15 | L137: 18 | M137: =(6*E137+5*F137+4*G137+4*H137+4*I137+6*J137+4*K137+3*L137)/(6+5+4+4+4+6+4+3) -> 14.86111111 | N137: 10 | O137: 11 | P137: 9.5 | Q137: 10 | R137: 7 | S137: =(5*N137+4*O137+2*P137+6*Q137+3*R137)/(5+4+2+6+3) -> 9.7 | T137: 19 | U137: 17 | V137: 15 | W137: 18 | AC137: 16.5 | AD137: 13.5 | AE137: 10 | AF137: 13 | AG137: =IF(AC137,(3*T137+8*U137+4*V137+3*W137+4*AC137+8*AD137+3*AE137+4*AF137)/(3+8+4+3+4+8+3+4),(3*T137+8*U137+4*V137+3*W137+4*X137+3*Y137+3*Z137+3*AA137+4*AB137)/(3+8+4+3+4+3+3+3+4)) -> 15.21621622 | AH137: =CEILING(M137,0.5) -> 15 | AI137: =CEILING(S137,0.5) -> 10 | AJ137: =CEILING(AG137,0.5) -> 15.5 | AK137: =(10*AH137+8*AI137+12*AJ137)/30 -> 13.86666667 | AL137: =(10*M137+8*S137+12*AG137)/30 -> 13.62685686
A138: 135 | B138: Ziemniak | C138: Gerald | D138: Cergy | E138: 10.55 | F138: 8 | G138: 11.5 | H138: 14.5 | I138: 16 | J138: 12.6 | K138: 12.5 | L138: 17.5 | M138: =(6*E138+5*F138+4*G138+4*H138+4*I138+6*J138+4*K138+3*L138)/(6+5+4+4+4+6+4+3) -> 12.48333333 | N138: 2 | O138: 8 | P138: 7.5 | Q138: 6.5 | R138: 6 | S138: =(5*N138+4*O138+2*P138+6*Q138+3*R138)/(5+4+2+6+3) -> 5.7 | T138: 9.5 | U138: 13 | V138: 4 | W138: 14 | X138: 1 | Y138: 0 | Z138: 11.4 | AA138: 7 | AB138: 5.5 | AG138: =IF(AC138,(3*T138+8*U138+4*V138+3*W138+4*AC138+8*AD138+3*AE138+4*AF138)/(3+8+4+3+4+8+3+4),(3*T138+8*U138+4*V138+3*W138+4*X138+3*Y138+3*Z138+3*AA138+4*AB138)/(3+8+4+3+4+3+3+3+4)) -> 7.762857143 | AH138: =CEILING(M138,0.5) -> 12.5 | AI138: =CEILING(S138,0.5) -> 6 | AJ138: =CEILING(AG138,0.5) -> 8 | AK138: =(10*AH138+8*AI138+12*AJ138)/30 -> 8.966666667 | AL138: =(10*M138+8*S138+12*AG138)/30 -> 8.786253968
A139: 136 | B139: Zouari | C139: Mohamed | D139: Cergy | E139: 15 | F139: 15.75 | G139: 10 | H139: 16 | I139: 11.5 | J139: 10 | K139: 17 | L139: 16 | M139: =(6*E139+5*F139+4*G139+4*H139+4*I139+6*J139+4*K139+3*L139)/(6+5+4+4+4+6+4+3) -> 13.74305556 | N139: 7 | O139: 9.5 | P139: 11.5 | Q139: 6.25 | R139: 4 | S139: =(5*N139+4*O139+2*P139+6*Q139+3*R139)/(5+4+2+6+3) -> 7.275 | T139: 17 | U139: 5 | V139: 14.5 | W139: 12 | AC139: 13.5 | AD139: 7.5 | AE139: 14 | AF139: 13 | AG139: =IF(AC139,(3*T139+8*U139+4*V139+3*W139+4*AC139+8*AD139+3*AE139+4*AF139)/(3+8+4+3+4+8+3+4),(3*T139+8*U139+4*V139+3*W139+4*X139+3*Y139+3*Z139+3*AA139+4*AB139)/(3+8+4+3+4+3+3+3+4)) -> 10.62162162 | AH139: =CEILING(M139,0.5) -> 14 | AI139: =CEILING(S139,0.5) -> 7.5 | AJ139: =CEILING(AG139,0.5) -> 11 | AK139: =(10*AH139+8*AI139+12*AJ139)/30 -> 11.06666667 | AL139: =(10*M139+8*S139+12*AG139)/30 -> 10.76966717
A140: 137 | B140: Anglade | C140: Lucie | D140: Pau | E140: 13 | F140: 16.3 | G140: 12.5 | H140: 12.8 | I140: 11 | J140: 18 | L140: 14 | M140: =(6*E140+5*F140+4*G140+4*H140+4*I140+6*J140+4*K140+3*L140)/(6+5+4+4+4+6+4+3) -> 12.63055556 | N140: 16 | O140: 9.5 | P140: 5.75 | Q140: 8.5 | R140: 6.5 | S140: =(5*N140+4*O140+2*P140+6*Q140+3*R140)/(5+4+2+6+3) -> 10 | T140: 16 | U140: 7.6 | V140: 7.8 | W140: 14 | X140: 5.25 | Y140: 7.6 | Z140: 12.7 | AA140: 15.75 | AB140: 1 | AG140: =IF(AC140,(3*T140+8*U140+4*V140+3*W140+4*AC140+8*AD140+3*AE140+4*AF140)/(3+8+4+3+4+8+3+4),(3*T140+8*U140+4*V140+3*W140+4*X140+3*Y140+3*Z140+3*AA140+4*AB140)/(3+8+4+3+4+3+3+3+4)) -> 9.004285714 | AH140: =CEILING(M140,0.5) -> 13 | AI140: =CEILING(S140,0.5) -> 10 | AJ140: =CEILING(AG140,0.5) -> 9.5 | AK140: =(10*AH140+8*AI140+12*AJ140)/30 -> 10.8 | AL140: =(10*M140+8*S140+12*AG140)/30 -> 10.47856614
A141: 138 | B141: Aouston | C141: François | D141: Pau | E141: 15 | F141: 8.25 | G141: 13 | H141: 12 | I141: 5 | J141: 7 | L141: 14 | M141: =(6*E141+5*F141+4*G141+4*H141+4*I141+6*J141+4*K141+3*L141)/(6+5+4+4+4+6+4+3) -> 9.3125 | N141: 13 | O141: 6 | P141: 15 | Q141: 10 | R141: 15.5 | S141: =(5*N141+4*O141+2*P141+6*Q141+3*R141)/(5+4+2+6+3) -> 11.275 | T141: 11.5 | U141: 1.8 | V141: 5.5 | W141: 0 | X141: 2 | Y141: 7.5 | Z141: 13 | AA141: 11.25 | AB141: 0.5 | AG141: =IF(AC141,(3*T141+8*U141+4*V141+3*W141+4*AC141+8*AD141+3*AE141+4*AF141)/(3+8+4+3+4+8+3+4),(3*T141+8*U141+4*V141+3*W141+4*X141+3*Y141+3*Z141+3*AA141+4*AB141)/(3+8+4+3+4+3+3+3+4)) -> 5.032857143 | AH141: =CEILING(M141,0.5) -> 9.5 | AI141: =CEILING(S141,0.5) -> 11.5 | AJ141: =CEILING(AG141,0.5) -> 5.5 | AK141: =(10*AH141+8*AI141+12*AJ141)/30 -> 8.433333333 | AL141: =(10*M141+8*S141+12*AG141)/30 -> 8.12397619
A142: 139 | B142: Baltayan | C142: Antonin | D142: Pau | E142: 14.3 | F142: 11.25 | G142: 12.5 | H142: 14.4 | I142: 11.5 | J142: 16 | L142: 12 | M142: =(6*E142+5*F142+4*G142+4*H142+4*I142+6*J142+4*K142+3*L142)/(6+5+4+4+4+6+4+3) -> 11.87916667 | N142: 13 | O142: 11.5 | P142: 10.5 | Q142: 5.25 | R142: 6.5 | S142: =(5*N142+4*O142+2*P142+6*Q142+3*R142)/(5+4+2+6+3) -> 9.15 | T142: 13 | U142: 5.1 | V142: 10.3 | W142: 11 | AC142: 7.5 | AD142: 14 | AE142: 10 | AF142: 6.5 | AG142: =IF(AC142,(3*T142+8*U142+4*V142+3*W142+4*AC142+8*AD142+3*AE142+4*AF142)/(3+8+4+3+4+8+3+4),(3*T142+8*U142+4*V142+3*W142+4*X142+3*Y142+3*Z142+3*AA142+4*AB142)/(3+8+4+3+4+3+3+3+4)) -> 9.513513514 | AH142: =CEILING(M142,0.5) -> 12 | AI142: =CEILING(S142,0.5) -> 9.5 | AJ142: =CEILING(AG142,0.5) -> 10 | AK142: =(10*AH142+8*AI142+12*AJ142)/30 -> 10.53333333 | AL142: =(10*M142+8*S142+12*AG142)/30 -> 10.20512763
A143: 140 | B143: Beaucoueste | C143: Maxime | D143: Pau | E143: 12.6 | F143: 13.25 | G143: 10 | H143: 14.4 | I143: 10.5 | J143: 18 | L143: 17 | M143: =(6*E143+5*F143+4*G143+4*H143+4*I143+6*J143+4*K143+3*L143)/(6+5+4+4+4+6+4+3) -> 12.23472222 | N143: 12 | O143: 9.75 | P143: 6.25 | Q143: 5.5 | R143: 1 | S143: =(5*N143+4*O143+2*P143+6*Q143+3*R143)/(5+4+2+6+3) -> 7.375 | T143: 8 | U143: 4.2 | V143: 5.8 | W143: 6 | X143: 5.5 | Y143: 6.5 | Z143: 11.8 | AA143: 16.75 | AB143: 16 | AG143: =IF(AC143,(3*T143+8*U143+4*V143+3*W143+4*AC143+8*AD143+3*AE143+4*AF143)/(3+8+4+3+4+8+3+4),(3*T143+8*U143+4*V143+3*W143+4*X143+3*Y143+3*Z143+3*AA143+4*AB143)/(3+8+4+3+4+3+3+3+4)) -> 8.284285714 | AH143: =CEILING(M143,0.5) -> 12.5 | AI143: =CEILING(S143,0.5) -> 7.5 | AJ143: =CEILING(AG143,0.5) -> 8.5 | AK143: =(10*AH143+8*AI143+12*AJ143)/30 -> 9.566666667 | AL143: =(10*M143+8*S143+12*AG143)/30 -> 9.358621693
A144: 141 | B144: Behra | C144: Nicolas | D144: Pau | E144: 11.5 | F144: 7.5 | G144: 13 | H144: 11.2 | I144: 16 | J144: 18 | L144: 12 | M144: =(6*E144+5*F144+4*G144+4*H144+4*I144+6*J144+4*K144+3*L144)/(6+5+4+4+4+6+4+3) -> 11.425 | N144: 4 | O144: 9 | P144: 11 | Q144: 5.25 | R144: 6 | S144: =(5*N144+4*O144+2*P144+6*Q144+3*R144)/(5+4+2+6+3) -> 6.375 | T144: 7.5 | U144: 7.2 | V144: 7.8 | W144: 9 | X144: 12 | Y144: 5.5 | Z144: 12.5 | AA144: 12.75 | AB144: 0.5 | AG144: =IF(AC144,(3*T144+8*U144+4*V144+3*W144+4*AC144+8*AD144+3*AE144+4*AF144)/(3+8+4+3+4+8+3+4),(3*T144+8*U144+4*V144+3*W144+4*X144+3*Y144+3*Z144+3*AA144+4*AB144)/(3+8+4+3+4+3+3+3+4)) -> 8.015714286 | AH144: =CEILING(M144,0.5) -> 11.5 | AI144: =CEILING(S144,0.5) -> 6.5 | AJ144: =CEILING(AG144,0.5) -> 8.5 | AK144: =(10*AH144+8*AI144+12*AJ144)/30 -> 8.966666667 | AL144: =(10*M144+8*S144+12*AG144)/30 -> 8.714619048
A145: 142 | B145: Bellot | C145: Anne | D145: Pau | E145: 12.5 | F145: 11.8 | G145: 12.5 | H145: 12.2 | I145: 15 | J145: 16 | L145: 14 | M145: =(6*E145+5*F145+4*G145+4*H145+4*I145+6*J145+4*K145+3*L145)/(6+5+4+4+4+6+4+3) -> 11.96666667 | N145: 9 | O145: 8.25 | P145: 14 | Q145: 6.5 | R145: 10.75 | S145: =(5*N145+4*O145+2*P145+6*Q145+3*R145)/(5+4+2+6+3) -> 8.8625 | T145: 17.5 | U145: 7.6 | V145: 6.3 | W145: 13 | X145: 7 | Y145: 15.5 | Z145: 8 | AA145: 13 | AB145: 2 | AG145: =IF(AC145,(3*T145+8*U145+4*V145+3*W145+4*AC145+8*AD145+3*AE145+4*AF145)/(3+8+4+3+4+8+3+4),(3*T145+8*U145+4*V145+3*W145+4*X145+3*Y145+3*Z145+3*AA145+4*AB145)/(3+8+4+3+4+3+3+3+4)) -> 9.228571429 | AH145: =CEILING(M145,0.5) -> 12 | AI145: =CEILING(S145,0.5) -> 9 | AJ145: =CEILING(AG145,0.5) -> 9.5 | AK145: =(10*AH145+8*AI145+12*AJ145)/30 -> 10.2 | AL145: =(10*M145+8*S145+12*AG145)/30 -> 10.04365079
A146: 143 | B146: Berillon | C146: Johan | D146: Pau | E146: 15.6 | F146: 11.6 | G146: 13 | H146: 15 | I146: 18 | J146: 10 | L146: 15 | M146: =(6*E146+5*F146+4*G146+4*H146+4*I146+6*J146+4*K146+3*L146)/(6+5+4+4+4+6+4+3) -> 12.23888889 | N146: 8 | O146: 9.25 | P146: 9.5 | Q146: 4.25 | R146: 6.5 | S146: =(5*N146+4*O146+2*P146+6*Q146+3*R146)/(5+4+2+6+3) -> 7.05 | T146: 10.5 | U146: 7.7 | V146: 8.9 | W146: 9 | X146: 5 | Y146: 4.5 | Z146: 10.6 | AA146: 12.75 | AB146: 8 | AG146: =IF(AC146,(3*T146+8*U146+4*V146+3*W146+4*AC146+8*AD146+3*AE146+4*AF146)/(3+8+4+3+4+8+3+4),(3*T146+8*U146+4*V146+3*W146+4*X146+3*Y146+3*Z146+3*AA146+4*AB146)/(3+8+4+3+4+3+3+3+4)) -> 8.321428571 | AH146: =CEILING(M146,0.5) -> 12.5 | AI146: =CEILING(S146,0.5) -> 7.5 | AJ146: =CEILING(AG146,0.5) -> 8.5 | AK146: =(10*AH146+8*AI146+12*AJ146)/30 -> 9.566666667 | AL146: =(10*M146+8*S146+12*AG146)/30 -> 9.288201058
A147: 144 | B147: Bois | C147: Johan | D147: Pau | E147: 13 | F147: 11 | G147: 14 | H147: 14.2 | I147: 0 | J147: 15 | L147: 12 | M147: =(6*E147+5*F147+4*G147+4*H147+4*I147+6*J147+4*K147+3*L147)/(6+5+4+4+4+6+4+3) -> 10.32777778 | N147: 9 | O147: 10.25 | P147: 13 | Q147: 12.5 | R147: 10.5 | S147: =(5*N147+4*O147+2*P147+6*Q147+3*R147)/(5+4+2+6+3) -> 10.925 | T147: 7 | U147: 0.7 | V147: 0.8 | W147: 4 | X147: 0 | Y147: 17 | Z147: 8.4 | AA147: 9.25 | AB147: 1 | AG147: =IF(AC147,(3*T147+8*U147+4*V147+3*W147+4*AC147+8*AD147+3*AE147+4*AF147)/(3+8+4+3+4+8+3+4),(3*T147+8*U147+4*V147+3*W147+4*X147+3*Y147+3*Z147+3*AA147+4*AB147)/(3+8+4+3+4+3+3+3+4)) -> 4.278571429 | AH147: =CEILING(M147,0.5) -> 10.5 | AI147: =CEILING(S147,0.5) -> 11 | AJ147: =CEILING(AG147,0.5) -> 4.5 | AK147: =(10*AH147+8*AI147+12*AJ147)/30 -> 8.233333333 | AL147: =(10*M147+8*S147+12*AG147)/30 -> 8.067354497
A148: 145 | B148: Bourgain | C148: Maxence | D148: Pau | E148: 12.9 | F148: 16 | G148: 11 | H148: 14.2 | I148: 14 | J148: 13 | L148: 15 | M148: =(6*E148+5*F148+4*G148+4*H148+4*I148+6*J148+4*K148+3*L148)/(6+5+4+4+4+6+4+3) -> 12.14444444 | N148: 14 | O148: 8.5 | P148: 11.5 | Q148: 6.5 | R148: 7.5 | S148: =(5*N148+4*O148+2*P148+6*Q148+3*R148)/(5+4+2+6+3) -> 9.425 | T148: 15 | U148: 7.2 | V148: 7.3 | W148: 11 | X148: 5 | Y148: 10 | Z148: 11.5 | AA148: 15.75 | AB148: 5.5 | AG148: =IF(AC148,(3*T148+8*U148+4*V148+3*W148+4*AC148+8*AD148+3*AE148+4*AF148)/(3+8+4+3+4+8+3+4),(3*T148+8*U148+4*V148+3*W148+4*X148+3*Y148+3*Z148+3*AA148+4*AB148)/(3+8+4+3+4+3+3+3+4)) -> 9.101428571 | AH148: =CEILING(M148,0.5) -> 12.5 | AI148: =CEILING(S148,0.5) -> 9.5 | AJ148: =CEILING(AG148,0.5) -> 9.5 | AK148: =(10*AH148+8*AI148+12*AJ148)/30 -> 10.5 | AL148: =(10*M148+8*S148+12*AG148)/30 -> 10.20205291
A149: 146 | B149: Cassaignau | C149: Oscar | D149: Pau | E149: 12.5 | F149: 13 | G149: 12.5 | H149: 14.2 | I149: 12 | J149: 13.5 | L149: 13 | M149: =(6*E149+5*F149+4*G149+4*H149+4*I149+6*J149+4*K149+3*L149)/(6+5+4+4+4+6+4+3) -> 11.52222222 | N149: 7 | O149: 11.75 | P149: 8.25 | Q149: 3.75 | R149: 3.25 | S149: =(5*N149+4*O149+2*P149+6*Q149+3*R149)/(5+4+2+6+3) -> 6.5375 | T149: 13.5 | U149: 7.3 | V149: 4.1 | W149: 10 | X149: 1 | Y149: 4.5 | Z149: 14.9 | AA149: 16.5 | AB149: 14.5 | AG149: =IF(AC149,(3*T149+8*U149+4*V149+3*W149+4*AC149+8*AD149+3*AE149+4*AF149)/(3+8+4+3+4+8+3+4),(3*T149+8*U149+4*V149+3*W149+4*X149+3*Y149+3*Z149+3*AA149+4*AB149)/(3+8+4+3+4+3+3+3+4)) -> 9 | AH149: =CEILING(M149,0.5) -> 12 | AI149: =CEILING(S149,0.5) -> 7 | AJ149: =CEILING(AG149,0.5) -> 9 | AK149: =(10*AH149+8*AI149+12*AJ149)/30 -> 9.466666667 | AL149: =(10*M149+8*S149+12*AG149)/30 -> 9.184074074
A150: 147 | B150: Cauchet | C150: Guillaume | D150: Pau | E150: 15.2 | F150: 19.8 | G150: 15.5 | H150: 11.4 | I150: 10 | J150: 13.5 | L150: 14 | M150: =(6*E150+5*F150+4*G150+4*H150+4*I150+6*J150+4*K150+3*L150)/(6+5+4+4+4+6+4+3) -> 12.8 | N150: 7 | O150: 12 | P150: 8.5 | Q150: 6.25 | R150: 1.5 | S150: =(5*N150+4*O150+2*P150+6*Q150+3*R150)/(5+4+2+6+3) -> 7.1 | T150: 14 | U150: 1.9 | V150: 1.1 | W150: 11 | X150: 12 | Y150: 5 | Z150: 13.8 | AA150: 15.5 | AB150: 3 | AG150: =IF(AC150,(3*T150+8*U150+4*V150+3*W150+4*AC150+8*AD150+3*AE150+4*AF150)/(3+8+4+3+4+8+3+4),(3*T150+8*U150+4*V150+3*W150+4*X150+3*Y150+3*Z150+3*AA150+4*AB150)/(3+8+4+3+4+3+3+3+4)) -> 7.357142857 | AH150: =CEILING(M150,0.5) -> 13 | AI150: =CEILING(S150,0.5) -> 7.5 | AJ150: =CEILING(AG150,0.5) -> 7.5 | AK150: =(10*AH150+8*AI150+12*AJ150)/30 -> 9.333333333 | AL150: =(10*M150+8*S150+12*AG150)/30 -> 9.102857143
A151: 148 | B151: Dingome Nyemeck | C151: Joachim Gabriel | D151: Pau | E151: 11.4 | F151: 11.4 | G151: 14.5 | H151: 12.2 | I151: 13 | J151: 18 | L151: 14 | M151: =(6*E151+5*F151+4*G151+4*H151+4*I151+6*J151+4*K151+3*L151)/(6+5+4+4+4+6+4+3) -> 12.06111111 | N151: 9 | O151: 5.5 | P151: 11 | Q151: 3.25 | R151: 4.5 | S151: =(5*N151+4*O151+2*P151+6*Q151+3*R151)/(5+4+2+6+3) -> 6.1 | T151: 6 | U151: 6.9 | V151: 9.6 | W151: 2 | X151: 5.25 | Y151: 6.5 | Z151: 8.1 | AA151: 9 | AB151: 0.5 | AG151: =IF(AC151,(3*T151+8*U151+4*V151+3*W151+4*AC151+8*AD151+3*AE151+4*AF151)/(3+8+4+3+4+8+3+4),(3*T151+8*U151+4*V151+3*W151+4*X151+3*Y151+3*Z151+3*AA151+4*AB151)/(3+8+4+3+4+3+3+3+4)) -> 6.04 | AH151: =CEILING(M151,0.5) -> 12.5 | AI151: =CEILING(S151,0.5) -> 6.5 | AJ151: =CEILING(AG151,0.5) -> 6.5 | AK151: =(10*AH151+8*AI151+12*AJ151)/30 -> 8.5 | AL151: =(10*M151+8*S151+12*AG151)/30 -> 8.063037037
A152: 149 | B152: Duputs | C152: Guillaume | D152: Pau | E152: 14.9 | F152: 15.5 | G152: 15 | H152: 10.8 | I152: 16 | J152: 16 | L152: 16 | M152: =(6*E152+5*F152+4*G152+4*H152+4*I152+6*J152+4*K152+3*L152)/(6+5+4+4+4+6+4+3) -> 13.28055556 | N152: 13 | O152: 12.25 | P152: 14 | Q152: 8.25 | R152: 13.75 | S152: =(5*N152+4*O152+2*P152+6*Q152+3*R152)/(5+4+2+6+3) -> 11.6375 | T152: 20 | U152: 8.2 | V152: 12.1 | W152: 10 | X152: 5.75 | Y152: 9 | Z152: 15.1 | AA152: 15 | AB152: 15.5 | AG152: =IF(AC152,(3*T152+8*U152+4*V152+3*W152+4*AC152+8*AD152+3*AE152+4*AF152)/(3+8+4+3+4+8+3+4),(3*T152+8*U152+4*V152+3*W152+4*X152+3*Y152+3*Z152+3*AA152+4*AB152)/(3+8+4+3+4+3+3+3+4)) -> 11.60857143 | AH152: =CEILING(M152,0.5) -> 13.5 | AI152: =CEILING(S152,0.5) -> 12 | AJ152: =CEILING(AG152,0.5) -> 12 | AK152: =(10*AH152+8*AI152+12*AJ152)/30 -> 12.5 | AL152: =(10*M152+8*S152+12*AG152)/30 -> 12.17361376
A153: 150 | B153: Etmezguine | C153: Alexandre | D153: Pau | E153: 13.9 | F153: 14 | G153: 12 | H153: 14.2 | I153: 12.5 | J153: 12 | L153: 17 | M153: =(6*E153+5*F153+4*G153+4*H153+4*I153+6*J153+4*K153+3*L153)/(6+5+4+4+4+6+4+3) -> 11.97777778 | N153: 3 | O153: 5.5 | P153: 5.5 | Q153: 5.75 | R153: 4.5 | S153: =(5*N153+4*O153+2*P153+6*Q153+3*R153)/(5+4+2+6+3) -> 4.8 | T153: 19 | U153: 10.7 | V153: 5.9 | W153: 7 | X153: 6.25 | Y153: 7 | Z153: 14.2 | AA153: 12.75 | AB153: 5.5 | AG153: =IF(AC153,(3*T153+8*U153+4*V153+3*W153+4*AC153+8*AD153+3*AE153+4*AF153)/(3+8+4+3+4+8+3+4),(3*T153+8*U153+4*V153+3*W153+4*X153+3*Y153+3*Z153+3*AA153+4*AB153)/(3+8+4+3+4+3+3+3+4)) -> 9.601428571 | AH153: =CEILING(M153,0.5) -> 12 | AI153: =CEILING(S153,0.5) -> 5 | AJ153: =CEILING(AG153,0.5) -> 10 | AK153: =(10*AH153+8*AI153+12*AJ153)/30 -> 9.333333333 | AL153: =(10*M153+8*S153+12*AG153)/30 -> 9.113164021
A154: 151 | B154: Ferraris | C154: Anthony | D154: Pau | E154: 12.6 | F154: 10 | G154: 10 | H154: 12.4 | I154: 13 | J154: 16 | L154: 15 | M154: =(6*E154+5*F154+4*G154+4*H154+4*I154+6*J154+4*K154+3*L154)/(6+5+4+4+4+6+4+3) -> 11.33888889 | N154: 12 | O154: 6.75 | P154: 6 | Q154: 6 | R154: 7.5 | S154: =(5*N154+4*O154+2*P154+6*Q154+3*R154)/(5+4+2+6+3) -> 7.875 | T154: 18 | U154: 11.1 | V154: 9.8 | W154: 14 | X154: 8 | Y154: 5 | Z154: 10.3 | AA154: 12 | AB154: 8 | AG154: =IF(AC154,(3*T154+8*U154+4*V154+3*W154+4*AC154+8*AD154+3*AE154+4*AF154)/(3+8+4+3+4+8+3+4),(3*T154+8*U154+4*V154+3*W154+4*X154+3*Y154+3*Z154+3*AA154+4*AB154)/(3+8+4+3+4+3+3+3+4)) -> 10.56857143 | AH154: =CEILING(M154,0.5) -> 11.5 | AI154: =CEILING(S154,0.5) -> 8 | AJ154: =CEILING(AG154,0.5) -> 11 | AK154: =(10*AH154+8*AI154+12*AJ154)/30 -> 10.36666667 | AL154: =(10*M154+8*S154+12*AG154)/30 -> 10.1070582
A155: 152 | B155: Frelot | C155: Arthur | D155: Pau | E155: 12 | F155: 12.5 | G155: 12 | H155: 14.2 | I155: 8 | J155: 13.5 | L155: 16 | M155: =(6*E155+5*F155+4*G155+4*H155+4*I155+6*J155+4*K155+3*L155)/(6+5+4+4+4+6+4+3) -> 11.11944444 | N155: 8 | O155: 5 | P155: 5.75 | Q155: 2.75 | R155: 10.5 | S155: =(5*N155+4*O155+2*P155+6*Q155+3*R155)/(5+4+2+6+3) -> 5.975 | T155: 11.5 | U155: 4.9 | V155: 9.4 | W155: 5 | X155: 3.5 | Y155: 7.5 | Z155: 10.2 | AA155: 13.75 | AB155: 2.5 | AG155: =IF(AC155,(3*T155+8*U155+4*V155+3*W155+4*AC155+8*AD155+3*AE155+4*AF155)/(3+8+4+3+4+8+3+4),(3*T155+8*U155+4*V155+3*W155+4*X155+3*Y155+3*Z155+3*AA155+4*AB155)/(3+8+4+3+4+3+3+3+4)) -> 6.99 | AH155: =CEILING(M155,0.5) -> 11.5 | AI155: =CEILING(S155,0.5) -> 6 | AJ155: =CEILING(AG155,0.5) -> 7 | AK155: =(10*AH155+8*AI155+12*AJ155)/30 -> 8.233333333 | AL155: =(10*M155+8*S155+12*AG155)/30 -> 8.095814815
A156: 153 | B156: Godet | C156: Maxence | D156: Pau | E156: 15.8 | F156: 11.7 | G156: 12 | H156: 10.8 | I156: 12 | J156: 12 | L156: 15 | M156: =(6*E156+5*F156+4*G156+4*H156+4*I156+6*J156+4*K156+3*L156)/(6+5+4+4+4+6+4+3) -> 11.375 | N156: 12 | O156: 8 | P156: 6.25 | Q156: 4.25 | R156: 3.5 | S156: =(5*N156+4*O156+2*P156+6*Q156+3*R156)/(5+4+2+6+3) -> 7.025 | T156: 1.5 | U156: 4.9 | V156: 5.8 | W156: 8 | X156: 5.25 | Y156: 9 | Z156: 10.6 | AA156: 15.75 | AB156: 13 | AG156: =IF(AC156,(3*T156+8*U156+4*V156+3*W156+4*AC156+8*AD156+3*AE156+4*AF156)/(3+8+4+3+4+8+3+4),(3*T156+8*U156+4*V156+3*W156+4*X156+3*Y156+3*Z156+3*AA156+4*AB156)/(3+8+4+3+4+3+3+3+4)) -> 7.712857143 | AH156: =CEILING(M156,0.5) -> 11.5 | AI156: =CEILING(S156,0.5) -> 7.5 | AJ156: =CEILING(AG156,0.5) -> 8 | AK156: =(10*AH156+8*AI156+12*AJ156)/30 -> 9.033333333 | AL156: =(10*M156+8*S156+12*AG156)/30 -> 8.750142857
A157: 154 | B157: Gomar | C157: Damien | D157: Pau | E157: 13.1 | F157: 14.5 | G157: 14 | H157: 14.2 | I157: 14.5 | J157: 18 | L157: 17 | M157: =(6*E157+5*F157+4*G157+4*H157+4*I157+6*J157+4*K157+3*L157)/(6+5+4+4+4+6+4+3) -> 13.35833333 | N157: 11 | O157: 8 | P157: 12 | Q157: 6.25 | R157: 5.25 | S157: =(5*N157+4*O157+2*P157+6*Q157+3*R157)/(5+4+2+6+3) -> 8.2125 | T157: 17.5 | U157: 10.7 | V157: 9.9 | W157: 14 | X157: 5 | Y157: 7.5 | Z157: 11.5 | AA157: 16.25 | AB157: 13.5 | AG157: =IF(AC157,(3*T157+8*U157+4*V157+3*W157+4*AC157+8*AD157+3*AE157+4*AF157)/(3+8+4+3+4+8+3+4),(3*T157+8*U157+4*V157+3*W157+4*X157+3*Y157+3*Z157+3*AA157+4*AB157)/(3+8+4+3+4+3+3+3+4)) -> 11.41285714 | AH157: =CEILING(M157,0.5) -> 13.5 | AI157: =CEILING(S157,0.5) -> 8.5 | AJ157: =CEILING(AG157,0.5) -> 11.5 | AK157: =(10*AH157+8*AI157+12*AJ157)/30 -> 11.36666667 | AL157: =(10*M157+8*S157+12*AG157)/30 -> 11.20792063
A158: 155 | B158: Griolet | C158: Sébastien | D158: Pau | E158: 14.5 | F158: 12 | G158: 11.5 | H158: 10.8 | I158: 15 | J158: 18 | L158: 14 | M158: =(6*E158+5*F158+4*G158+4*H158+4*I158+6*J158+4*K158+3*L158)/(6+5+4+4+4+6+4+3) -> 12.39444444 | N158: 16 | O158: 10 | P158: 8.25 | Q158: 4.5 | R158: 8.25 | S158: =(5*N158+4*O158+2*P158+6*Q158+3*R158)/(5+4+2+6+3) -> 9.4125 | T158: 16 | U158: 5.6 | V158: 10 | W158: 16 | X158: 4.5 | Y158: 10 | Z158: 12.2 | AA158: 14.25 | AB158: 4.5 | AG158: =IF(AC158,(3*T158+8*U158+4*V158+3*W158+4*AC158+8*AD158+3*AE158+4*AF158)/(3+8+4+3+4+8+3+4),(3*T158+8*U158+4*V158+3*W158+4*X158+3*Y158+3*Z158+3*AA158+4*AB158)/(3+8+4+3+4+3+3+3+4)) -> 9.318571429 | AH158: =CEILING(M158,0.5) -> 12.5 | AI158: =CEILING(S158,0.5) -> 9.5 | AJ158: =CEILING(AG158,0.5) -> 9.5 | AK158: =(10*AH158+8*AI158+12*AJ158)/30 -> 10.5 | AL158: =(10*M158+8*S158+12*AG158)/30 -> 10.36891005
A159: 156 | B159: Lamarche | C159: Ludovic | D159: Pau | E159: 14 | F159: 12.8 | G159: 10.5 | H159: 14.2 | I159: 8 | J159: 18 | L159: 17 | M159: =(6*E159+5*F159+4*G159+4*H159+4*I159+6*J159+4*K159+3*L159)/(6+5+4+4+4+6+4+3) -> 12.16111111 | N159: 15 | O159: 15.5 | P159: 19 | Q159: 13.25 | R159: 15.25 | S159: =(5*N159+4*O159+2*P159+6*Q159+3*R159)/(5+4+2+6+3) -> 15.0125 | T159: 20 | U159: 9.4 | V159: 13.6 | W159: 13 | X159: 17.25 | Y159: 19 | Z159: 16 | AA159: 16.5 | AB159: 20 | AG159: =IF(AC159,(3*T159+8*U159+4*V159+3*W159+4*AC159+8*AD159+3*AE159+4*AF159)/(3+8+4+3+4+8+3+4),(3*T159+8*U159+4*V159+3*W159+4*X159+3*Y159+3*Z159+3*AA159+4*AB159)/(3+8+4+3+4+3+3+3+4)) -> 15.20285714 | AH159: =CEILING(M159,0.5) -> 12.5 | AI159: =CEILING(S159,0.5) -> 15.5 | AJ159: =CEILING(AG159,0.5) -> 15.5 | AK159: =(10*AH159+8*AI159+12*AJ159)/30 -> 14.5 | AL159: =(10*M159+8*S159+12*AG159)/30 -> 14.13817989
A160: 157 | B160: Lartigue | C160: Benjamin | D160: Pau | E160: 14.3 | F160: 14.5 | G160: 13.5 | H160: 10.8 | I160: 18 | J160: 15 | L160: 17 | M160: =(6*E160+5*F160+4*G160+4*H160+4*I160+6*J160+4*K160+3*L160)/(6+5+4+4+4+6+4+3) -> 13.01388889 | N160: 8 | O160: 10.75 | P160: 8 | Q160: 6.5 | R160: 15 | S160: =(5*N160+4*O160+2*P160+6*Q160+3*R160)/(5+4+2+6+3) -> 9.15 | T160: 17 | U160: 13.1 | V160: 9.4 | W160: 18 | X160: 7.5 | Y160: 8.5 | Z160: 15.7 | AA160: 14.5 | AB160: 8.5 | AG160: =IF(AC160,(3*T160+8*U160+4*V160+3*W160+4*AC160+8*AD160+3*AE160+4*AF160)/(3+8+4+3+4+8+3+4),(3*T160+8*U160+4*V160+3*W160+4*X160+3*Y160+3*Z160+3*AA160+4*AB160)/(3+8+4+3+4+3+3+3+4)) -> 12.21428571 | AH160: =CEILING(M160,0.5) -> 13.5 | AI160: =CEILING(S160,0.5) -> 9.5 | AJ160: =CEILING(AG160,0.5) -> 12.5 | AK160: =(10*AH160+8*AI160+12*AJ160)/30 -> 12.03333333 | AL160: =(10*M160+8*S160+12*AG160)/30 -> 11.66367725
A161: 158 | B161: Lefebvre | C161: Théo | D161: Pau | E161: 13.3 | F161: 12.5 | G161: 10.5 | H161: 11 | I161: 9 | J161: 16 | L161: 12 | M161: =(6*E161+5*F161+4*G161+4*H161+4*I161+6*J161+4*K161+3*L161)/(6+5+4+4+4+6+4+3) -> 11.00833333 | N161: 6 | O161: 5.5 | P161: 2 | Q161: 2 | R161: 1 | S161: =(5*N161+4*O161+2*P161+6*Q161+3*R161)/(5+4+2+6+3) -> 3.55 | T161: 15 | U161: 9.7 | V161: 10.6 | W161: 11 | AC161: 13 | AD161: 11 | AE161: 12 | AF161: 11 | AG161: =IF(AC161,(3*T161+8*U161+4*V161+3*W161+4*AC161+8*AD161+3*AE161+4*AF161)/(3+8+4+3+4+8+3+4),(3*T161+8*U161+4*V161+3*W161+4*X161+3*Y161+3*Z161+3*AA161+4*AB161)/(3+8+4+3+4+3+3+3+4)) -> 11.2972973 | AH161: =CEILING(M161,0.5) -> 11.5 | AI161: =CEILING(S161,0.5) -> 4 | AJ161: =CEILING(AG161,0.5) -> 11.5 | AK161: =(10*AH161+8*AI161+12*AJ161)/30 -> 9.5 | AL161: =(10*M161+8*S161+12*AG161)/30 -> 9.13503003
A162: 159 | B162: Lemoine | C162: Jean-Baptiste | D162: Pau | E162: 15.6 | F162: 15 | G162: 14.5 | H162: 9.6 | I162: 16.5 | J162: 16 | L162: 14 | M162: =(6*E162+5*F162+4*G162+4*H162+4*I162+6*J162+4*K162+3*L162)/(6+5+4+4+4+6+4+3) -> 13.02777778 | N162: 10 | O162: 9.5 | P162: 9.75 | Q162: 7.75 | R162: 6.75 | S162: =(5*N162+4*O162+2*P162+6*Q162+3*R162)/(5+4+2+6+3) -> 8.7125 | T162: 13 | U162: 10 | V162: 10.9 | W162: 6 | X162: 8 | Y162: 6 | Z162: 13.3 | AA162: 17 | AB162: 5 | AG162: =IF(AC162,(3*T162+8*U162+4*V162+3*W162+4*AC162+8*AD162+3*AE162+4*AF162)/(3+8+4+3+4+8+3+4),(3*T162+8*U162+4*V162+3*W162+4*X162+3*Y162+3*Z162+3*AA162+4*AB162)/(3+8+4+3+4+3+3+3+4)) -> 9.757142857 | AH162: =CEILING(M162,0.5) -> 13.5 | AI162: =CEILING(S162,0.5) -> 9 | AJ162: =CEILING(AG162,0.5) -> 10 | AK162: =(10*AH162+8*AI162+12*AJ162)/30 -> 10.9 | AL162: =(10*M162+8*S162+12*AG162)/30 -> 10.56878307
A163: 160 | B163: Limbourg | C163: Jonathan | D163: Pau | E163: 11.6 | F163: 8.5 | G163: 12.5 | H163: 14.2 | I163: 9 | J163: 16 | L163: 18 | M163: =(6*E163+5*F163+4*G163+4*H163+4*I163+6*J163+4*K163+3*L163)/(6+5+4+4+4+6+4+3) -> 11.24722222 | N163: 20 | O163: 14.25 | P163: 13.25 | Q163: 11.5 | R163: 14.5 | S163: =(5*N163+4*O163+2*P163+6*Q163+3*R163)/(5+4+2+6+3) -> 14.8 | T163: 18.5 | U163: 11 | V163: 18.9 | W163: 18 | AC163: 20 | AD163: 19 | AE163: 16.5 | AF163: 14 | AG163: =IF(AC163,(3*T163+8*U163+4*V163+3*W163+4*AC163+8*AD163+3*AE163+4*AF163)/(3+8+4+3+4+8+3+4),(3*T163+8*U163+4*V163+3*W163+4*X163+3*Y163+3*Z163+3*AA163+4*AB163)/(3+8+4+3+4+3+3+3+4)) -> 16.5027027 | AH163: =CEILING(M163,0.5) -> 11.5 | AI163: =CEILING(S163,0.5) -> 15 | AJ163: =CEILING(AG163,0.5) -> 17 | AK163: =(10*AH163+8*AI163+12*AJ163)/30 -> 14.63333333 | AL163: =(10*M163+8*S163+12*AG163)/30 -> 14.29682182
A164: 161 | B164: Michaud | C164: Victor | D164: Pau | E164: 11.8 | F164: 10 | G164: 14.5 | H164: 14.2 | I164: 13 | J164: 18 | L164: 16 | M164: =(6*E164+5*F164+4*G164+4*H164+4*I164+6*J164+4*K164+3*L164)/(6+5+4+4+4+6+4+3) -> 12.32222222 | N164: 6 | O164: 5 | P164: 3.25 | Q164: 2.5 | R164: 3 | S164: =(5*N164+4*O164+2*P164+6*Q164+3*R164)/(5+4+2+6+3) -> 4.025 | T164: 9 | U164: 2.2 | V164: 2.6 | W164: 6 | X164: 0.25 | Y164: 0 | Z164: 9 | AA164: 16 | AB164: 3 | AG164: =IF(AC164,(3*T164+8*U164+4*V164+3*W164+4*AC164+8*AD164+3*AE164+4*AF164)/(3+8+4+3+4+8+3+4),(3*T164+8*U164+4*V164+3*W164+4*X164+3*Y164+3*Z164+3*AA164+4*AB164)/(3+8+4+3+4+3+3+3+4)) -> 4.6 | AH164: =CEILING(M164,0.5) -> 12.5 | AI164: =CEILING(S164,0.5) -> 4.5 | AJ164: =CEILING(AG164,0.5) -> 5 | AK164: =(10*AH164+8*AI164+12*AJ164)/30 -> 7.366666667 | AL164: =(10*M164+8*S164+12*AG164)/30 -> 7.020740741
A165: 162 | B165: Muscat | C165: Tristan | D165: Pau | E165: 14.5 | F165: 12.2 | G165: 13.5 | H165: 11.4 | I165: 16 | J165: 13.5 | L165: 18 | M165: =(6*E165+5*F165+4*G165+4*H165+4*I165+6*J165+4*K165+3*L165)/(6+5+4+4+4+6+4+3) -> 12.40555556 | N165: 16 | O165: 11.75 | P165: 12.75 | Q165: 8 | R165: 8.5 | S165: =(5*N165+4*O165+2*P165+6*Q165+3*R165)/(5+4+2+6+3) -> 11.3 | T165: 14.5 | U165: 10.3 | V165: 11.9 | W165: 15 | AC165: 12.5 | AD165: 13.5 | AE165: 14 | AF165: 6.5 | AG165: =IF(AC165,(3*T165+8*U165+4*V165+3*W165+4*AC165+8*AD165+3*AE165+4*AF165)/(3+8+4+3+4+8+3+4),(3*T165+8*U165+4*V165+3*W165+4*X165+3*Y165+3*Z165+3*AA165+4*AB165)/(3+8+4+3+4+3+3+3+4)) -> 12.01351351 | AH165: =CEILING(M165,0.5) -> 12.5 | AI165: =CEILING(S165,0.5) -> 11.5 | AJ165: =CEILING(AG165,0.5) -> 12.5 | AK165: =(10*AH165+8*AI165+12*AJ165)/30 -> 12.23333333 | AL165: =(10*M165+8*S165+12*AG165)/30 -> 11.95392392
A166: 163 | B166: Nezout | C166: Carlos | D166: Pau | E166: 12.1 | F166: 12 | G166: 14 | H166: 14.2 | I166: 7 | J166: 12.5 | L166: 12 | M166: =(6*E166+5*F166+4*G166+4*H166+4*I166+6*J166+4*K166+3*L166)/(6+5+4+4+4+6+4+3) -> 10.67777778 | N166: 0 | O166: 4.25 | P166: 7 | Q166: 5.5 | R166: 3 | S166: =(5*N166+4*O166+2*P166+6*Q166+3*R166)/(5+4+2+6+3) -> 3.65 | T166: 7.5 | U166: 1.1 | V166: 1.5 | W166: 2 | X166: 1 | Y166: 6 | Z166: 5 | AA166: 11 | AB166: 0 | AG166: =IF(AC166,(3*T166+8*U166+4*V166+3*W166+4*AC166+8*AD166+3*AE166+4*AF166)/(3+8+4+3+4+8+3+4),(3*T166+8*U166+4*V166+3*W166+4*X166+3*Y166+3*Z166+3*AA166+4*AB166)/(3+8+4+3+4+3+3+3+4)) -> 3.237142857 | AH166: =CEILING(M166,0.5) -> 11 | AI166: =CEILING(S166,0.5) -> 4 | AJ166: =CEILING(AG166,0.5) -> 3.5 | AK166: =(10*AH166+8*AI166+12*AJ166)/30 -> 6.133333333 | AL166: =(10*M166+8*S166+12*AG166)/30 -> 5.827449735
A167: 164 | B167: Nusbaum | C167: Thomas | D167: Pau | E167: 15.7 | F167: 12.5 | G167: 13.5 | H167: 12 | I167: 14 | J167: 16 | L167: 14 | M167: =(6*E167+5*F167+4*G167+4*H167+4*I167+6*J167+4*K167+3*L167)/(6+5+4+4+4+6+4+3) -> 12.575 | N167: 18 | O167: 8.25 | P167: 15.25 | Q167: 8.25 | R167: 15.25 | S167: =(5*N167+4*O167+2*P167+6*Q167+3*R167)/(5+4+2+6+3) -> 12.4375 | T167: 15 | U167: 8.5 | V167: 10.8 | W167: 14 | X167: 13.5 | Y167: 6.5 | Z167: 10.5 | AA167: 16.25 | AB167: 13.5 | AG167: =IF(AC167,(3*T167+8*U167+4*V167+3*W167+4*AC167+8*AD167+3*AE167+4*AF167)/(3+8+4+3+4+8+3+4),(3*T167+8*U167+4*V167+3*W167+4*X167+3*Y167+3*Z167+3*AA167+4*AB167)/(3+8+4+3+4+3+3+3+4)) -> 11.59857143 | AH167: =CEILING(M167,0.5) -> 13 | AI167: =CEILING(S167,0.5) -> 12.5 | AJ167: =CEILING(AG167,0.5) -> 12 | AK167: =(10*AH167+8*AI167+12*AJ167)/30 -> 12.46666667 | AL167: =(10*M167+8*S167+12*AG167)/30 -> 12.1477619
A168: 165 | B168: Ollivier | C168: Guillaume | D168: Pau | E168: 15.2 | F168: 18 | G168: 12.5 | H168: 12.8 | I168: 15 | J168: 17 | L168: 12 | M168: =(6*E168+5*F168+4*G168+4*H168+4*I168+6*J168+4*K168+3*L168)/(6+5+4+4+4+6+4+3) -> 13.34444444 | N168: 10 | O168: 9.75 | P168: 4.25 | Q168: 5 | R168: 5.5 | S168: =(5*N168+4*O168+2*P168+6*Q168+3*R168)/(5+4+2+6+3) -> 7.2 | T168: 15.5 | U168: 9.4 | V168: 7.9 | W168: 3 | AC168: 9.5 | AD168: 14 | AE168: 14.5 | AF168: 7.5 | AG168: =IF(AC168,(3*T168+8*U168+4*V168+3*W168+4*AC168+8*AD168+3*AE168+4*AF168)/(3+8+4+3+4+8+3+4),(3*T168+8*U168+4*V168+3*W168+4*X168+3*Y168+3*Z168+3*AA168+4*AB168)/(3+8+4+3+4+3+3+3+4)) -> 10.42702703 | AH168: =CEILING(M168,0.5) -> 13.5 | AI168: =CEILING(S168,0.5) -> 7.5 | AJ168: =CEILING(AG168,0.5) -> 10.5 | AK168: =(10*AH168+8*AI168+12*AJ168)/30 -> 10.7 | AL168: =(10*M168+8*S168+12*AG168)/30 -> 10.53895896
A169: 166 | B169: Pedreau | C169: Sébastien | D169: Pau | E169: 14.8 | F169: 15.8 | G169: 12.25 | H169: 15 | I169: 16 | J169: 16 | L169: 14 | M169: =(6*E169+5*F169+4*G169+4*H169+4*I169+6*J169+4*K169+3*L169)/(6+5+4+4+4+6+4+3) -> 13.3 | N169: 10 | O169: 12 | P169: 10 | Q169: 5.5 | R169: 9.5 | S169: =(5*N169+4*O169+2*P169+6*Q169+3*R169)/(5+4+2+6+3) -> 8.975 | T169: 18.5 | U169: 8.9 | V169: 9.4 | W169: 16 | X169: 8.25 | Y169: 17 | Z169: 16.4 | AA169: 10.75 | AB169: 12.5 | AG169: =IF(AC169,(3*T169+8*U169+4*V169+3*W169+4*AC169+8*AD169+3*AE169+4*AF169)/(3+8+4+3+4+8+3+4),(3*T169+8*U169+4*V169+3*W169+4*X169+3*Y169+3*Z169+3*AA169+4*AB169)/(3+8+4+3+4+3+3+3+4)) -> 12.22142857 | AH169: =CEILING(M169,0.5) -> 13.5 | AI169: =CEILING(S169,0.5) -> 9 | AJ169: =CEILING(AG169,0.5) -> 12.5 | AK169: =(10*AH169+8*AI169+12*AJ169)/30 -> 11.9 | AL169: =(10*M169+8*S169+12*AG169)/30 -> 11.7152381
A170: 167 | B170: Perales | C170: Quentin | D170: Pau | E170: 15.5 | F170: 15 | G170: 14.5 | H170: 12 | I170: 11.5 | J170: 18 | L170: 18 | M170: =(6*E170+5*F170+4*G170+4*H170+4*I170+6*J170+4*K170+3*L170)/(6+5+4+4+4+6+4+3) -> 13.38888889 | N170: 19 | O170: 13.25 | P170: 20 | Q170: 10 | R170: 15.75 | S170: =(5*N170+4*O170+2*P170+6*Q170+3*R170)/(5+4+2+6+3) -> 14.7625 | T170: 20 | U170: 10.8 | V170: 14.3 | W170: 15 | AC170: 12.5 | AD170: 16 | AE170: 14 | AF170: 10 | AG170: =IF(AC170,(3*T170+8*U170+4*V170+3*W170+4*AC170+8*AD170+3*AE170+4*AF170)/(3+8+4+3+4+8+3+4),(3*T170+8*U170+4*V170+3*W170+4*X170+3*Y170+3*Z170+3*AA170+4*AB170)/(3+8+4+3+4+3+3+3+4)) -> 13.74594595 | AH170: =CEILING(M170,0.5) -> 13.5 | AI170: =CEILING(S170,0.5) -> 15 | AJ170: =CEILING(AG170,0.5) -> 14 | AK170: =(10*AH170+8*AI170+12*AJ170)/30 -> 14.1 | AL170: =(10*M170+8*S170+12*AG170)/30 -> 13.89800801
A171: 168 | B171: Piriou | C171: Thibault | D171: Pau | E171: 14.5 | F171: 14.75 | G171: 14.5 | H171: 9.6 | I171: 9 | J171: 16 | L171: 12 | M171: =(6*E171+5*F171+4*G171+4*H171+4*I171+6*J171+4*K171+3*L171)/(6+5+4+4+4+6+4+3) -> 11.80972222 | N171: 8 | O171: 5.5 | P171: 9.5 | Q171: 5.5 | R171: 12.25 | S171: =(5*N171+4*O171+2*P171+6*Q171+3*R171)/(5+4+2+6+3) -> 7.5375 | T171: 10.5 | U171: 1.9 | V171: 9.5 | W171: 9 | X171: 2 | Y171: 5.5 | Z171: 9.6 | AA171: 15.5 | AB171: 12 | AG171: =IF(AC171,(3*T171+8*U171+4*V171+3*W171+4*AC171+8*AD171+3*AE171+4*AF171)/(3+8+4+3+4+8+3+4),(3*T171+8*U171+4*V171+3*W171+4*X171+3*Y171+3*Z171+3*AA171+4*AB171)/(3+8+4+3+4+3+3+3+4)) -> 7.414285714 | AH171: =CEILING(M171,0.5) -> 12 | AI171: =CEILING(S171,0.5) -> 8 | AJ171: =CEILING(AG171,0.5) -> 7.5 | AK171: =(10*AH171+8*AI171+12*AJ171)/30 -> 9.133333333 | AL171: =(10*M171+8*S171+12*AG171)/30 -> 8.91228836
A172: 169 | B172: Poussou | C172: Elie | D172: Pau | E172: 14.1 | F172: 11 | G172: 11 | H172: 15.4 | I172: 16 | J172: 15 | L172: 13 | M172: =(6*E172+5*F172+4*G172+4*H172+4*I172+6*J172+4*K172+3*L172)/(6+5+4+4+4+6+4+3) -> 12.17222222 | N172: 8 | O172: 11.75 | P172: 11.25 | Q172: 8.75 | R172: 2.5 | S172: =(5*N172+4*O172+2*P172+6*Q172+3*R172)/(5+4+2+6+3) -> 8.475 | T172: 9.5 | U172: 4.4 | V172: 13.1 | W172: 6 | X172: 3.75 | Y172: 6.5 | Z172: 14 | AA172: 13 | AB172: 2.5 | AG172: =IF(AC172,(3*T172+8*U172+4*V172+3*W172+4*AC172+8*AD172+3*AE172+4*AF172)/(3+8+4+3+4+8+3+4),(3*T172+8*U172+4*V172+3*W172+4*X172+3*Y172+3*Z172+3*AA172+4*AB172)/(3+8+4+3+4+3+3+3+4)) -> 7.417142857 | AH172: =CEILING(M172,0.5) -> 12.5 | AI172: =CEILING(S172,0.5) -> 8.5 | AJ172: =CEILING(AG172,0.5) -> 7.5 | AK172: =(10*AH172+8*AI172+12*AJ172)/30 -> 9.433333333 | AL172: =(10*M172+8*S172+12*AG172)/30 -> 9.28426455
A173: 170 | B173: Pupin | C173: Antoine | D173: Pau | E173: 13.2 | F173: 12.5 | G173: 13.5 | H173: 13.2 | I173: 17 | J173: 18 | L173: 13 | M173: =(6*E173+5*F173+4*G173+4*H173+4*I173+6*J173+4*K173+3*L173)/(6+5+4+4+4+6+4+3) -> 12.875 | N173: 11 | O173: 8.75 | P173: 15.75 | Q173: 6.5 | R173: 6 | S173: =(5*N173+4*O173+2*P173+6*Q173+3*R173)/(5+4+2+6+3) -> 8.925 | T173: 19.5 | U173: 9 | V173: 10.9 | W173: 13 | X173: 11.5 | Y173: 7.5 | Z173: 10.9 | AA173: 13.75 | AB173: 12.5 | AG173: =IF(AC173,(3*T173+8*U173+4*V173+3*W173+4*AC173+8*AD173+3*AE173+4*AF173)/(3+8+4+3+4+8+3+4),(3*T173+8*U173+4*V173+3*W173+4*X173+3*Y173+3*Z173+3*AA173+4*AB173)/(3+8+4+3+4+3+3+3+4)) -> 11.58714286 | AH173: =CEILING(M173,0.5) -> 13 | AI173: =CEILING(S173,0.5) -> 9 | AJ173: =CEILING(AG173,0.5) -> 12 | AK173: =(10*AH173+8*AI173+12*AJ173)/30 -> 11.53333333 | AL173: =(10*M173+8*S173+12*AG173)/30 -> 11.30652381
A174: 171 | B174: Renaud | C174: Arthur | D174: Pau | E174: 14.3 | F174: 7.7 | G174: 13 | H174: 12.8 | I174: 18 | J174: 17 | L174: 14 | M174: =(6*E174+5*F174+4*G174+4*H174+4*I174+6*J174+4*K174+3*L174)/(6+5+4+4+4+6+4+3) -> 12.31944444 | N174: 6 | O174: 6.25 | P174: 11 | Q174: 2.75 | R174: 2 | S174: =(5*N174+4*O174+2*P174+6*Q174+3*R174)/(5+4+2+6+3) -> 4.975 | T174: 18 | U174: 9.3 | V174: 9.1 | W174: 7 | X174: 1.5 | Y174: 1.5 | Z174: 12.6 | AA174: 15.75 | AB174: 10.5 | AG174: =IF(AC174,(3*T174+8*U174+4*V174+3*W174+4*AC174+8*AD174+3*AE174+4*AF174)/(3+8+4+3+4+8+3+4),(3*T174+8*U174+4*V174+3*W174+4*X174+3*Y174+3*Z174+3*AA174+4*AB174)/(3+8+4+3+4+3+3+3+4)) -> 9.238571429 | AH174: =CEILING(M174,0.5) -> 12.5 | AI174: =CEILING(S174,0.5) -> 5 | AJ174: =CEILING(AG174,0.5) -> 9.5 | AK174: =(10*AH174+8*AI174+12*AJ174)/30 -> 9.3 | AL174: =(10*M174+8*S174+12*AG174)/30 -> 9.12857672
A175: 172 | B175: Riou | C175: Jérémy | D175: Pau
A176: 173 | B176: Riquart | C176: Cécile | D176: Pau | E176: 15.7 | F176: 19.5 | G176: 17 | H176: 10.8 | I176: 19 | J176: 16 | L176: 14 | M176: =(6*E176+5*F176+4*G176+4*H176+4*I176+6*J176+4*K176+3*L176)/(6+5+4+4+4+6+4+3) -> 14.35833333 | N176: 6 | O176: 12.25 | P176: 8 | Q176: 7.5 | R176: 3.25 | S176: =(5*N176+4*O176+2*P176+6*Q176+3*R176)/(5+4+2+6+3) -> 7.4875 | T176: 17 | U176: 12.6 | V176: 13.3 | W176: 15 | X176: 12.75 | Y176: 12 | Z176: 9.4 | AA176: 13.75 | AB176: 5 | AG176: =IF(AC176,(3*T176+8*U176+4*V176+3*W176+4*AC176+8*AD176+3*AE176+4*AF176)/(3+8+4+3+4+8+3+4),(3*T176+8*U176+4*V176+3*W176+4*X176+3*Y176+3*Z176+3*AA176+4*AB176)/(3+8+4+3+4+3+3+3+4)) -> 12.18428571 | AH176: =CEILING(M176,0.5) -> 14.5 | AI176: =CEILING(S176,0.5) -> 7.5 | AJ176: =CEILING(AG176,0.5) -> 12.5 | AK176: =(10*AH176+8*AI176+12*AJ176)/30 -> 11.83333333 | AL176: =(10*M176+8*S176+12*AG176)/30 -> 11.65649206
A177: 174 | B177: Rodriguez | C177: Sébastien | D177: Pau | E177: 15.3 | F177: 7.4 | G177: 15 | H177: 11.4 | I177: 7 | J177: 15 | L177: 14 | M177: =(6*E177+5*F177+4*G177+4*H177+4*I177+6*J177+4*K177+3*L177)/(6+5+4+4+4+6+4+3) -> 10.95555556 | N177: 13 | O177: 11.25 | P177: 12 | Q177: 7 | R177: 8 | S177: =(5*N177+4*O177+2*P177+6*Q177+3*R177)/(5+4+2+6+3) -> 10 | T177: 5.5 | U177: 7.1 | V177: 7.9 | W177: 3 | X177: 10.25 | Y177: 11 | Z177: 8 | AA177: 12 | AB177: 11 | AG177: =IF(AC177,(3*T177+8*U177+4*V177+3*W177+4*AC177+8*AD177+3*AE177+4*AF177)/(3+8+4+3+4+8+3+4),(3*T177+8*U177+4*V177+3*W177+4*X177+3*Y177+3*Z177+3*AA177+4*AB177)/(3+8+4+3+4+3+3+3+4)) -> 8.34 | AH177: =CEILING(M177,0.5) -> 11 | AI177: =CEILING(S177,0.5) -> 10 | AJ177: =CEILING(AG177,0.5) -> 8.5 | AK177: =(10*AH177+8*AI177+12*AJ177)/30 -> 9.733333333 | AL177: =(10*M177+8*S177+12*AG177)/30 -> 9.654518519
A178: 175 | B178: Sauboua-Beneluz | C178: Matthieu | D178: Pau | E178: 17.2 | F178: 16.5 | G178: 15.5 | H178: 15 | I178: 16 | J178: 18 | L178: 14 | M178: =(6*E178+5*F178+4*G178+4*H178+4*I178+6*J178+4*K178+3*L178)/(6+5+4+4+4+6+4+3) -> 14.49166667 | N178: 13 | O178: 16 | P178: 16.5 | Q178: 10.5 | R178: 14.25 | S178: =(5*N178+4*O178+2*P178+6*Q178+3*R178)/(5+4+2+6+3) -> 13.3875 | T178: 13 | U178: 10.2 | V178: 7.4 | W178: 16 | X178: 10 | Y178: 11 | Z178: 13 | AA178: 15.25 | AB178: 3.5 | AG178: =IF(AC178,(3*T178+8*U178+4*V178+3*W178+4*AC178+8*AD178+3*AE178+4*AF178)/(3+8+4+3+4+8+3+4),(3*T178+8*U178+4*V178+3*W178+4*X178+3*Y178+3*Z178+3*AA178+4*AB178)/(3+8+4+3+4+3+3+3+4)) -> 10.57 | AH178: =CEILING(M178,0.5) -> 14.5 | AI178: =CEILING(S178,0.5) -> 13.5 | AJ178: =CEILING(AG178,0.5) -> 11 | AK178: =(10*AH178+8*AI178+12*AJ178)/30 -> 12.83333333 | AL178: =(10*M178+8*S178+12*AG178)/30 -> 12.62855556
A179: 176 | B179: Sorres | C179: Thomas | D179: Pau | E179: 15.4 | F179: 18.7 | G179: 14.5 | H179: 10.8 | I179: 9 | J179: 15 | L179: 17 | M179: =(6*E179+5*F179+4*G179+4*H179+4*I179+6*J179+4*K179+3*L179)/(6+5+4+4+4+6+4+3) -> 12.89166667 | N179: 7 | O179: 6.25 | P179: 10.5 | Q179: 4 | R179: 4 | S179: =(5*N179+4*O179+2*P179+6*Q179+3*R179)/(5+4+2+6+3) -> 5.85 | T179: 0 | U179: 8.8 | V179: 7.4 | W179: 13 | X179: 1 | Y179: 11 | Z179: 12.1 | AA179: 14.5 | AB179: 7 | AG179: =IF(AC179,(3*T179+8*U179+4*V179+3*W179+4*AC179+8*AD179+3*AE179+4*AF179)/(3+8+4+3+4+8+3+4),(3*T179+8*U179+4*V179+3*W179+4*X179+3*Y179+3*Z179+3*AA179+4*AB179)/(3+8+4+3+4+3+3+3+4)) -> 8.108571429 | AH179: =CEILING(M179,0.5) -> 13 | AI179: =CEILING(S179,0.5) -> 6 | AJ179: =CEILING(AG179,0.5) -> 8.5 | AK179: =(10*AH179+8*AI179+12*AJ179)/30 -> 9.333333333 | AL179: =(10*M179+8*S179+12*AG179)/30 -> 9.100650794
A180: 177 | B180: Sudre | C180: Médéric | D180: Pau | E180: 16.2 | F180: 11.7 | G180: 12 | H180: 9.8 | I180: 8 | J180: 13.5 | L180: 15 | M180: =(6*E180+5*F180+4*G180+4*H180+4*I180+6*J180+4*K180+3*L180)/(6+5+4+4+4+6+4+3) -> 11.13611111 | N180: 3 | O180: 5.75 | P180: 6 | Q180: 4.5 | R180: 8 | S180: =(5*N180+4*O180+2*P180+6*Q180+3*R180)/(5+4+2+6+3) -> 5.05 | T180: 10.5 | U180: 5.3 | V180: 4.3 | W180: 7 | X180: 3.5 | Y180: 8.5 | Z180: 8.5 | AA180: 13.5 | AB180: 8 | AG180: =IF(AC180,(3*T180+8*U180+4*V180+3*W180+4*AC180+8*AD180+3*AE180+4*AF180)/(3+8+4+3+4+8+3+4),(3*T180+8*U180+4*V180+3*W180+4*X180+3*Y180+3*Z180+3*AA180+4*AB180)/(3+8+4+3+4+3+3+3+4)) -> 7.131428571 | AH180: =CEILING(M180,0.5) -> 11.5 | AI180: =CEILING(S180,0.5) -> 5.5 | AJ180: =CEILING(AG180,0.5) -> 7.5 | AK180: =(10*AH180+8*AI180+12*AJ180)/30 -> 8.3 | AL180: =(10*M180+8*S180+12*AG180)/30 -> 7.911275132
A181: 178 | B181: Vernay | C181: Morgan | D181: Pau | E181: 14.3 | F181: 13 | G181: 10.5 | H181: 11.4 | I181: 6 | J181: 16 | L181: 16 | M181: =(6*E181+5*F181+4*G181+4*H181+4*I181+6*J181+4*K181+3*L181)/(6+5+4+4+4+6+4+3) -> 11.28888889 | N181: 8 | O181: 12 | P181: 11.25 | Q181: 5.25 | R181: 9.75 | S181: =(5*N181+4*O181+2*P181+6*Q181+3*R181)/(5+4+2+6+3) -> 8.5625 | T181: 14 | U181: 6.8 | V181: 7.1 | W181: 12 | X181: 7.5 | Y181: 15 | Z181: 11.8 | AA181: 11 | AB181: 5 | AG181: =IF(AC181,(3*T181+8*U181+4*V181+3*W181+4*AC181+8*AD181+3*AE181+4*AF181)/(3+8+4+3+4+8+3+4),(3*T181+8*U181+4*V181+3*W181+4*X181+3*Y181+3*Z181+3*AA181+4*AB181)/(3+8+4+3+4+3+3+3+4)) -> 9.262857143 | AH181: =CEILING(M181,0.5) -> 11.5 | AI181: =CEILING(S181,0.5) -> 9 | AJ181: =CEILING(AG181,0.5) -> 9.5 | AK181: =(10*AH181+8*AI181+12*AJ181)/30 -> 10.03333333 | AL181: =(10*M181+8*S181+12*AG181)/30 -> 9.751439153
A182: 179 | B182: Vuillier | C182: Lucas | D182: Pau | E182: 15.4 | F182: 10 | G182: 15.5 | H182: 15 | I182: 14.5 | J182: 17 | L182: 12 | M182: =(6*E182+5*F182+4*G182+4*H182+4*I182+6*J182+4*K182+3*L182)/(6+5+4+4+4+6+4+3) -> 12.78888889 | N182: 12 | O182: 12.75 | P182: 7 | Q182: 7.75 | R182: 8.25 | S182: =(5*N182+4*O182+2*P182+6*Q182+3*R182)/(5+4+2+6+3) -> 9.8125 | T182: 9.5 | U182: 5.6 | V182: 8.4 | W182: 11 | X182: 11 | Y182: 14 | Z182: 8.5 | AA182: 14.5 | AB182: 15.5 | AG182: =IF(AC182,(3*T182+8*U182+4*V182+3*W182+4*AC182+8*AD182+3*AE182+4*AF182)/(3+8+4+3+4+8+3+4),(3*T182+8*U182+4*V182+3*W182+4*X182+3*Y182+3*Z182+3*AA182+4*AB182)/(3+8+4+3+4+3+3+3+4)) -> 10.19714286 | AH182: =CEILING(M182,0.5) -> 13 | AI182: =CEILING(S182,0.5) -> 10 | AJ182: =CEILING(AG182,0.5) -> 10.5 | AK182: =(10*AH182+8*AI182+12*AJ182)/30 -> 11.2 | AL182: =(10*M182+8*S182+12*AG182)/30 -> 10.95848677
A183: 180 | B183: Weis | C183: Erwin | D183: Pau | E183: 17.4 | F183: 12 | G183: 13.5 | H183: 8.6 | I183: 18 | J183: 16 | L183: 16 | M183: =(6*E183+5*F183+4*G183+4*H183+4*I183+6*J183+4*K183+3*L183)/(6+5+4+4+4+6+4+3) -> 13.02222222 | N183: 10 | O183: 11.75 | P183: 16.25 | Q183: 7.75 | R183: 11.75 | S183: =(5*N183+4*O183+2*P183+6*Q183+3*R183)/(5+4+2+6+3) -> 10.5625 | T183: 15 | U183: 6.8 | V183: 7 | W183: 18 | X183: 7.25 | Y183: 8 | Z183: 12.4 | AA183: 16.25 | AB183: 10.5 | AG183: =IF(AC183,(3*T183+8*U183+4*V183+3*W183+4*AC183+8*AD183+3*AE183+4*AF183)/(3+8+4+3+4+8+3+4),(3*T183+8*U183+4*V183+3*W183+4*X183+3*Y183+3*Z183+3*AA183+4*AB183)/(3+8+4+3+4+3+3+3+4)) -> 10.35285714 | AH183: =CEILING(M183,0.5) -> 13.5 | AI183: =CEILING(S183,0.5) -> 11 | AJ183: =CEILING(AG183,0.5) -> 10.5 | AK183: =(10*AH183+8*AI183+12*AJ183)/30 -> 11.63333333 | AL183: =(10*M183+8*S183+12*AG183)/30 -> 11.29855026
C184: Moyenne | D184: Glob | E184: =AVERAGE(E4:E183) -> 13.4352809 | F184: =AVERAGE(F4:F183) -> 12.62556818 | G184: 11.73305085 | H184: 14.08693182 | I184: 11.92937853 | J184: 12.30852273 | K184: 13.52586207 | L184: 15 | M184: 12.44874137 | N184: 7.959537572 | O184: 9.45 | P184: 8.74852071 | Q184: 8.607988166 | R184: 7.203869048 | S184: 7.979731638 | T184: 11.93470588 | U184: 8.210227273 | V184: 8.715789474 | W184: 12.21005917 | X184: 4.764957265 | Y184: 6.866666667 | Z184: 11.9962406 | AA184: 12.79198473 | AB184: 6.223484848 | AC184: 11.02325581 | AD184: 7.634146341 | AE184: 8.756097561 | AF184: 8.313953488 | AG184: 8.674855267 | AH184: 12.68926554 | AI184: 8.203389831 | AJ184: 8.935028249 | AK184: 9.9913371 | AL184: 9.747451
C185: Moyenne | D185: Cergy | E185: =AVERAGEIF($D4:$D183,"Cergy",E4:E183) -> 13.21318519 | F185: =AVERAGEIF($D4:$D183,"Cergy",F4:F183) -> 12.53533835 | G185: 11.30223881 | H185: 14.57518797 | I185: 11.74626866 | J185: 11.28045113 | K185: 13.52586207 | L185: 15.12781955 | M185: 12.533267 | N185: 7.215384615 | O185: 8.911290323 | P185: 8.23015873 | Q185: 9.333333333 | R185: 6.992 | S185: 7.784328358 | T185: 11.4992126 | U185: 8.507518797 | V185: 8.7890625 | W185: 12.87698413 | X185: 4.01875 | Y185: 6.104651163 | Z185: 12.18125 | AA185: 12.30851064 | AB185: 5.694736842 | AC185: 10.78378378 | AD185: 6.442857143 | AE185: 7.942857143 | AF185: 8.162162162 | AG185: 8.436093471 | AH185: 12.7761194 | AI185: 8.003731343 | AJ185: 8.686567164 | AK185: 9.867661692 | AL185: 9.62801395
C186: Moyenne | D186: Pau | E186: =AVERAGEIF($D4:$D183,"Pau",E4:E183) -> 14.13255814 | F186: =AVERAGEIF($D4:$D183,"Pau",F4:F183) -> 12.90465116 | G186: 13.0755814 | H186: 12.57674419 | I186: 12.5 | J186: 15.48837209 | L186: 14.60465116 | M186: 12.18533592 | N186: 10.20930233 | O186: 9.459302326 | P186: 10.26744186 | Q186: 6.48255814 | R186: 7.819767442 | S186: 8.588662791 | T186: 13.22093023 | U186: 7.290697674 | V186: 8.497674419 | W186: 10.25581395 | X186: 6.378378378 | Y186: 8.637837838 | Z186: 11.51621622 | AA186: 14.02027027 | AB186: 7.581081081 | AC186: 12.5 | AD186: 14.58333333 | AE186: 13.5 | AF186: 9.25 | AG186: 9.418903654 | AH186: 12.41860465 | AI186: 8.825581395 | AJ186: 9.709302326 | AK186: 10.37674419 | AL186: 10.11965018 | AM186: EFFECTIF
B187: Nombre | C187: Rattrapeurs | D187: Glob | AH187: =COUNTIF(AH4:AH183,"<10") -> 19 | AI187: 117 | AJ187: 101 | AK187: =AM187 - COUNTIFS(AH4:AH183,">=10",AI4:AI183,">=10",AJ4:AJ183,">=10") -> 133 | AL187: <- Ceux qui doivent rattraper au moins un module | AM187: =COUNT(AK4:AK183) -> 177
B188: Nombre | C188: Rattrapeurs | D188: Cergy | AH188: =COUNTIFS(AH4:AH183,"<10",$D4:$D183,"Cergy") -> 18 | AI188: 87 | AJ188: =COUNTIFS(AJ4:AJ183,"<10",$D4:$D183,"Cergy") -> 78 | AK188: =AM188 - COUNTIFS(AH4:AH183,">=10",AI4:AI183,">=10",AJ4:AJ183,">=10",$D4:$D183,"Cergy") -> 99 | AM188: =COUNTIF(D4:D183, "Cergy") -2 -> 134
B189: Nombre | C189: Rattrapeurs | D189: Pau | AH189: =COUNTIFS(AH4:AH183,"<10",$D4:$D183,"Pau") -> 1 | AI189: 30 | AJ189: 23 | AK189: =AM189 - COUNTIFS(AH4:AH183,">=10",AI4:AI183,">=10",AJ4:AJ183,">=10",$D4:$D183,"Pau") -> 34 | AM189: =COUNTIF(D4:D183, "Pau") -1 -> 43
AG190: Pourcentages | AH190: =AH187/$AM187 -> 0.1073446328 | AI190: =AI187/$AM187 -> 0.6610169492 | AJ190: 0.5706214689 | AK190: 0.7514124294
AH191: =AH188/$AM188 -> 0.1343283582 | AI191: 0.6492537313 | AJ191: 0.5820895522 | AK191: 0.7388059701
AH192: 0.02325581395 | AI192: 0.6976744186 | AJ192: 0.5348837209 | AK192: 0.7906976744
B193: Différence | C193: Notation | D193: Glob | E193: =E185-E186 -> -0.9193729543 | F193: =F185-F186 -> -0.3693128169 | G193: -1.773342589 | H193: 1.998443784 | I193: -0.7537313433 | J193: -4.207920965 | L193: 0.5231683861 | M193: 0.347931081 | N193: -2.99391771 | O193: -0.548012003 | P193: -2.03728313 | Q193: 2.850775194 | R193: -0.8277674419 | S193: -0.8043344325 | T193: -1.721717634 | U193: 1.216821123 | V193: 0.2913880814 | W193: 2.621170173 | X193: -2.359628378 | Y193: -2.533186675 | Z193: 0.6650337838 | AA193: -1.711759632 | AB193: -1.886344239 | AC193: -1.716216216 | AD193: -8.14047619 | AE193: -5.557142857 | AF193: -1.087837838 | AG193: -0.9828101836 | AH193: 0.3575147518 | AI193: -0.8218500521 | AJ193: -1.022735161 | AK193: -0.5090824945 | AL193: -0.4916362284
M194: =SUM(E193:L193) ->  | S194: =SUM(N193:R193) -> -3.556205092 | AG194: =SUM(T193:AF193) -> -21.9198965
